Publisher Label,Publisher URI,"Directorate code","Directorate","Service code","Service","Revenue or capital code","Revenue capital","Cost centre","Cost centre description","Bvsub Category","Bvsub description","Bvsum code","Bvsum description","Account code","Account description","Transaction No","Period","Transaction Date","Amount","Classification code","Classification description","Supplier ID","Supplier description","Company registration number","Company registration number Uri","VAT registration number"
"London Borough of Redbridge","http://opendatacommunities.org/doc/london-borough-council/redbridge","9BNONBVO","Outside the BVACOP Objective Structure","9CNONBVO","Outside the BVACOP Objective Structure","CAP","Capital","C4090","Beal High - Add Sec Sch Places","99-NONBV","Capital, Balance Sheet and Control","50E","Capital - Contract Payments","9150","Main Contract","60200782","201401",25/03/2013 00:00:00,833755.34,"21555","Construction Contractors - General","REDACTED DATA","MORGAN SINDALL (CONSTRUCTION) PLC","4273754","http://opencorporates.com/companies/gb/4273754","765365306"
"London Borough of Redbridge","http://opendatacommunities.org/doc/london-borough-council/redbridge","9BNONBVO","Outside the BVACOP Objective Structure","9CNONBVO","Outside the BVACOP Objective Structure","REV","Revenue","R0026","Council Tax Collection Fund","05-THIRD","Third Party Payments","05I","Other agencies","6958","Business Rate Retention payable to GLA","60202373","201401",16/04/2013 00:00:00,830076,"48583","Local Government","REDACTED DATA","GREATER LONDON AUTHORITY","",,""
"London Borough of Redbridge","http://opendatacommunities.org/doc/london-borough-council/redbridge","9BNONBVO","Outside the BVACOP Objective Structure","9CNONBVO","Outside the BVACOP Objective Structure","CAP","Capital","C4111","Ilford Jewish Add Primary School Place","99-NONBV","Capital, Balance Sheet and Control","50E","Capital - Contract Payments","9150","Main Contract","60202629","201401",22/04/2013 00:00:00,706299.4,"0","Not Classified","REDACTED DATA","KING SOLOMON HIGH SCHOOL REDBRIDGE LTD","",,""
"London Borough of Redbridge","http://opendatacommunities.org/doc/london-borough-council/redbridge","3BINDSCHFUND","Individual School Funds","3CDELSECOND","Delegated Individual Secondary School Budgets","REV","Revenue","R3627","Wanstead High School","99-NONBV","Capital, Balance Sheet and Control","99B","Accounting & Control","7451","LMS Bank Accounts Pilot","70052743","201401",19/04/2013 00:00:00,649588,"67981","Schools - Local Authority","REDACTED DATA","WANSTEAD HIGH SCHOOL A/C","",,""
"London Borough of Redbridge","http://opendatacommunities.org/doc/london-borough-council/redbridge","9BNONBVO","Outside the BVACOP Objective Structure","9CNONBVO","Outside the BVACOP Objective Structure","REV","Revenue","R5131","Repairs and Maintenance - MFS","02-PREMISES","Premises","02A","Repairs, alteration and maintenance of buildings","3027","Miscellaneous Maintenance","70052583","201401",03/04/2013 00:00:00,501135.82,"61961","Property Maintenance & Repairs","REDACTED DATA","MORRISONS FACILITIES SERVICES LTD","120550","http://opencorporates.com/companies/gb/120550","297280913"
"London Borough of Redbridge","http://opendatacommunities.org/doc/london-borough-council/redbridge","2BENVIRONMEN","Environmental Services","2CWASTECOLLN","Waste Collection","REV","Revenue","R6151","MRS - Household Waste","05-THIRD","Third Party Payments","05H","Private contractors","6915","Contractor Payments","60201640","201401",31/03/2013 00:00:00,201431.13,"83380","Waste Disposal Services","REDACTED DATA","MRS ENVIRONMENTAL SERVICES LTD","2175295","http://opencorporates.com/companies/gb/2175295","524394641"
"London Borough of Redbridge","http://opendatacommunities.org/doc/london-borough-council/redbridge","2BENVIRONMEN","Environmental Services","2CWASTECOLLN","Waste Collection","REV","Revenue","R6211","Kerbside Collection","05-THIRD","Third Party Payments","05H","Private contractors","6915","Contractor Payments","60201640","201401",31/03/2013 00:00:00,127553.46,"83380","Waste Disposal Services","REDACTED DATA","MRS ENVIRONMENTAL SERVICES LTD","2175295","http://opencorporates.com/companies/gb/2175295","524394641"
"London Borough of Redbridge","http://opendatacommunities.org/doc/london-borough-council/redbridge","2BENVIRONMEN","Environmental Services","2CWASTECOLLN","Waste Collection","REV","Revenue","R6152","MRS - Commercial Waste","05-THIRD","Third Party Payments","05H","Private contractors","6915","Contractor Payments","60201640","201401",31/03/2013 00:00:00,32168.03,"83380","Waste Disposal Services","REDACTED DATA","MRS ENVIRONMENTAL SERVICES LTD","2175295","http://opencorporates.com/companies/gb/2175295","524394641"
"London Borough of Redbridge","http://opendatacommunities.org/doc/london-borough-council/redbridge","2BENVIRONMEN","Environmental Services","2CWASTECOLLN","Waste Collection","REV","Revenue","R6206","Recycling - Flats","05-THIRD","Third Party Payments","05H","Private contractors","6915","Contractor Payments","60201640","201401",31/03/2013 00:00:00,14244.94,"83380","Waste Disposal Services","REDACTED DATA","MRS ENVIRONMENTAL SERVICES LTD","2175295","http://opencorporates.com/companies/gb/2175295","524394641"
"London Borough of Redbridge","http://opendatacommunities.org/doc/london-borough-council/redbridge","2BENVIRONMEN","Environmental Services","2CWASTECOLLN","Waste Collection","REV","Revenue","R6215","Garden Waste Collection Service","05-THIRD","Third Party Payments","05H","Private contractors","6915","Contractor Payments","60201640","201401",31/03/2013 00:00:00,7437.65,"83380","Waste Disposal Services","REDACTED DATA","MRS ENVIRONMENTAL SERVICES LTD","2175295","http://opencorporates.com/companies/gb/2175295","524394641"
"London Borough of Redbridge","http://opendatacommunities.org/doc/london-borough-council/redbridge","9BNONBVO","Outside the BVACOP Objective Structure","9CNONBVO","Outside the BVACOP Objective Structure","CAP","Capital","C2113","CESP","99-NONBV","Capital, Balance Sheet and Control","50E","Capital - Contract Payments","9150","Main Contract","60201129","201401",19/03/2013 00:00:00,367731,"11371","Building Refurbishment and Restoration Contractors","REDACTED DATA","CARILLION ENERGY SERVICES LTD","3858865","http://opencorporates.com/companies/gb/3858865","734312950"
"London Borough of Redbridge","http://opendatacommunities.org/doc/london-borough-council/redbridge","9BNONBVO","Outside the BVACOP Objective Structure","9CNONBVO","Outside the BVACOP Objective Structure","CAP","Capital","C2104","Decent Homes","99-NONBV","Capital, Balance Sheet and Control","50E","Capital - Contract Payments","9150","Main Contract","70052509","201401",28/03/2013 00:00:00,285306.83,"65470","Roofing Services","REDACTED DATA","BREYER GROUP","782931","http://opencorporates.com/companies/gb/782931","248504555"
"London Borough of Redbridge","http://opendatacommunities.org/doc/london-borough-council/redbridge","6BADULTSOCIA","Adult Social Care","6COLDINCMENT","Older People (65 or over) incl. Older Mentally Ill","REV","Revenue","R4435","Sanctuary Care Residential Contracts","05-THIRD","Third Party Payments","05F","Voluntary associations","6802","Residential Homes","70052654","201401",01/04/2013 00:00:00,79355.68,"53350","Nursing Homes","REDACTED DATA","SANCTUARY CARE (ENTERPRISE HOUSE)","4231521","http://opencorporates.com/companies/gb/4231521","732012487"
"London Borough of Redbridge","http://opendatacommunities.org/doc/london-borough-council/redbridge","6BADULTSOCIA","Adult Social Care","6COLDINCMENT","Older People (65 or over) incl. Older Mentally Ill","REV","Revenue","R4435","Sanctuary Care Residential Contracts","05-THIRD","Third Party Payments","05F","Voluntary associations","6802","Residential Homes","70052654","201401",01/04/2013 00:00:00,76074.3,"53350","Nursing Homes","REDACTED DATA","SANCTUARY CARE (ENTERPRISE HOUSE)","4231521","http://opencorporates.com/companies/gb/4231521","732012487"
"London Borough of Redbridge","http://opendatacommunities.org/doc/london-borough-council/redbridge","6BADULTSOCIA","Adult Social Care","6COLDINCMENT","Older People (65 or over) incl. Older Mentally Ill","REV","Revenue","R4435","Sanctuary Care Residential Contracts","05-THIRD","Third Party Payments","05F","Voluntary associations","6802","Residential Homes","70052654","201401",01/04/2013 00:00:00,62310.21,"53350","Nursing Homes","REDACTED DATA","SANCTUARY CARE (ENTERPRISE HOUSE)","4231521","http://opencorporates.com/companies/gb/4231521","732012487"
"London Borough of Redbridge","http://opendatacommunities.org/doc/london-borough-council/redbridge","6BADULTSOCIA","Adult Social Care","6COLDINCMENT","Older People (65 or over) incl. Older Mentally Ill","REV","Revenue","R4435","Sanctuary Care Residential Contracts","05-THIRD","Third Party Payments","05F","Voluntary associations","6802","Residential Homes","70052654","201401",01/04/2013 00:00:00,53909.31,"53350","Nursing Homes","REDACTED DATA","SANCTUARY CARE (ENTERPRISE HOUSE)","4231521","http://opencorporates.com/companies/gb/4231521","732012487"
"London Borough of Redbridge","http://opendatacommunities.org/doc/london-borough-council/redbridge","6BADULTSOCIA","Adult Social Care","6COLDINCMENT","Older People (65 or over) incl. Older Mentally Ill","REV","Revenue","R4435","Sanctuary Care Residential Contracts","05-THIRD","Third Party Payments","05F","Voluntary associations","6802","Residential Homes","70052654","201401",01/04/2013 00:00:00,47461.05,"53350","Nursing Homes","REDACTED DATA","SANCTUARY CARE (ENTERPRISE HOUSE)","4231521","http://opencorporates.com/companies/gb/4231521","732012487"
"London Borough of Redbridge","http://opendatacommunities.org/doc/london-borough-council/redbridge","5BGFHOUSING","General Fund Housing","5CHOUSADVICE","Housing Advice","REV","Revenue","R5530","HAC Temporary Accomodation","05-THIRD","Third Party Payments","05H","Private contractors","6916","Leasing Payments To Landlords","70052907","201401",01/04/2013 00:00:00,255251.84,"47846","Letting Agents","REDACTED DATA","THEORI INVESTMENTS LIMITED","4048450","http://opencorporates.com/companies/gb/4048450","773898950"
"London Borough of Redbridge","http://opendatacommunities.org/doc/london-borough-council/redbridge","5BGFHOUSING","General Fund Housing","5CHOUSADVICE","Housing Advice","REV","Revenue","R5530","HAC Temporary Accomodation","05-THIRD","Third Party Payments","05H","Private contractors","6916","Leasing Payments To Landlords","70052907","201401",01/04/2013 00:00:00,33498.97,"47846","Letting Agents","REDACTED DATA","THEORI INVESTMENTS LIMITED","4048450","http://opencorporates.com/companies/gb/4048450","773898950"
"London Borough of Redbridge","http://opendatacommunities.org/doc/london-borough-council/redbridge","3BINDSCHFUND","Individual School Funds","3CDELSPECIAL","Delegated Individual Special School Budgets","REV","Revenue","R3324","Newbridge School","99-NONBV","Capital, Balance Sheet and Control","99B","Accounting & Control","7451","LMS Bank Accounts Pilot","70052745","201401",19/04/2013 00:00:00,273050,"67981","Schools - Local Authority","REDACTED DATA","NEWBRIDGE SCHOOL  (BARLEY LANE CAMPUS)","",,""
"London Borough of Redbridge","http://opendatacommunities.org/doc/london-borough-council/redbridge","3BLEACENTFND","LEA Centrally Held School Funds","3CNONSCH","Non Schools","REV","Revenue","R3256","ISS Free School Meals Contract","04-SUPPLIES","Supplies And Services","04B","Catering","5603","Hospitality (Catering)","60200760","201401",27/03/2013 00:00:00,164112,"16270","Catering Schools","REDACTED DATA","ISS CATERHOUSE- DIV OF ISS MEDICLEAN LTD(INVOICES)","1659837","http://opencorporates.com/companies/gb/1659837","417115775"
"London Borough of Redbridge","http://opendatacommunities.org/doc/london-borough-council/redbridge","5BGFHOUSING","General Fund Housing","5CHOUSADVICE","Housing Advice","REV","Revenue","R5530","HAC Temporary Accomodation","05-THIRD","Third Party Payments","05H","Private contractors","6916","Leasing Payments To Landlords","70052219","201401",28/02/2013 00:00:00,213129.28,"47846","Letting Agents","REDACTED DATA","OMEGA LETTINGS LTD","3662604","http://opencorporates.com/companies/gb/3662604","735892103"
"London Borough of Redbridge","http://opendatacommunities.org/doc/london-borough-council/redbridge","5BGFHOUSING","General Fund Housing","5CHOUSADVICE","Housing Advice","REV","Revenue","R5530","HAC Temporary Accomodation","05-THIRD","Third Party Payments","05H","Private contractors","6916","Leasing Payments To Landlords","70052219","201401",28/02/2013 00:00:00,30339.17,"47846","Letting Agents","REDACTED DATA","OMEGA LETTINGS LTD","3662604","http://opencorporates.com/companies/gb/3662604","735892103"
"London Borough of Redbridge","http://opendatacommunities.org/doc/london-borough-council/redbridge","9BNONBVO","Outside the BVACOP Objective Structure","9CNONBVO","Outside the BVACOP Objective Structure","REV","Revenue","R0027","General Fund Corporate Items","05-THIRD","Third Party Payments","05B","Joint authorities","6601","ELWA - Commercial Waste","70052786","201401",18/03/2013 00:00:00,201576.96,"79500","Trade Assoc & Regulatory Bodies","REDACTED DATA","ELWA LTD.","",,"805224756"
"London Borough of Redbridge","http://opendatacommunities.org/doc/london-borough-council/redbridge","3BINDSCHFUND","Individual School Funds","3CDELSPECIAL","Delegated Individual Special School Budgets","REV","Revenue","R3321","Hatton School","99-NONBV","Capital, Balance Sheet and Control","99B","Accounting & Control","7451","LMS Bank Accounts Pilot","70052746","201401",19/04/2013 00:00:00,239626,"67981","Schools - Local Authority","REDACTED DATA","HATTON SCHOOL A/C","",,""
"London Borough of Redbridge","http://opendatacommunities.org/doc/london-borough-council/redbridge","9BNONBVO","Outside the BVACOP Objective Structure","9CNONBVO","Outside the BVACOP Objective Structure","REV","Revenue","R0068","R and R Revenue Client Leasing","10-CAPFIN","Capital Financing","10A","Interest payments","7403","Finance Leases","40510946","201401",22/04/2013 00:00:00,191231.46,"47650","Leasing Services","REDACTED DATA","SG EQUIPMENT FINANCE LTD","",,"629280722"
"London Borough of Redbridge","http://opendatacommunities.org/doc/london-borough-council/redbridge","3BLEACENTFND","LEA Centrally Held School Funds","3CASSURACCES","Assuring Access to Schools","REV","Revenue","R3859","PFI Sch Local Authority Liability","04-SUPPLIES","Supplies And Services","04I","PFI and Public Private Partnership Schemes","6000","PFI - Unitary Payment","60201697","201401",02/04/2013 00:00:00,181013.52,"21557","Construction Management","REDACTED DATA","NU SCHOOLS FOR REDBRIDGE LTD","",,"858914279"
"London Borough of Redbridge","http://opendatacommunities.org/doc/london-borough-council/redbridge","5BGFHOUSING","General Fund Housing","5CHOUSADVICE","Housing Advice","REV","Revenue","R5530","HAC Temporary Accomodation","05-THIRD","Third Party Payments","05H","Private contractors","6916","Leasing Payments To Landlords","70052799","201401",31/03/2013 00:00:00,188204.21,"47846","Letting Agents","REDACTED DATA","DABORA CONWAY LTD","2623262","http://opencorporates.com/companies/gb/2623262",""
"London Borough of Redbridge","http://opendatacommunities.org/doc/london-borough-council/redbridge","5BGFHOUSING","General Fund Housing","5CHOUSADVICE","Housing Advice","REV","Revenue","R5530","HAC Temporary Accomodation","05-THIRD","Third Party Payments","05H","Private contractors","6916","Leasing Payments To Landlords","70052799","201401",31/03/2013 00:00:00,24888.33,"47846","Letting Agents","REDACTED DATA","DABORA CONWAY LTD","2623262","http://opencorporates.com/companies/gb/2623262",""
"London Borough of Redbridge","http://opendatacommunities.org/doc/london-borough-council/redbridge","3BINDSCHFUND","Individual School Funds","3CDELSPECIAL","Delegated Individual Special School Budgets","REV","Revenue","R3323","Little Heath Foundation School","99-NONBV","Capital, Balance Sheet and Control","99B","Accounting & Control","7451","LMS Bank Accounts Pilot","70052483","201401",12/04/2013 00:00:00,212751,"67981","Schools - Local Authority","REDACTED DATA","LITTLE HEATH SCHOOL A/C","",,""
"London Borough of Redbridge","http://opendatacommunities.org/doc/london-borough-council/redbridge","5BGFHOUSING","General Fund Housing","5CHOUSADVICE","Housing Advice","REV","Revenue","R5530","HAC Temporary Accomodation","05-THIRD","Third Party Payments","05H","Private contractors","6916","Leasing Payments To Landlords","70052106","201401",28/02/2013 00:00:00,186530.59,"47846","Letting Agents","REDACTED DATA","DABORA CONWAY LTD","2623262","http://opencorporates.com/companies/gb/2623262",""
"London Borough of Redbridge","http://opendatacommunities.org/doc/london-borough-council/redbridge","5BGFHOUSING","General Fund Housing","5CHOUSADVICE","Housing Advice","REV","Revenue","R5530","HAC Temporary Accomodation","05-THIRD","Third Party Payments","05H","Private contractors","6916","Leasing Payments To Landlords","70052106","201401",28/02/2013 00:00:00,24672.9,"47846","Letting Agents","REDACTED DATA","DABORA CONWAY LTD","2623262","http://opencorporates.com/companies/gb/2623262",""
"London Borough of Redbridge","http://opendatacommunities.org/doc/london-borough-council/redbridge","9BNONBVO","Outside the BVACOP Objective Structure","9CNONBVO","Outside the BVACOP Objective Structure","CAP","Capital","C9036","R and R Capital Exp DSO Leases","99-NONBV","Capital, Balance Sheet and Control","50F","Capital - Equipment, Furniture & Fittings","9172","Vehicles","637352","201401",04/04/2013 00:00:00,159600,"20350","Commercial Vehicle Bodybuilders & Repairers","REDACTED DATA","IRIZAR UK LTD","7611299","http://opencorporates.com/companies/gb/7611299","113177640"
"London Borough of Redbridge","http://opendatacommunities.org/doc/london-borough-council/redbridge","9BNONBVO","Outside the BVACOP Objective Structure","9CNONBVO","Outside the BVACOP Objective Structure","CAP","Capital","C9036","R and R Capital Exp DSO Leases","99-NONBV","Capital, Balance Sheet and Control","50F","Capital - Equipment, Furniture & Fittings","9172","Vehicles","637352","201401",04/04/2013 00:00:00,11567,"20350","Commercial Vehicle Bodybuilders & Repairers","REDACTED DATA","IRIZAR UK LTD","7611299","http://opencorporates.com/companies/gb/7611299","113177640"
"London Borough of Redbridge","http://opendatacommunities.org/doc/london-borough-council/redbridge","9BNONBVO","Outside the BVACOP Objective Structure","9CNONBVO","Outside the BVACOP Objective Structure","REV","Revenue","R5131","Repairs and Maintenance - MFS","02-PREMISES","Premises","02A","Repairs, alteration and maintenance of buildings","3027","Miscellaneous Maintenance","70052762","201401",28/03/2013 00:00:00,161962.71,"61961","Property Maintenance & Repairs","REDACTED DATA","MORRISONS FACILITIES SERVICES LTD","120550","http://opencorporates.com/companies/gb/120550","297280913"
"London Borough of Redbridge","http://opendatacommunities.org/doc/london-borough-council/redbridge","9BNONBVO","Outside the BVACOP Objective Structure","9CNONBVO","Outside the BVACOP Objective Structure","REV","Revenue","R5131","Repairs and Maintenance - MFS","99-NONBV","Capital, Balance Sheet and Control","99B","Accounting & Control","7453","Insurance Claims - General","70052762","201401",28/03/2013 00:00:00,7668.39,"61961","Property Maintenance & Repairs","REDACTED DATA","MORRISONS FACILITIES SERVICES LTD","120550","http://opencorporates.com/companies/gb/120550","297280913"
"London Borough of Redbridge","http://opendatacommunities.org/doc/london-borough-council/redbridge","3BLEACENTFND","LEA Centrally Held School Funds","3CSCHSTRATMG","Schools Strategic Management","REV","Revenue","R3001","Bldgs and Dev Branch","01-EMPLOYEES","Employees","01A","Direct employee expenses","4","Agency Staff - Pay","3276950","201401",08/04/2013 00:00:00,2599.74,"31230","Employment & Recruitment Agencies","REDACTED DATA","ADECCO UK LIMITED","",,"232347975"
"London Borough of Redbridge","http://opendatacommunities.org/doc/london-borough-council/redbridge","3BLEACENTFND","LEA Centrally Held School Funds","3CSCHSTRATMG","Schools Strategic Management","REV","Revenue","R3001","Bldgs and Dev Branch","01-EMPLOYEES","Employees","01A","Direct employee expenses","4","Agency Staff - Pay","3276950","201401",08/04/2013 00:00:00,2266.44,"31230","Employment & Recruitment Agencies","REDACTED DATA","ADECCO UK LIMITED","",,"232347975"
"London Borough of Redbridge","http://opendatacommunities.org/doc/london-borough-council/redbridge","3BLEACENTFND","LEA Centrally Held School Funds","3CSCHSTRATMG","Schools Strategic Management","REV","Revenue","R3001","Bldgs and Dev Branch","01-EMPLOYEES","Employees","01A","Direct employee expenses","4","Agency Staff - Pay","3276950","201401",08/04/2013 00:00:00,2199.78,"31230","Employment & Recruitment Agencies","REDACTED DATA","ADECCO UK LIMITED","",,"232347975"
"London Borough of Redbridge","http://opendatacommunities.org/doc/london-borough-council/redbridge","3BLEACENTFND","LEA Centrally Held School Funds","3CSCHSTRATMG","Schools Strategic Management","REV","Revenue","R3001","Bldgs and Dev Branch","01-EMPLOYEES","Employees","01A","Direct employee expenses","4","Agency Staff - Pay","3276950","201401",08/04/2013 00:00:00,1666.5,"31230","Employment & Recruitment Agencies","REDACTED DATA","ADECCO UK LIMITED","",,"232347975"
"London Borough of Redbridge","http://opendatacommunities.org/doc/london-borough-council/redbridge","1BOTHEROPI&E","Other Operating Income & Expenditure","1CTRADSURDEF","Trading Account Surpluses & Deficits","REV","Revenue","R9460","Human Resources misc","01-EMPLOYEES","Employees","01A","Direct employee expenses","4","Agency Staff - Pay","3276950","201401",08/04/2013 00:00:00,1208.1,"31230","Employment & Recruitment Agencies","REDACTED DATA","ADECCO UK LIMITED","",,"232347975"
"London Borough of Redbridge","http://opendatacommunities.org/doc/london-borough-council/redbridge","5BGFHOUSING","General Fund Housing","5CHOUSADVICE","Housing Advice","REV","Revenue","R5533","Hylefords TA Refurbishment Project","01-EMPLOYEES","Employees","01A","Direct employee expenses","4","Agency Staff - Pay","3276950","201401",08/04/2013 00:00:00,1128.68,"31230","Employment & Recruitment Agencies","REDACTED DATA","ADECCO UK LIMITED","",,"232347975"
"London Borough of Redbridge","http://opendatacommunities.org/doc/london-borough-council/redbridge","5BGFHOUSING","General Fund Housing","5CHOUSADVICE","Housing Advice","REV","Revenue","R5533","Hylefords TA Refurbishment Project","01-EMPLOYEES","Employees","01A","Direct employee expenses","4","Agency Staff - Pay","3276950","201401",08/04/2013 00:00:00,1126.73,"31230","Employment & Recruitment Agencies","REDACTED DATA","ADECCO UK LIMITED","",,"232347975"
"London Borough of Redbridge","http://opendatacommunities.org/doc/london-borough-council/redbridge","5BGFHOUSING","General Fund Housing","5CHOUSADVICE","Housing Advice","REV","Revenue","R5533","Hylefords TA Refurbishment Project","01-EMPLOYEES","Employees","01A","Direct employee expenses","4","Agency Staff - Pay","3276950","201401",08/04/2013 00:00:00,1125.03,"31230","Employment & Recruitment Agencies","REDACTED DATA","ADECCO UK LIMITED","",,"232347975"
"London Borough of Redbridge","http://opendatacommunities.org/doc/london-borough-council/redbridge","5BGFHOUSING","General Fund Housing","5CHOUSADVICE","Housing Advice","REV","Revenue","R5533","Hylefords TA Refurbishment Project","01-EMPLOYEES","Employees","01A","Direct employee expenses","4","Agency Staff - Pay","3276950","201401",08/04/2013 00:00:00,931.41,"31230","Employment & Recruitment Agencies","REDACTED DATA","ADECCO UK LIMITED","",,"232347975"
"London Borough of Redbridge","http://opendatacommunities.org/doc/london-borough-council/redbridge","5BGFHOUSING","General Fund Housing","5CHOUMGTSUPP","Housing Management & Support Services","REV","Revenue","R5511","Homelessness Grants","01-EMPLOYEES","Employees","01A","Direct employee expenses","4","Agency Staff - Pay","3276950","201401",08/04/2013 00:00:00,857.7,"31230","Employment & Recruitment Agencies","REDACTED DATA","ADECCO UK LIMITED","",,"232347975"
"London Borough of Redbridge","http://opendatacommunities.org/doc/london-borough-council/redbridge","1BOTHEROPI&E","Other Operating Income & Expenditure","1CTRADSURDEF","Trading Account Surpluses & Deficits","REV","Revenue","R9252","IT Services","01-EMPLOYEES","Employees","01A","Direct employee expenses","4","Agency Staff - Pay","3276950","201401",08/04/2013 00:00:00,849.55,"31230","Employment & Recruitment Agencies","REDACTED DATA","ADECCO UK LIMITED","",,"232347975"
"London Borough of Redbridge","http://opendatacommunities.org/doc/london-borough-council/redbridge","5BGFHOUSING","General Fund Housing","5CHOUMGTSUPP","Housing Management & Support Services","REV","Revenue","R5511","Homelessness Grants","01-EMPLOYEES","Employees","01A","Direct employee expenses","4","Agency Staff - Pay","3276950","201401",08/04/2013 00:00:00,810.11,"31230","Employment & Recruitment Agencies","REDACTED DATA","ADECCO UK LIMITED","",,"232347975"
"London Borough of Redbridge","http://opendatacommunities.org/doc/london-borough-council/redbridge","3BNONSCHFUND","Non-School Funding","3CNONSCH","Non Schools","REV","Revenue","R3953","2 Year Old Funding","01-EMPLOYEES","Employees","01A","Direct employee expenses","4","Agency Staff - Pay","3276950","201401",08/04/2013 00:00:00,802.95,"31230","Employment & Recruitment Agencies","REDACTED DATA","ADECCO UK LIMITED","",,"232347975"
"London Borough of Redbridge","http://opendatacommunities.org/doc/london-borough-council/redbridge","1BOTHEROPI&E","Other Operating Income & Expenditure","1CTRADSURDEF","Trading Account Surpluses & Deficits","REV","Revenue","R9252","IT Services","01-EMPLOYEES","Employees","01A","Direct employee expenses","4","Agency Staff - Pay","3276950","201401",08/04/2013 00:00:00,801.25,"31230","Employment & Recruitment Agencies","REDACTED DATA","ADECCO UK LIMITED","",,"232347975"
"London Borough of Redbridge","http://opendatacommunities.org/doc/london-borough-council/redbridge","3BNONSCHFUND","Non-School Funding","3CNONSCH","Non Schools","REV","Revenue","R3953","2 Year Old Funding","01-EMPLOYEES","Employees","01A","Direct employee expenses","4","Agency Staff - Pay","3276950","201401",08/04/2013 00:00:00,796.94,"31230","Employment & Recruitment Agencies","REDACTED DATA","ADECCO UK LIMITED","",,"232347975"
"London Borough of Redbridge","http://opendatacommunities.org/doc/london-borough-council/redbridge","1BOTHEROPI&E","Other Operating Income & Expenditure","1CTRADSURDEF","Trading Account Surpluses & Deficits","REV","Revenue","R9252","IT Services","01-EMPLOYEES","Employees","01A","Direct employee expenses","4","Agency Staff - Pay","3276950","201401",08/04/2013 00:00:00,788.07,"31230","Employment & Recruitment Agencies","REDACTED DATA","ADECCO UK LIMITED","",,"232347975"
"London Borough of Redbridge","http://opendatacommunities.org/doc/london-borough-council/redbridge","5BGFHOUSING","General Fund Housing","5CHOUMGTSUPP","Housing Management & Support Services","REV","Revenue","R5529","HAC Assessment","01-EMPLOYEES","Employees","01A","Direct employee expenses","4","Agency Staff - Pay","3276950","201401",08/04/2013 00:00:00,780.35,"31230","Employment & Recruitment Agencies","REDACTED DATA","ADECCO UK LIMITED","",,"232347975"
"London Borough of Redbridge","http://opendatacommunities.org/doc/london-borough-council/redbridge","3BNONSCHFUND","Non-School Funding","3CNONSCH","Non Schools","REV","Revenue","R3953","2 Year Old Funding","01-EMPLOYEES","Employees","01A","Direct employee expenses","4","Agency Staff - Pay","3276950","201401",08/04/2013 00:00:00,778.93,"31230","Employment & Recruitment Agencies","REDACTED DATA","ADECCO UK LIMITED","",,"232347975"
"London Borough of Redbridge","http://opendatacommunities.org/doc/london-borough-council/redbridge","5BGFHOUSING","General Fund Housing","5CHOUMGTSUPP","Housing Management & Support Services","REV","Revenue","R5529","HAC Assessment","01-EMPLOYEES","Employees","01A","Direct employee expenses","4","Agency Staff - Pay","3276950","201401",08/04/2013 00:00:00,766.25,"31230","Employment & Recruitment Agencies","REDACTED DATA","ADECCO UK LIMITED","",,"232347975"
"London Borough of Redbridge","http://opendatacommunities.org/doc/london-borough-council/redbridge","5BGFHOUSING","General Fund Housing","5CHOUMGTSUPP","Housing Management & Support Services","REV","Revenue","R5529","HAC Assessment","01-EMPLOYEES","Employees","01A","Direct employee expenses","4","Agency Staff - Pay","3276950","201401",08/04/2013 00:00:00,737.74,"31230","Employment & Recruitment Agencies","REDACTED DATA","ADECCO UK LIMITED","",,"232347975"
"London Borough of Redbridge","http://opendatacommunities.org/doc/london-borough-council/redbridge","6BSOCIALSERV","Social Services","6CCHILCOMSNG","Children's Services - Commissioning & Social Work","REV","Revenue","R2121","CLAFH - Business and Finance Social Care","01-EMPLOYEES","Employees","01A","Direct employee expenses","4","Agency Staff - Pay","3276950","201401",08/04/2013 00:00:00,720.77,"31230","Employment & Recruitment Agencies","REDACTED DATA","ADECCO UK LIMITED","",,"232347975"
"London Borough of Redbridge","http://opendatacommunities.org/doc/london-borough-council/redbridge","5BGFHOUSING","General Fund Housing","5CHOUMGTSUPP","Housing Management & Support Services","REV","Revenue","R5511","Homelessness Grants","01-EMPLOYEES","Employees","01A","Direct employee expenses","4","Agency Staff - Pay","3276950","201401",08/04/2013 00:00:00,720.56,"31230","Employment & Recruitment Agencies","REDACTED DATA","ADECCO UK LIMITED","",,"232347975"
"London Borough of Redbridge","http://opendatacommunities.org/doc/london-borough-council/redbridge","5BGFHOUSING","General Fund Housing","5CHOUMGTSUPP","Housing Management & Support Services","REV","Revenue","R5511","Homelessness Grants","01-EMPLOYEES","Employees","01A","Direct employee expenses","4","Agency Staff - Pay","3276950","201401",08/04/2013 00:00:00,699.1,"31230","Employment & Recruitment Agencies","REDACTED DATA","ADECCO UK LIMITED","",,"232347975"
"London Borough of Redbridge","http://opendatacommunities.org/doc/london-borough-council/redbridge","5BGFHOUSING","General Fund Housing","5CHOUMGTSUPP","Housing Management & Support Services","REV","Revenue","R5511","Homelessness Grants","01-EMPLOYEES","Employees","01A","Direct employee expenses","4","Agency Staff - Pay","3276950","201401",08/04/2013 00:00:00,699.1,"31230","Employment & Recruitment Agencies","REDACTED DATA","ADECCO UK LIMITED","",,"232347975"
"London Borough of Redbridge","http://opendatacommunities.org/doc/london-borough-council/redbridge","1BOTHEROPI&E","Other Operating Income & Expenditure","1CTRADSURDEF","Trading Account Surpluses & Deficits","REV","Revenue","R9252","IT Services","01-EMPLOYEES","Employees","01A","Direct employee expenses","4","Agency Staff - Pay","3276950","201401",08/04/2013 00:00:00,686.09,"31230","Employment & Recruitment Agencies","REDACTED DATA","ADECCO UK LIMITED","",,"232347975"
"London Borough of Redbridge","http://opendatacommunities.org/doc/london-borough-council/redbridge","6BSOCIALSERV","Social Services","4CMANGT&SUPP","Management & Support Services","REV","Revenue","R2151","CQ and F Workforce Development","01-EMPLOYEES","Employees","01A","Direct employee expenses","4","Agency Staff - Pay","3276950","201401",08/04/2013 00:00:00,679.44,"31230","Employment & Recruitment Agencies","REDACTED DATA","ADECCO UK LIMITED","",,"232347975"
"London Borough of Redbridge","http://opendatacommunities.org/doc/london-borough-council/redbridge","6BSOCIALSERV","Social Services","6CCHILCOMSNG","Children's Services - Commissioning & Social Work","REV","Revenue","R2121","CLAFH - Business and Finance Social Care","01-EMPLOYEES","Employees","01A","Direct employee expenses","4","Agency Staff - Pay","3276950","201401",08/04/2013 00:00:00,673.89,"31230","Employment & Recruitment Agencies","REDACTED DATA","ADECCO UK LIMITED","",,"232347975"
"London Borough of Redbridge","http://opendatacommunities.org/doc/london-borough-council/redbridge","5BGFHOUSING","General Fund Housing","5CHOUSADVICE","Housing Advice","REV","Revenue","R5530","HAC Temporary Accomodation","01-EMPLOYEES","Employees","01A","Direct employee expenses","4","Agency Staff - Pay","3276950","201401",08/04/2013 00:00:00,672.75,"31230","Employment & Recruitment Agencies","REDACTED DATA","ADECCO UK LIMITED","",,"232347975"
"London Borough of Redbridge","http://opendatacommunities.org/doc/london-borough-council/redbridge","6BSOCIALSERV","Social Services","4CMANGT&SUPP","Management & Support Services","REV","Revenue","R2151","CQ and F Workforce Development","01-EMPLOYEES","Employees","01A","Direct employee expenses","4","Agency Staff - Pay","3276950","201401",08/04/2013 00:00:00,668.6,"31230","Employment & Recruitment Agencies","REDACTED DATA","ADECCO UK LIMITED","",,"232347975"
"London Borough of Redbridge","http://opendatacommunities.org/doc/london-borough-council/redbridge","3BLEACENTFND","LEA Centrally Held School Funds","3CSCHSTRATMG","Schools Strategic Management","REV","Revenue","R3174","Bus Supp - CLAFH","01-EMPLOYEES","Employees","01A","Direct employee expenses","4","Agency Staff - Pay","3276950","201401",08/04/2013 00:00:00,661.98,"31230","Employment & Recruitment Agencies","REDACTED DATA","ADECCO UK LIMITED","",,"232347975"
"London Borough of Redbridge","http://opendatacommunities.org/doc/london-borough-council/redbridge","3BLEACENTFND","LEA Centrally Held School Funds","3CSCHSTRATMG","Schools Strategic Management","REV","Revenue","R3174","Bus Supp - CLAFH","01-EMPLOYEES","Employees","01A","Direct employee expenses","4","Agency Staff - Pay","3276950","201401",08/04/2013 00:00:00,661.98,"31230","Employment & Recruitment Agencies","REDACTED DATA","ADECCO UK LIMITED","",,"232347975"
"London Borough of Redbridge","http://opendatacommunities.org/doc/london-borough-council/redbridge","3BLEACENTFND","LEA Centrally Held School Funds","3CSCHSTRATMG","Schools Strategic Management","REV","Revenue","R3174","Bus Supp - CLAFH","01-EMPLOYEES","Employees","01A","Direct employee expenses","4","Agency Staff - Pay","3276950","201401",08/04/2013 00:00:00,661.98,"31230","Employment & Recruitment Agencies","REDACTED DATA","ADECCO UK LIMITED","",,"232347975"
"London Borough of Redbridge","http://opendatacommunities.org/doc/london-borough-council/redbridge","3BLEACENTFND","LEA Centrally Held School Funds","3CSCHSTRATMG","Schools Strategic Management","REV","Revenue","R3176","Bus Supp - Non-Trust","01-EMPLOYEES","Employees","01A","Direct employee expenses","4","Agency Staff - Pay","3276950","201401",08/04/2013 00:00:00,656.35,"31230","Employment & Recruitment Agencies","REDACTED DATA","ADECCO UK LIMITED","",,"232347975"
"London Borough of Redbridge","http://opendatacommunities.org/doc/london-borough-council/redbridge","3BLEACENTFND","LEA Centrally Held School Funds","3CSCHSTRATMG","Schools Strategic Management","REV","Revenue","R3174","Bus Supp - CLAFH","01-EMPLOYEES","Employees","01A","Direct employee expenses","4","Agency Staff - Pay","3276950","201401",08/04/2013 00:00:00,652.51,"31230","Employment & Recruitment Agencies","REDACTED DATA","ADECCO UK LIMITED","",,"232347975"
"London Borough of Redbridge","http://opendatacommunities.org/doc/london-borough-council/redbridge","3BLEACENTFND","LEA Centrally Held School Funds","3CSCHSTRATMG","Schools Strategic Management","REV","Revenue","R3176","Bus Supp - Non-Trust","01-EMPLOYEES","Employees","01A","Direct employee expenses","4","Agency Staff - Pay","3276950","201401",08/04/2013 00:00:00,638.78,"31230","Employment & Recruitment Agencies","REDACTED DATA","ADECCO UK LIMITED","",,"232347975"
"London Borough of Redbridge","http://opendatacommunities.org/doc/london-borough-council/redbridge","3BLEACENTFND","LEA Centrally Held School Funds","3CSCHSTRATMG","Schools Strategic Management","REV","Revenue","R3176","Bus Supp - Non-Trust","01-EMPLOYEES","Employees","01A","Direct employee expenses","4","Agency Staff - Pay","3276950","201401",08/04/2013 00:00:00,638.78,"31230","Employment & Recruitment Agencies","REDACTED DATA","ADECCO UK LIMITED","",,"232347975"
"London Borough of Redbridge","http://opendatacommunities.org/doc/london-borough-council/redbridge","3BLEACENTFND","LEA Centrally Held School Funds","3CSCHSTRATMG","Schools Strategic Management","REV","Revenue","R3176","Bus Supp - Non-Trust","01-EMPLOYEES","Employees","01A","Direct employee expenses","4","Agency Staff - Pay","3276950","201401",08/04/2013 00:00:00,638.78,"31230","Employment & Recruitment Agencies","REDACTED DATA","ADECCO UK LIMITED","",,"232347975"
"London Borough of Redbridge","http://opendatacommunities.org/doc/london-borough-council/redbridge","5BGFHOUSING","General Fund Housing","5CHOUSADVICE","Housing Advice","REV","Revenue","R5530","HAC Temporary Accomodation","01-EMPLOYEES","Employees","01A","Direct employee expenses","4","Agency Staff - Pay","3276950","201401",08/04/2013 00:00:00,637.47,"31230","Employment & Recruitment Agencies","REDACTED DATA","ADECCO UK LIMITED","",,"232347975"
"London Borough of Redbridge","http://opendatacommunities.org/doc/london-borough-council/redbridge","3BLEACENTFND","LEA Centrally Held School Funds","3CSCHSTRATMG","Schools Strategic Management","REV","Revenue","R3174","Bus Supp - CLAFH","01-EMPLOYEES","Employees","01A","Direct employee expenses","4","Agency Staff - Pay","3276950","201401",08/04/2013 00:00:00,636.39,"31230","Employment & Recruitment Agencies","REDACTED DATA","ADECCO UK LIMITED","",,"232347975"
"London Borough of Redbridge","http://opendatacommunities.org/doc/london-borough-council/redbridge","3BLEACENTFND","LEA Centrally Held School Funds","3CSCHSTRATMG","Schools Strategic Management","REV","Revenue","R3174","Bus Supp - CLAFH","01-EMPLOYEES","Employees","01A","Direct employee expenses","4","Agency Staff - Pay","3276950","201401",08/04/2013 00:00:00,636.39,"31230","Employment & Recruitment Agencies","REDACTED DATA","ADECCO UK LIMITED","",,"232347975"
"London Borough of Redbridge","http://opendatacommunities.org/doc/london-borough-council/redbridge","3BLEACENTFND","LEA Centrally Held School Funds","3CSCHSTRATMG","Schools Strategic Management","REV","Revenue","R3174","Bus Supp - CLAFH","01-EMPLOYEES","Employees","01A","Direct employee expenses","4","Agency Staff - Pay","3276950","201401",08/04/2013 00:00:00,636.39,"31230","Employment & Recruitment Agencies","REDACTED DATA","ADECCO UK LIMITED","",,"232347975"
"London Borough of Redbridge","http://opendatacommunities.org/doc/london-borough-council/redbridge","3BLEACENTFND","LEA Centrally Held School Funds","3CSCHSTRATMG","Schools Strategic Management","REV","Revenue","R3271","Teachers Centre Deleg","01-EMPLOYEES","Employees","01A","Direct employee expenses","4","Agency Staff - Pay","3276950","201401",08/04/2013 00:00:00,633.89,"31230","Employment & Recruitment Agencies","REDACTED DATA","ADECCO UK LIMITED","",,"232347975"
"London Borough of Redbridge","http://opendatacommunities.org/doc/london-borough-council/redbridge","4BTRANSPORT","Transport Planning, Policy & Strategy","4CMANGT&SUPP","Management & Support Services","REV","Revenue","R7000","Highways Executive","01-EMPLOYEES","Employees","01A","Direct employee expenses","4","Agency Staff - Pay","3276950","201401",08/04/2013 00:00:00,621.41,"31230","Employment & Recruitment Agencies","REDACTED DATA","ADECCO UK LIMITED","",,"232347975"
"London Borough of Redbridge","http://opendatacommunities.org/doc/london-borough-council/redbridge","5BGFHOUSING","General Fund Housing","5CHOUSADVICE","Housing Advice","REV","Revenue","R5530","HAC Temporary Accomodation","01-EMPLOYEES","Employees","01A","Direct employee expenses","4","Agency Staff - Pay","3276950","201401",08/04/2013 00:00:00,617.06,"31230","Employment & Recruitment Agencies","REDACTED DATA","ADECCO UK LIMITED","",,"232347975"
"London Borough of Redbridge","http://opendatacommunities.org/doc/london-borough-council/redbridge","1BOTHEROPI&E","Other Operating Income & Expenditure","1CTRADSURDEF","Trading Account Surpluses & Deficits","REV","Revenue","R9252","IT Services","01-EMPLOYEES","Employees","01A","Direct employee expenses","4","Agency Staff - Pay","3276950","201401",08/04/2013 00:00:00,615.51,"31230","Employment & Recruitment Agencies","REDACTED DATA","ADECCO UK LIMITED","",,"232347975"
"London Borough of Redbridge","http://opendatacommunities.org/doc/london-borough-council/redbridge","4BTRANSPORT","Transport Planning, Policy & Strategy","4CMANGT&SUPP","Management & Support Services","REV","Revenue","R7000","Highways Executive","01-EMPLOYEES","Employees","01A","Direct employee expenses","4","Agency Staff - Pay","3276950","201401",08/04/2013 00:00:00,614.51,"31230","Employment & Recruitment Agencies","REDACTED DATA","ADECCO UK LIMITED","",,"232347975"
"London Borough of Redbridge","http://opendatacommunities.org/doc/london-borough-council/redbridge","3BNONSCHFUND","Non-School Funding","3CNONSCH","Non Schools","REV","Revenue","R3953","2 Year Old Funding","01-EMPLOYEES","Employees","01A","Direct employee expenses","4","Agency Staff - Pay","3276950","201401",08/04/2013 00:00:00,610.76,"31230","Employment & Recruitment Agencies","REDACTED DATA","ADECCO UK LIMITED","",,"232347975"
"London Borough of Redbridge","http://opendatacommunities.org/doc/london-borough-council/redbridge","9BNONBVO","Outside the BVACOP Objective Structure","9CNONBVO","Outside the BVACOP Objective Structure","REV","Revenue","R5219","Capital Programme Team","01-EMPLOYEES","Employees","01A","Direct employee expenses","4","Agency Staff - Pay","3276950","201401",08/04/2013 00:00:00,610.61,"31230","Employment & Recruitment Agencies","REDACTED DATA","ADECCO UK LIMITED","",,"232347975"
"London Borough of Redbridge","http://opendatacommunities.org/doc/london-borough-council/redbridge","9BNONBVO","Outside the BVACOP Objective Structure","9CNONBVO","Outside the BVACOP Objective Structure","REV","Revenue","R5219","Capital Programme Team","01-EMPLOYEES","Employees","01A","Direct employee expenses","4","Agency Staff - Pay","3276950","201401",08/04/2013 00:00:00,610.09,"31230","Employment & Recruitment Agencies","REDACTED DATA","ADECCO UK LIMITED","",,"232347975"
"London Borough of Redbridge","http://opendatacommunities.org/doc/london-borough-council/redbridge","9BNONBVO","Outside the BVACOP Objective Structure","9CNONBVO","Outside the BVACOP Objective Structure","REV","Revenue","R5219","Capital Programme Team","01-EMPLOYEES","Employees","01A","Direct employee expenses","4","Agency Staff - Pay","3276950","201401",08/04/2013 00:00:00,610.09,"31230","Employment & Recruitment Agencies","REDACTED DATA","ADECCO UK LIMITED","",,"232347975"
"London Borough of Redbridge","http://opendatacommunities.org/doc/london-borough-council/redbridge","3BLEACENTFND","LEA Centrally Held School Funds","3CFACILIMPRO","Facilitating School Improvement","REV","Revenue","R3240","Advisers/Inspectors","01-EMPLOYEES","Employees","01A","Direct employee expenses","4","Agency Staff - Pay","3276950","201401",08/04/2013 00:00:00,609.62,"31230","Employment & Recruitment Agencies","REDACTED DATA","ADECCO UK LIMITED","",,"232347975"
"London Borough of Redbridge","http://opendatacommunities.org/doc/london-borough-council/redbridge","4BTRANSPORT","Transport Planning, Policy & Strategy","4CMANGT&SUPP","Management & Support Services","REV","Revenue","R7000","Highways Executive","01-EMPLOYEES","Employees","01A","Direct employee expenses","4","Agency Staff - Pay","3276950","201401",08/04/2013 00:00:00,608.99,"31230","Employment & Recruitment Agencies","REDACTED DATA","ADECCO UK LIMITED","",,"232347975"
"London Borough of Redbridge","http://opendatacommunities.org/doc/london-borough-council/redbridge","3BLEACENTFND","LEA Centrally Held School Funds","3CFACILIMPRO","Facilitating School Improvement","REV","Revenue","R3240","Advisers/Inspectors","01-EMPLOYEES","Employees","01A","Direct employee expenses","4","Agency Staff - Pay","3276950","201401",08/04/2013 00:00:00,605.87,"31230","Employment & Recruitment Agencies","REDACTED DATA","ADECCO UK LIMITED","",,"232347975"
"London Borough of Redbridge","http://opendatacommunities.org/doc/london-borough-council/redbridge","5BGFHOUSING","General Fund Housing","5CHOUSADVICE","Housing Advice","REV","Revenue","R5530","HAC Temporary Accomodation","01-EMPLOYEES","Employees","01A","Direct employee expenses","4","Agency Staff - Pay","3276950","201401",08/04/2013 00:00:00,604.81,"31230","Employment & Recruitment Agencies","REDACTED DATA","ADECCO UK LIMITED","",,"232347975"
"London Borough of Redbridge","http://opendatacommunities.org/doc/london-borough-council/redbridge","6BSOCIALSERV","Social Services","6CCHILCOMSNG","Children's Services - Commissioning & Social Work","REV","Revenue","R2121","CLAFH - Business and Finance Social Care","01-EMPLOYEES","Employees","01A","Direct employee expenses","4","Agency Staff - Pay","3276950","201401",08/04/2013 00:00:00,598.89,"31230","Employment & Recruitment Agencies","REDACTED DATA","ADECCO UK LIMITED","",,"232347975"
"London Borough of Redbridge","http://opendatacommunities.org/doc/london-borough-council/redbridge","5BGFHOUSING","General Fund Housing","5CHOUSADVICE","Housing Advice","REV","Revenue","R5530","HAC Temporary Accomodation","01-EMPLOYEES","Employees","01A","Direct employee expenses","4","Agency Staff - Pay","3276950","201401",08/04/2013 00:00:00,596.64,"31230","Employment & Recruitment Agencies","REDACTED DATA","ADECCO UK LIMITED","",,"232347975"
"London Borough of Redbridge","http://opendatacommunities.org/doc/london-borough-council/redbridge","1BOTHEROPI&E","Other Operating Income & Expenditure","1CTRADSURDEF","Trading Account Surpluses & Deficits","REV","Revenue","R9460","Human Resources misc","01-EMPLOYEES","Employees","01A","Direct employee expenses","4","Agency Staff - Pay","3276950","201401",08/04/2013 00:00:00,595.81,"31230","Employment & Recruitment Agencies","REDACTED DATA","ADECCO UK LIMITED","",,"232347975"
"London Borough of Redbridge","http://opendatacommunities.org/doc/london-borough-council/redbridge","5BGFHOUSING","General Fund Housing","5CHOUMGTSUPP","Housing Management & Support Services","REV","Revenue","R5500","Housing Advice Centre","01-EMPLOYEES","Employees","01A","Direct employee expenses","4","Agency Staff - Pay","3276950","201401",08/04/2013 00:00:00,590.48,"31230","Employment & Recruitment Agencies","REDACTED DATA","ADECCO UK LIMITED","",,"232347975"
"London Borough of Redbridge","http://opendatacommunities.org/doc/london-borough-council/redbridge","5BGFHOUSING","General Fund Housing","5CHOUSADVICE","Housing Advice","REV","Revenue","R5530","HAC Temporary Accomodation","01-EMPLOYEES","Employees","01A","Direct employee expenses","4","Agency Staff - Pay","3276950","201401",08/04/2013 00:00:00,588.48,"31230","Employment & Recruitment Agencies","REDACTED DATA","ADECCO UK LIMITED","",,"232347975"
"London Borough of Redbridge","http://opendatacommunities.org/doc/london-borough-council/redbridge","2BPLAN&DEVEL","Planning & Development Services","2CCOMMDEVT","Community Development","REV","Revenue","R6510","Dev Management Tech","01-EMPLOYEES","Employees","01A","Direct employee expenses","4","Agency Staff - Pay","3276950","201401",08/04/2013 00:00:00,587.07,"31230","Employment & Recruitment Agencies","REDACTED DATA","ADECCO UK LIMITED","",,"232347975"
"London Borough of Redbridge","http://opendatacommunities.org/doc/london-borough-council/redbridge","4BTRANSPORT","Transport Planning, Policy & Strategy","4CMANGT&SUPP","Management & Support Services","REV","Revenue","R7000","Highways Executive","01-EMPLOYEES","Employees","01A","Direct employee expenses","4","Agency Staff - Pay","3276950","201401",08/04/2013 00:00:00,586.93,"31230","Employment & Recruitment Agencies","REDACTED DATA","ADECCO UK LIMITED","",,"232347975"
"London Borough of Redbridge","http://opendatacommunities.org/doc/london-borough-council/redbridge","4BTRANSPORT","Transport Planning, Policy & Strategy","4CMANGT&SUPP","Management & Support Services","REV","Revenue","R7000","Highways Executive","01-EMPLOYEES","Employees","01A","Direct employee expenses","4","Agency Staff - Pay","3276950","201401",08/04/2013 00:00:00,586.93,"31230","Employment & Recruitment Agencies","REDACTED DATA","ADECCO UK LIMITED","",,"232347975"
"London Borough of Redbridge","http://opendatacommunities.org/doc/london-borough-council/redbridge","5BGFHOUSING","General Fund Housing","5CHOUMGTSUPP","Housing Management & Support Services","REV","Revenue","R5500","Housing Advice Centre","01-EMPLOYEES","Employees","01A","Direct employee expenses","4","Agency Staff - Pay","3276950","201401",08/04/2013 00:00:00,586.41,"31230","Employment & Recruitment Agencies","REDACTED DATA","ADECCO UK LIMITED","",,"232347975"
"London Borough of Redbridge","http://opendatacommunities.org/doc/london-borough-council/redbridge","5BGFHOUSING","General Fund Housing","5CHOUMGTSUPP","Housing Management & Support Services","REV","Revenue","R5500","Housing Advice Centre","01-EMPLOYEES","Employees","01A","Direct employee expenses","4","Agency Staff - Pay","3276950","201401",08/04/2013 00:00:00,586.41,"31230","Employment & Recruitment Agencies","REDACTED DATA","ADECCO UK LIMITED","",,"232347975"
"London Borough of Redbridge","http://opendatacommunities.org/doc/london-borough-council/redbridge","4BTRANSPORT","Transport Planning, Policy & Strategy","4CMANGT&SUPP","Management & Support Services","REV","Revenue","R7000","Highways Executive","01-EMPLOYEES","Employees","01A","Direct employee expenses","4","Agency Staff - Pay","3276950","201401",08/04/2013 00:00:00,585.07,"31230","Employment & Recruitment Agencies","REDACTED DATA","ADECCO UK LIMITED","",,"232347975"
"London Borough of Redbridge","http://opendatacommunities.org/doc/london-borough-council/redbridge","5BGFHOUSING","General Fund Housing","5CHOUSADVICE","Housing Advice","REV","Revenue","R5530","HAC Temporary Accomodation","01-EMPLOYEES","Employees","01A","Direct employee expenses","4","Agency Staff - Pay","3276950","201401",08/04/2013 00:00:00,584.39,"31230","Employment & Recruitment Agencies","REDACTED DATA","ADECCO UK LIMITED","",,"232347975"
"London Borough of Redbridge","http://opendatacommunities.org/doc/london-borough-council/redbridge","1BOTHEROPI&E","Other Operating Income & Expenditure","1CTRADSURDEF","Trading Account Surpluses & Deficits","REV","Revenue","R9460","Human Resources misc","01-EMPLOYEES","Employees","01A","Direct employee expenses","4","Agency Staff - Pay","3276950","201401",08/04/2013 00:00:00,582.99,"31230","Employment & Recruitment Agencies","REDACTED DATA","ADECCO UK LIMITED","",,"232347975"
"London Borough of Redbridge","http://opendatacommunities.org/doc/london-borough-council/redbridge","3BLEACENTFND","LEA Centrally Held School Funds","3CSCHSTRATMG","Schools Strategic Management","REV","Revenue","R3176","Bus Supp - Non-Trust","01-EMPLOYEES","Employees","01A","Direct employee expenses","4","Agency Staff - Pay","3276950","201401",08/04/2013 00:00:00,582.29,"31230","Employment & Recruitment Agencies","REDACTED DATA","ADECCO UK LIMITED","",,"232347975"
"London Borough of Redbridge","http://opendatacommunities.org/doc/london-borough-council/redbridge","4BTRANSPORT","Transport Planning, Policy & Strategy","4CMANGT&SUPP","Management & Support Services","REV","Revenue","R7000","Highways Executive","01-EMPLOYEES","Employees","01A","Direct employee expenses","4","Agency Staff - Pay","3276950","201401",08/04/2013 00:00:00,580.04,"31230","Employment & Recruitment Agencies","REDACTED DATA","ADECCO UK LIMITED","",,"232347975"
"London Borough of Redbridge","http://opendatacommunities.org/doc/london-borough-council/redbridge","5BGFHOUSING","General Fund Housing","5CHOUMGTSUPP","Housing Management & Support Services","REV","Revenue","R5500","Housing Advice Centre","01-EMPLOYEES","Employees","01A","Direct employee expenses","4","Agency Staff - Pay","3276950","201401",08/04/2013 00:00:00,578.28,"31230","Employment & Recruitment Agencies","REDACTED DATA","ADECCO UK LIMITED","",,"232347975"
"London Borough of Redbridge","http://opendatacommunities.org/doc/london-borough-council/redbridge","3BLEACENTFND","LEA Centrally Held School Funds","3CSCHSTRATMG","Schools Strategic Management","REV","Revenue","R3176","Bus Supp - Non-Trust","01-EMPLOYEES","Employees","01A","Direct employee expenses","4","Agency Staff - Pay","3276950","201401",08/04/2013 00:00:00,572.85,"31230","Employment & Recruitment Agencies","REDACTED DATA","ADECCO UK LIMITED","",,"232347975"
"London Borough of Redbridge","http://opendatacommunities.org/doc/london-borough-council/redbridge","6BSOCIALSERV","Social Services","4CMANGT&SUPP","Management & Support Services","REV","Revenue","R2151","CQ and F Workforce Development","01-EMPLOYEES","Employees","01A","Direct employee expenses","4","Agency Staff - Pay","3276950","201401",08/04/2013 00:00:00,571.02,"31230","Employment & Recruitment Agencies","REDACTED DATA","ADECCO UK LIMITED","",,"232347975"
"London Borough of Redbridge","http://opendatacommunities.org/doc/london-borough-council/redbridge","1BOTHEROPI&E","Other Operating Income & Expenditure","1CTRADSURDEF","Trading Account Surpluses & Deficits","REV","Revenue","R9003","One Stop Shop","01-EMPLOYEES","Employees","01A","Direct employee expenses","4","Agency Staff - Pay","3276950","201401",08/04/2013 00:00:00,564.94,"31230","Employment & Recruitment Agencies","REDACTED DATA","ADECCO UK LIMITED","",,"232347975"
"London Borough of Redbridge","http://opendatacommunities.org/doc/london-borough-council/redbridge","6BSOCIALSERV","Social Services","6CCHILCOMSNG","Children's Services - Commissioning & Social Work","REV","Revenue","R2121","CLAFH - Business and Finance Social Care","01-EMPLOYEES","Employees","01A","Direct employee expenses","4","Agency Staff - Pay","3276950","201401",08/04/2013 00:00:00,564.9,"31230","Employment & Recruitment Agencies","REDACTED DATA","ADECCO UK LIMITED","",,"232347975"
"London Borough of Redbridge","http://opendatacommunities.org/doc/london-borough-council/redbridge","5BGFHOUSING","General Fund Housing","5CHOUMGTSUPP","Housing Management & Support Services","REV","Revenue","R5529","HAC Assessment","01-EMPLOYEES","Employees","01A","Direct employee expenses","4","Agency Staff - Pay","3276950","201401",08/04/2013 00:00:00,562.54,"31230","Employment & Recruitment Agencies","REDACTED DATA","ADECCO UK LIMITED","",,"232347975"
"London Borough of Redbridge","http://opendatacommunities.org/doc/london-borough-council/redbridge","1BOTHEROPI&E","Other Operating Income & Expenditure","1CTRADSURDEF","Trading Account Surpluses & Deficits","REV","Revenue","R9460","Human Resources misc","01-EMPLOYEES","Employees","01A","Direct employee expenses","4","Agency Staff - Pay","3276950","201401",08/04/2013 00:00:00,561.6,"31230","Employment & Recruitment Agencies","REDACTED DATA","ADECCO UK LIMITED","",,"232347975"
"London Borough of Redbridge","http://opendatacommunities.org/doc/london-borough-council/redbridge","3BLEACENTFND","LEA Centrally Held School Funds","3CSCHSTRATMG","Schools Strategic Management","REV","Revenue","R3176","Bus Supp - Non-Trust","01-EMPLOYEES","Employees","01A","Direct employee expenses","4","Agency Staff - Pay","3276950","201401",08/04/2013 00:00:00,557.45,"31230","Employment & Recruitment Agencies","REDACTED DATA","ADECCO UK LIMITED","",,"232347975"
"London Borough of Redbridge","http://opendatacommunities.org/doc/london-borough-council/redbridge","5BGFHOUSING","General Fund Housing","5CHOUSADVICE","Housing Advice","REV","Revenue","R5530","HAC Temporary Accomodation","01-EMPLOYEES","Employees","01A","Direct employee expenses","4","Agency Staff - Pay","3276950","201401",08/04/2013 00:00:00,551.73,"31230","Employment & Recruitment Agencies","REDACTED DATA","ADECCO UK LIMITED","",,"232347975"
"London Borough of Redbridge","http://opendatacommunities.org/doc/london-borough-council/redbridge","6BSOCIALSERV","Social Services","6CCHILCOMSNG","Children's Services - Commissioning & Social Work","REV","Revenue","R2121","CLAFH - Business and Finance Social Care","01-EMPLOYEES","Employees","01A","Direct employee expenses","4","Agency Staff - Pay","3276950","201401",08/04/2013 00:00:00,542.64,"31230","Employment & Recruitment Agencies","REDACTED DATA","ADECCO UK LIMITED","",,"232347975"
"London Borough of Redbridge","http://opendatacommunities.org/doc/london-borough-council/redbridge","6BSOCIALSERV","Social Services","4CMANGT&SUPP","Management & Support Services","REV","Revenue","R2151","CQ and F Workforce Development","01-EMPLOYEES","Employees","01A","Direct employee expenses","4","Agency Staff - Pay","3276950","201401",08/04/2013 00:00:00,538.5,"31230","Employment & Recruitment Agencies","REDACTED DATA","ADECCO UK LIMITED","",,"232347975"
"London Borough of Redbridge","http://opendatacommunities.org/doc/london-borough-council/redbridge","2BPLAN&DEVEL","Planning & Development Services","2CCOMMDEVT","Community Development","REV","Revenue","R6510","Dev Management Tech","01-EMPLOYEES","Employees","01A","Direct employee expenses","4","Agency Staff - Pay","3276950","201401",08/04/2013 00:00:00,537.83,"31230","Employment & Recruitment Agencies","REDACTED DATA","ADECCO UK LIMITED","",,"232347975"
"London Borough of Redbridge","http://opendatacommunities.org/doc/london-borough-council/redbridge","3BLEACENTFND","LEA Centrally Held School Funds","3CSCHSTRATMG","Schools Strategic Management","REV","Revenue","R3175","Bus Supp - SEND, CQF","01-EMPLOYEES","Employees","01A","Direct employee expenses","4","Agency Staff - Pay","3276950","201401",08/04/2013 00:00:00,534.97,"31230","Employment & Recruitment Agencies","REDACTED DATA","ADECCO UK LIMITED","",,"232347975"
"London Borough of Redbridge","http://opendatacommunities.org/doc/london-borough-council/redbridge","3BINDSCHFUND","Individual School Funds","3CFACILIMPRO","Facilitating School Improvement","REV","Revenue","R3436","Research and Data Team","01-EMPLOYEES","Employees","01A","Direct employee expenses","4","Agency Staff - Pay","3276950","201401",08/04/2013 00:00:00,528.6,"31230","Employment & Recruitment Agencies","REDACTED DATA","ADECCO UK LIMITED","",,"232347975"
"London Borough of Redbridge","http://opendatacommunities.org/doc/london-borough-council/redbridge","3BLEACENTFND","LEA Centrally Held School Funds","3CSCHSTRATMG","Schools Strategic Management","REV","Revenue","R3175","Bus Supp - SEND, CQF","01-EMPLOYEES","Employees","01A","Direct employee expenses","4","Agency Staff - Pay","3276950","201401",08/04/2013 00:00:00,524.97,"31230","Employment & Recruitment Agencies","REDACTED DATA","ADECCO UK LIMITED","",,"232347975"
"London Borough of Redbridge","http://opendatacommunities.org/doc/london-borough-council/redbridge","3BLEACENTFND","LEA Centrally Held School Funds","3CSCHSTRATMG","Schools Strategic Management","REV","Revenue","R3175","Bus Supp - SEND, CQF","01-EMPLOYEES","Employees","01A","Direct employee expenses","4","Agency Staff - Pay","3276950","201401",08/04/2013 00:00:00,524.97,"31230","Employment & Recruitment Agencies","REDACTED DATA","ADECCO UK LIMITED","",,"232347975"
"London Borough of Redbridge","http://opendatacommunities.org/doc/london-borough-council/redbridge","5BGFHOUSING","General Fund Housing","5CHOUSADVICE","Housing Advice","REV","Revenue","R5530","HAC Temporary Accomodation","01-EMPLOYEES","Employees","01A","Direct employee expenses","4","Agency Staff - Pay","3276950","201401",08/04/2013 00:00:00,521.81,"31230","Employment & Recruitment Agencies","REDACTED DATA","ADECCO UK LIMITED","",,"232347975"
"London Borough of Redbridge","http://opendatacommunities.org/doc/london-borough-council/redbridge","2BPLAN&DEVEL","Planning & Development Services","2CCOMMDEVT","Community Development","REV","Revenue","R6510","Dev Management Tech","01-EMPLOYEES","Employees","01A","Direct employee expenses","4","Agency Staff - Pay","3276950","201401",08/04/2013 00:00:00,520.13,"31230","Employment & Recruitment Agencies","REDACTED DATA","ADECCO UK LIMITED","",,"232347975"
"London Borough of Redbridge","http://opendatacommunities.org/doc/london-borough-council/redbridge","4BTRANSPORT","Transport Planning, Policy & Strategy","4CMANGT&SUPP","Management & Support Services","REV","Revenue","R7000","Highways Executive","01-EMPLOYEES","Employees","01A","Direct employee expenses","4","Agency Staff - Pay","3276950","201401",08/04/2013 00:00:00,517.98,"31230","Employment & Recruitment Agencies","REDACTED DATA","ADECCO UK LIMITED","",,"232347975"
"London Borough of Redbridge","http://opendatacommunities.org/doc/london-borough-council/redbridge","3BLEACENTFND","LEA Centrally Held School Funds","3CSCHSTRATMG","Schools Strategic Management","REV","Revenue","R3174","Bus Supp - CLAFH","01-EMPLOYEES","Employees","01A","Direct employee expenses","4","Agency Staff - Pay","3276950","201401",08/04/2013 00:00:00,514.22,"31230","Employment & Recruitment Agencies","REDACTED DATA","ADECCO UK LIMITED","",,"232347975"
"London Borough of Redbridge","http://opendatacommunities.org/doc/london-borough-council/redbridge","3BINDSCHFUND","Individual School Funds","3CFACILIMPRO","Facilitating School Improvement","REV","Revenue","R3436","Research and Data Team","01-EMPLOYEES","Employees","01A","Direct employee expenses","4","Agency Staff - Pay","3276950","201401",08/04/2013 00:00:00,513.26,"31230","Employment & Recruitment Agencies","REDACTED DATA","ADECCO UK LIMITED","",,"232347975"
"London Borough of Redbridge","http://opendatacommunities.org/doc/london-borough-council/redbridge","1BOTHEROPI&E","Other Operating Income & Expenditure","1CTRADSURDEF","Trading Account Surpluses & Deficits","REV","Revenue","R9460","Human Resources misc","01-EMPLOYEES","Employees","01A","Direct employee expenses","4","Agency Staff - Pay","3276950","201401",08/04/2013 00:00:00,509.99,"31230","Employment & Recruitment Agencies","REDACTED DATA","ADECCO UK LIMITED","",,"232347975"
"London Borough of Redbridge","http://opendatacommunities.org/doc/london-borough-council/redbridge","5BGFHOUSING","General Fund Housing","5CHOUSADVICE","Housing Advice","REV","Revenue","R5530","HAC Temporary Accomodation","01-EMPLOYEES","Employees","01A","Direct employee expenses","4","Agency Staff - Pay","3276950","201401",08/04/2013 00:00:00,508.88,"31230","Employment & Recruitment Agencies","REDACTED DATA","ADECCO UK LIMITED","",,"232347975"
"London Borough of Redbridge","http://opendatacommunities.org/doc/london-borough-council/redbridge","5BGFHOUSING","General Fund Housing","5CHOUSADVICE","Housing Advice","REV","Revenue","R5533","Hylefords TA Refurbishment Project","01-EMPLOYEES","Employees","01A","Direct employee expenses","4","Agency Staff - Pay","3276950","201401",08/04/2013 00:00:00,505.34,"31230","Employment & Recruitment Agencies","REDACTED DATA","ADECCO UK LIMITED","",,"232347975"
"London Borough of Redbridge","http://opendatacommunities.org/doc/london-borough-council/redbridge","3BLEACENTFND","LEA Centrally Held School Funds","3CSCHSTRATMG","Schools Strategic Management","REV","Revenue","R3174","Bus Supp - CLAFH","01-EMPLOYEES","Employees","01A","Direct employee expenses","4","Agency Staff - Pay","3276950","201401",08/04/2013 00:00:00,505.13,"31230","Employment & Recruitment Agencies","REDACTED DATA","ADECCO UK LIMITED","",,"232347975"
"London Borough of Redbridge","http://opendatacommunities.org/doc/london-borough-council/redbridge","1BOTHEROPI&E","Other Operating Income & Expenditure","1CTRADSURDEF","Trading Account Surpluses & Deficits","REV","Revenue","R9460","Human Resources misc","01-EMPLOYEES","Employees","01A","Direct employee expenses","4","Agency Staff - Pay","3276950","201401",08/04/2013 00:00:00,504.19,"31230","Employment & Recruitment Agencies","REDACTED DATA","ADECCO UK LIMITED","",,"232347975"
"London Borough of Redbridge","http://opendatacommunities.org/doc/london-borough-council/redbridge","2BPLAN&DEVEL","Planning & Development Services","2CCOMMDEVT","Community Development","REV","Revenue","R6510","Dev Management Tech","01-EMPLOYEES","Employees","01A","Direct employee expenses","4","Agency Staff - Pay","3276950","201401",08/04/2013 00:00:00,503.04,"31230","Employment & Recruitment Agencies","REDACTED DATA","ADECCO UK LIMITED","",,"232347975"
"London Borough of Redbridge","http://opendatacommunities.org/doc/london-borough-council/redbridge","3BINDSCHFUND","Individual School Funds","3CFACILIMPRO","Facilitating School Improvement","REV","Revenue","R3436","Research and Data Team","01-EMPLOYEES","Employees","01A","Direct employee expenses","4","Agency Staff - Pay","3276950","201401",08/04/2013 00:00:00,501.75,"31230","Employment & Recruitment Agencies","REDACTED DATA","ADECCO UK LIMITED","",,"232347975"
"London Borough of Redbridge","http://opendatacommunities.org/doc/london-borough-council/redbridge","3BINDSCHFUND","Individual School Funds","3CFACILIMPRO","Facilitating School Improvement","REV","Revenue","R3436","Research and Data Team","01-EMPLOYEES","Employees","01A","Direct employee expenses","4","Agency Staff - Pay","3276950","201401",08/04/2013 00:00:00,497.92,"31230","Employment & Recruitment Agencies","REDACTED DATA","ADECCO UK LIMITED","",,"232347975"
"London Borough of Redbridge","http://opendatacommunities.org/doc/london-borough-council/redbridge","5BGFHOUSING","General Fund Housing","5CHOUMGTSUPP","Housing Management & Support Services","REV","Revenue","R5529","HAC Assessment","01-EMPLOYEES","Employees","01A","Direct employee expenses","4","Agency Staff - Pay","3276950","201401",08/04/2013 00:00:00,497.29,"31230","Employment & Recruitment Agencies","REDACTED DATA","ADECCO UK LIMITED","",,"232347975"
"London Borough of Redbridge","http://opendatacommunities.org/doc/london-borough-council/redbridge","5BGFHOUSING","General Fund Housing","5CHOUMGTSUPP","Housing Management & Support Services","REV","Revenue","R5529","HAC Assessment","01-EMPLOYEES","Employees","01A","Direct employee expenses","4","Agency Staff - Pay","3276950","201401",08/04/2013 00:00:00,497.29,"31230","Employment & Recruitment Agencies","REDACTED DATA","ADECCO UK LIMITED","",,"232347975"
"London Borough of Redbridge","http://opendatacommunities.org/doc/london-borough-council/redbridge","5BGFHOUSING","General Fund Housing","5CHOUMGTSUPP","Housing Management & Support Services","REV","Revenue","R5529","HAC Assessment","01-EMPLOYEES","Employees","01A","Direct employee expenses","4","Agency Staff - Pay","3276950","201401",08/04/2013 00:00:00,497.29,"31230","Employment & Recruitment Agencies","REDACTED DATA","ADECCO UK LIMITED","",,"232347975"
"London Borough of Redbridge","http://opendatacommunities.org/doc/london-borough-council/redbridge","4BTRANSPORT","Transport Planning, Policy & Strategy","4CMANGT&SUPP","Management & Support Services","REV","Revenue","R7000","Highways Executive","01-EMPLOYEES","Employees","01A","Direct employee expenses","4","Agency Staff - Pay","3276950","201401",08/04/2013 00:00:00,496.21,"31230","Employment & Recruitment Agencies","REDACTED DATA","ADECCO UK LIMITED","",,"232347975"
"London Borough of Redbridge","http://opendatacommunities.org/doc/london-borough-council/redbridge","1BCENTRALPUB","Central Services to the Public","1CTRADSURDEF","Trading Account Surpluses & Deficits","REV","Revenue","R5753","Cashiers","01-EMPLOYEES","Employees","01A","Direct employee expenses","4","Agency Staff - Pay","3276950","201401",08/04/2013 00:00:00,492.79,"31230","Employment & Recruitment Agencies","REDACTED DATA","ADECCO UK LIMITED","",,"232347975"
"London Borough of Redbridge","http://opendatacommunities.org/doc/london-borough-council/redbridge","1BCENTRALPUB","Central Services to the Public","1CTRADSURDEF","Trading Account Surpluses & Deficits","REV","Revenue","R5753","Cashiers","01-EMPLOYEES","Employees","01A","Direct employee expenses","4","Agency Staff - Pay","3276950","201401",08/04/2013 00:00:00,492.79,"31230","Employment & Recruitment Agencies","REDACTED DATA","ADECCO UK LIMITED","",,"232347975"
"London Borough of Redbridge","http://opendatacommunities.org/doc/london-borough-council/redbridge","2BPLAN&DEVEL","Planning & Development Services","2CCOMMDEVT","Community Development","REV","Revenue","R6510","Dev Management Tech","01-EMPLOYEES","Employees","01A","Direct employee expenses","4","Agency Staff - Pay","3276950","201401",08/04/2013 00:00:00,492.79,"31230","Employment & Recruitment Agencies","REDACTED DATA","ADECCO UK LIMITED","",,"232347975"
"London Borough of Redbridge","http://opendatacommunities.org/doc/london-borough-council/redbridge","2BPLAN&DEVEL","Planning & Development Services","2CCOMMDEVT","Community Development","REV","Revenue","R9855","Safer Communities Core Budget","01-EMPLOYEES","Employees","01A","Direct employee expenses","4","Agency Staff - Pay","3276950","201401",08/04/2013 00:00:00,492.79,"31230","Employment & Recruitment Agencies","REDACTED DATA","ADECCO UK LIMITED","",,"232347975"
"London Borough of Redbridge","http://opendatacommunities.org/doc/london-borough-council/redbridge","2BPLAN&DEVEL","Planning & Development Services","2CCOMMDEVT","Community Development","REV","Revenue","R9855","Safer Communities Core Budget","01-EMPLOYEES","Employees","01A","Direct employee expenses","4","Agency Staff - Pay","3276950","201401",08/04/2013 00:00:00,492.79,"31230","Employment & Recruitment Agencies","REDACTED DATA","ADECCO UK LIMITED","",,"232347975"
"London Borough of Redbridge","http://opendatacommunities.org/doc/london-borough-council/redbridge","5BGFHOUSING","General Fund Housing","5CHOUSADVICE","Housing Advice","REV","Revenue","R5530","HAC Temporary Accomodation","01-EMPLOYEES","Employees","01A","Direct employee expenses","4","Agency Staff - Pay","3276950","201401",08/04/2013 00:00:00,491.62,"31230","Employment & Recruitment Agencies","REDACTED DATA","ADECCO UK LIMITED","",,"232347975"
"London Borough of Redbridge","http://opendatacommunities.org/doc/london-borough-council/redbridge","1BOTHEROPI&E","Other Operating Income & Expenditure","1CTRADSURDEF","Trading Account Surpluses & Deficits","REV","Revenue","R9460","Human Resources misc","01-EMPLOYEES","Employees","01A","Direct employee expenses","4","Agency Staff - Pay","3276950","201401",08/04/2013 00:00:00,483.5,"31230","Employment & Recruitment Agencies","REDACTED DATA","ADECCO UK LIMITED","",,"232347975"
"London Borough of Redbridge","http://opendatacommunities.org/doc/london-borough-council/redbridge","1BOTHEROPI&E","Other Operating Income & Expenditure","1CTRADSURDEF","Trading Account Surpluses & Deficits","REV","Revenue","R9460","Human Resources misc","01-EMPLOYEES","Employees","01A","Direct employee expenses","4","Agency Staff - Pay","3276950","201401",08/04/2013 00:00:00,483.5,"31230","Employment & Recruitment Agencies","REDACTED DATA","ADECCO UK LIMITED","",,"232347975"
"London Borough of Redbridge","http://opendatacommunities.org/doc/london-borough-council/redbridge","1BOTHEROPI&E","Other Operating Income & Expenditure","1CTRADSURDEF","Trading Account Surpluses & Deficits","REV","Revenue","R9460","Human Resources misc","01-EMPLOYEES","Employees","01A","Direct employee expenses","4","Agency Staff - Pay","3276950","201401",08/04/2013 00:00:00,480.05,"31230","Employment & Recruitment Agencies","REDACTED DATA","ADECCO UK LIMITED","",,"232347975"
"London Borough of Redbridge","http://opendatacommunities.org/doc/london-borough-council/redbridge","1BOTHEROPI&E","Other Operating Income & Expenditure","1CTRADSURDEF","Trading Account Surpluses & Deficits","REV","Revenue","R9460","Human Resources misc","01-EMPLOYEES","Employees","01A","Direct employee expenses","4","Agency Staff - Pay","3276950","201401",08/04/2013 00:00:00,479.75,"31230","Employment & Recruitment Agencies","REDACTED DATA","ADECCO UK LIMITED","",,"232347975"
"London Borough of Redbridge","http://opendatacommunities.org/doc/london-borough-council/redbridge","3BNONSCHFUND","Non-School Funding","3CNONSCH","Non Schools","REV","Revenue","R3953","2 Year Old Funding","01-EMPLOYEES","Employees","01A","Direct employee expenses","4","Agency Staff - Pay","3276950","201401",08/04/2013 00:00:00,478.63,"31230","Employment & Recruitment Agencies","REDACTED DATA","ADECCO UK LIMITED","",,"232347975"
"London Borough of Redbridge","http://opendatacommunities.org/doc/london-borough-council/redbridge","1BOTHEROPI&E","Other Operating Income & Expenditure","1CTRADSURDEF","Trading Account Surpluses & Deficits","REV","Revenue","R9460","Human Resources misc","01-EMPLOYEES","Employees","01A","Direct employee expenses","4","Agency Staff - Pay","3276950","201401",08/04/2013 00:00:00,476.6,"31230","Employment & Recruitment Agencies","REDACTED DATA","ADECCO UK LIMITED","",,"232347975"
"London Borough of Redbridge","http://opendatacommunities.org/doc/london-borough-council/redbridge","1BOTHEROPI&E","Other Operating Income & Expenditure","1CTRADSURDEF","Trading Account Surpluses & Deficits","REV","Revenue","R9460","Human Resources misc","01-EMPLOYEES","Employees","01A","Direct employee expenses","4","Agency Staff - Pay","3276950","201401",08/04/2013 00:00:00,476.6,"31230","Employment & Recruitment Agencies","REDACTED DATA","ADECCO UK LIMITED","",,"232347975"
"London Borough of Redbridge","http://opendatacommunities.org/doc/london-borough-council/redbridge","1BOTHEROPI&E","Other Operating Income & Expenditure","1CTRADSURDEF","Trading Account Surpluses & Deficits","REV","Revenue","R9460","Human Resources misc","01-EMPLOYEES","Employees","01A","Direct employee expenses","4","Agency Staff - Pay","3276950","201401",08/04/2013 00:00:00,476.6,"31230","Employment & Recruitment Agencies","REDACTED DATA","ADECCO UK LIMITED","",,"232347975"
"London Borough of Redbridge","http://opendatacommunities.org/doc/london-borough-council/redbridge","1BOTHEROPI&E","Other Operating Income & Expenditure","1CTRADSURDEF","Trading Account Surpluses & Deficits","REV","Revenue","R9460","Human Resources misc","01-EMPLOYEES","Employees","01A","Direct employee expenses","4","Agency Staff - Pay","3276950","201401",08/04/2013 00:00:00,476.6,"31230","Employment & Recruitment Agencies","REDACTED DATA","ADECCO UK LIMITED","",,"232347975"
"London Borough of Redbridge","http://opendatacommunities.org/doc/london-borough-council/redbridge","1BOTHEROPI&E","Other Operating Income & Expenditure","1CTRADSURDEF","Trading Account Surpluses & Deficits","REV","Revenue","R9460","Human Resources misc","01-EMPLOYEES","Employees","01A","Direct employee expenses","4","Agency Staff - Pay","3276950","201401",08/04/2013 00:00:00,476.6,"31230","Employment & Recruitment Agencies","REDACTED DATA","ADECCO UK LIMITED","",,"232347975"
"London Borough of Redbridge","http://opendatacommunities.org/doc/london-borough-council/redbridge","1BOTHEROPI&E","Other Operating Income & Expenditure","1CTRADSURDEF","Trading Account Surpluses & Deficits","REV","Revenue","R9460","Human Resources misc","01-EMPLOYEES","Employees","01A","Direct employee expenses","4","Agency Staff - Pay","3276950","201401",08/04/2013 00:00:00,476.6,"31230","Employment & Recruitment Agencies","REDACTED DATA","ADECCO UK LIMITED","",,"232347975"
"London Borough of Redbridge","http://opendatacommunities.org/doc/london-borough-council/redbridge","1BOTHEROPI&E","Other Operating Income & Expenditure","1CTRADSURDEF","Trading Account Surpluses & Deficits","REV","Revenue","R9460","Human Resources misc","01-EMPLOYEES","Employees","01A","Direct employee expenses","4","Agency Staff - Pay","3276950","201401",08/04/2013 00:00:00,476.6,"31230","Employment & Recruitment Agencies","REDACTED DATA","ADECCO UK LIMITED","",,"232347975"
"London Borough of Redbridge","http://opendatacommunities.org/doc/london-borough-council/redbridge","1BOTHEROPI&E","Other Operating Income & Expenditure","1CTRADSURDEF","Trading Account Surpluses & Deficits","REV","Revenue","R9596","Property Support","01-EMPLOYEES","Employees","01A","Direct employee expenses","4","Agency Staff - Pay","3276950","201401",08/04/2013 00:00:00,476.6,"31230","Employment & Recruitment Agencies","REDACTED DATA","ADECCO UK LIMITED","",,"232347975"
"London Borough of Redbridge","http://opendatacommunities.org/doc/london-borough-council/redbridge","1BOTHEROPI&E","Other Operating Income & Expenditure","1CTRADSURDEF","Trading Account Surpluses & Deficits","REV","Revenue","R9596","Property Support","01-EMPLOYEES","Employees","01A","Direct employee expenses","4","Agency Staff - Pay","3276950","201401",08/04/2013 00:00:00,476.6,"31230","Employment & Recruitment Agencies","REDACTED DATA","ADECCO UK LIMITED","",,"232347975"
"London Borough of Redbridge","http://opendatacommunities.org/doc/london-borough-council/redbridge","1BOTHEROPI&E","Other Operating Income & Expenditure","1CTRADSURDEF","Trading Account Surpluses & Deficits","REV","Revenue","R9596","Property Support","01-EMPLOYEES","Employees","01A","Direct employee expenses","4","Agency Staff - Pay","3276950","201401",08/04/2013 00:00:00,476.6,"31230","Employment & Recruitment Agencies","REDACTED DATA","ADECCO UK LIMITED","",,"232347975"
"London Borough of Redbridge","http://opendatacommunities.org/doc/london-borough-council/redbridge","1BOTHEROPI&E","Other Operating Income & Expenditure","1CTRADSURDEF","Trading Account Surpluses & Deficits","REV","Revenue","R9596","Property Support","01-EMPLOYEES","Employees","01A","Direct employee expenses","4","Agency Staff - Pay","3276950","201401",08/04/2013 00:00:00,476.6,"31230","Employment & Recruitment Agencies","REDACTED DATA","ADECCO UK LIMITED","",,"232347975"
"London Borough of Redbridge","http://opendatacommunities.org/doc/london-borough-council/redbridge","6BSOCIALSERV","Social Services","6CCHILLOOKED","Children Looked After","REV","Revenue","R2140","CQ and F - Safeguarding and Care Planning Soc Care","01-EMPLOYEES","Employees","01A","Direct employee expenses","4","Agency Staff - Pay","3276950","201401",08/04/2013 00:00:00,476.6,"31230","Employment & Recruitment Agencies","REDACTED DATA","ADECCO UK LIMITED","",,"232347975"
"London Borough of Redbridge","http://opendatacommunities.org/doc/london-borough-council/redbridge","1BCENTRALPUB","Central Services to the Public","1CTRADSURDEF","Trading Account Surpluses & Deficits","REV","Revenue","R5753","Cashiers","01-EMPLOYEES","Employees","01A","Direct employee expenses","4","Agency Staff - Pay","3276950","201401",08/04/2013 00:00:00,475.7,"31230","Employment & Recruitment Agencies","REDACTED DATA","ADECCO UK LIMITED","",,"232347975"
"London Borough of Redbridge","http://opendatacommunities.org/doc/london-borough-council/redbridge","9BNONBVO","Outside the BVACOP Objective Structure","9CNONBVO","Outside the BVACOP Objective Structure","REV","Revenue","R5210","Customer Services Team","01-EMPLOYEES","Employees","01A","Direct employee expenses","4","Agency Staff - Pay","3276950","201401",08/04/2013 00:00:00,474.67,"31230","Employment & Recruitment Agencies","REDACTED DATA","ADECCO UK LIMITED","",,"232347975"
"London Borough of Redbridge","http://opendatacommunities.org/doc/london-borough-council/redbridge","9BNONBVO","Outside the BVACOP Objective Structure","9CNONBVO","Outside the BVACOP Objective Structure","REV","Revenue","R5210","Customer Services Team","01-EMPLOYEES","Employees","01A","Direct employee expenses","4","Agency Staff - Pay","3276950","201401",08/04/2013 00:00:00,474.67,"31230","Employment & Recruitment Agencies","REDACTED DATA","ADECCO UK LIMITED","",,"232347975"
"London Borough of Redbridge","http://opendatacommunities.org/doc/london-borough-council/redbridge","9BNONBVO","Outside the BVACOP Objective Structure","9CNONBVO","Outside the BVACOP Objective Structure","REV","Revenue","R5210","Customer Services Team","01-EMPLOYEES","Employees","01A","Direct employee expenses","4","Agency Staff - Pay","3276950","201401",08/04/2013 00:00:00,474.67,"31230","Employment & Recruitment Agencies","REDACTED DATA","ADECCO UK LIMITED","",,"232347975"
"London Borough of Redbridge","http://opendatacommunities.org/doc/london-borough-council/redbridge","9BNONBVO","Outside the BVACOP Objective Structure","9CNONBVO","Outside the BVACOP Objective Structure","REV","Revenue","R5210","Customer Services Team","01-EMPLOYEES","Employees","01A","Direct employee expenses","4","Agency Staff - Pay","3276950","201401",08/04/2013 00:00:00,474.67,"31230","Employment & Recruitment Agencies","REDACTED DATA","ADECCO UK LIMITED","",,"232347975"
"London Borough of Redbridge","http://opendatacommunities.org/doc/london-borough-council/redbridge","5BGFHOUSING","General Fund Housing","5CHOUMGTSUPP","Housing Management & Support Services","REV","Revenue","R5500","Housing Advice Centre","01-EMPLOYEES","Employees","01A","Direct employee expenses","4","Agency Staff - Pay","3276950","201401",08/04/2013 00:00:00,472.13,"31230","Employment & Recruitment Agencies","REDACTED DATA","ADECCO UK LIMITED","",,"232347975"
"London Borough of Redbridge","http://opendatacommunities.org/doc/london-borough-council/redbridge","3BLEACENTFND","LEA Centrally Held School Funds","3CSCHSTRATMG","Schools Strategic Management","REV","Revenue","R3173","Bus Supp - CP, EI and CRCs","01-EMPLOYEES","Employees","01A","Direct employee expenses","4","Agency Staff - Pay","3276950","201401",08/04/2013 00:00:00,469.71,"31230","Employment & Recruitment Agencies","REDACTED DATA","ADECCO UK LIMITED","",,"232347975"
"London Borough of Redbridge","http://opendatacommunities.org/doc/london-borough-council/redbridge","3BNONSCHFUND","Non-School Funding","3CNONSCH","Non Schools","REV","Revenue","R3954","Gearies Infants CC","01-EMPLOYEES","Employees","01A","Direct employee expenses","4","Agency Staff - Pay","3276950","201401",08/04/2013 00:00:00,469.53,"31230","Employment & Recruitment Agencies","REDACTED DATA","ADECCO UK LIMITED","",,"232347975"
"London Borough of Redbridge","http://opendatacommunities.org/doc/london-borough-council/redbridge","3BNONSCHFUND","Non-School Funding","3CNONSCH","Non Schools","REV","Revenue","R3954","Gearies Infants CC","01-EMPLOYEES","Employees","01A","Direct employee expenses","4","Agency Staff - Pay","3276950","201401",08/04/2013 00:00:00,469.53,"31230","Employment & Recruitment Agencies","REDACTED DATA","ADECCO UK LIMITED","",,"232347975"
"London Borough of Redbridge","http://opendatacommunities.org/doc/london-borough-council/redbridge","3BNONSCHFUND","Non-School Funding","3CNONSCH","Non Schools","REV","Revenue","R3954","Gearies Infants CC","01-EMPLOYEES","Employees","01A","Direct employee expenses","4","Agency Staff - Pay","3276950","201401",08/04/2013 00:00:00,466.33,"31230","Employment & Recruitment Agencies","REDACTED DATA","ADECCO UK LIMITED","",,"232347975"
"London Borough of Redbridge","http://opendatacommunities.org/doc/london-borough-council/redbridge","3BLEACENTFND","LEA Centrally Held School Funds","3CSCHSTRATMG","Schools Strategic Management","REV","Revenue","R3173","Bus Supp - CP, EI and CRCs","01-EMPLOYEES","Employees","01A","Direct employee expenses","4","Agency Staff - Pay","3276950","201401",08/04/2013 00:00:00,462.81,"31230","Employment & Recruitment Agencies","REDACTED DATA","ADECCO UK LIMITED","",,"232347975"
"London Borough of Redbridge","http://opendatacommunities.org/doc/london-borough-council/redbridge","3BLEACENTFND","LEA Centrally Held School Funds","3CSCHSTRATMG","Schools Strategic Management","REV","Revenue","R3173","Bus Supp - CP, EI and CRCs","01-EMPLOYEES","Employees","01A","Direct employee expenses","4","Agency Staff - Pay","3276950","201401",08/04/2013 00:00:00,462.81,"31230","Employment & Recruitment Agencies","REDACTED DATA","ADECCO UK LIMITED","",,"232347975"
"London Borough of Redbridge","http://opendatacommunities.org/doc/london-borough-council/redbridge","3BLEACENTFND","LEA Centrally Held School Funds","3CSCHSTRATMG","Schools Strategic Management","REV","Revenue","R3173","Bus Supp - CP, EI and CRCs","01-EMPLOYEES","Employees","01A","Direct employee expenses","4","Agency Staff - Pay","3276950","201401",08/04/2013 00:00:00,462.81,"31230","Employment & Recruitment Agencies","REDACTED DATA","ADECCO UK LIMITED","",,"232347975"
"London Borough of Redbridge","http://opendatacommunities.org/doc/london-borough-council/redbridge","3BLEACENTFND","LEA Centrally Held School Funds","3CSCHSTRATMG","Schools Strategic Management","REV","Revenue","R3173","Bus Supp - CP, EI and CRCs","01-EMPLOYEES","Employees","01A","Direct employee expenses","4","Agency Staff - Pay","3276950","201401",08/04/2013 00:00:00,462.81,"31230","Employment & Recruitment Agencies","REDACTED DATA","ADECCO UK LIMITED","",,"232347975"
"London Borough of Redbridge","http://opendatacommunities.org/doc/london-borough-council/redbridge","3BLEACENTFND","LEA Centrally Held School Funds","3CSCHSTRATMG","Schools Strategic Management","REV","Revenue","R3173","Bus Supp - CP, EI and CRCs","01-EMPLOYEES","Employees","01A","Direct employee expenses","4","Agency Staff - Pay","3276950","201401",08/04/2013 00:00:00,462.81,"31230","Employment & Recruitment Agencies","REDACTED DATA","ADECCO UK LIMITED","",,"232347975"
"London Borough of Redbridge","http://opendatacommunities.org/doc/london-borough-council/redbridge","3BLEACENTFND","LEA Centrally Held School Funds","3CSCHSTRATMG","Schools Strategic Management","REV","Revenue","R3173","Bus Supp - CP, EI and CRCs","01-EMPLOYEES","Employees","01A","Direct employee expenses","4","Agency Staff - Pay","3276950","201401",08/04/2013 00:00:00,462.81,"31230","Employment & Recruitment Agencies","REDACTED DATA","ADECCO UK LIMITED","",,"232347975"
"London Borough of Redbridge","http://opendatacommunities.org/doc/london-borough-council/redbridge","3BLEACENTFND","LEA Centrally Held School Funds","3CSCHSTRATMG","Schools Strategic Management","REV","Revenue","R3173","Bus Supp - CP, EI and CRCs","01-EMPLOYEES","Employees","01A","Direct employee expenses","4","Agency Staff - Pay","3276950","201401",08/04/2013 00:00:00,462.81,"31230","Employment & Recruitment Agencies","REDACTED DATA","ADECCO UK LIMITED","",,"232347975"
"London Borough of Redbridge","http://opendatacommunities.org/doc/london-borough-council/redbridge","5BGFHOUSING","General Fund Housing","5CHOUMGTSUPP","Housing Management & Support Services","REV","Revenue","R5500","Housing Advice Centre","01-EMPLOYEES","Employees","01A","Direct employee expenses","4","Agency Staff - Pay","3276950","201401",08/04/2013 00:00:00,462.81,"31230","Employment & Recruitment Agencies","REDACTED DATA","ADECCO UK LIMITED","",,"232347975"
"London Borough of Redbridge","http://opendatacommunities.org/doc/london-borough-council/redbridge","5BGFHOUSING","General Fund Housing","5CHOUMGTSUPP","Housing Management & Support Services","REV","Revenue","R5500","Housing Advice Centre","01-EMPLOYEES","Employees","01A","Direct employee expenses","4","Agency Staff - Pay","3276950","201401",08/04/2013 00:00:00,462.81,"31230","Employment & Recruitment Agencies","REDACTED DATA","ADECCO UK LIMITED","",,"232347975"
"London Borough of Redbridge","http://opendatacommunities.org/doc/london-borough-council/redbridge","4BTRANSPORT","Transport Planning, Policy & Strategy","4CMANGT&SUPP","Management & Support Services","REV","Revenue","R7000","Highways Executive","01-EMPLOYEES","Employees","01A","Direct employee expenses","4","Agency Staff - Pay","3276950","201401",08/04/2013 00:00:00,462.42,"31230","Employment & Recruitment Agencies","REDACTED DATA","ADECCO UK LIMITED","",,"232347975"
"London Borough of Redbridge","http://opendatacommunities.org/doc/london-borough-council/redbridge","5BGFHOUSING","General Fund Housing","5CHOUSBENADM","Housing Benefits Administration","REV","Revenue","R5772","DWP - Supplementary Admin Grant","01-EMPLOYEES","Employees","01A","Direct employee expenses","4","Agency Staff - Pay","3276950","201401",08/04/2013 00:00:00,459.94,"31230","Employment & Recruitment Agencies","REDACTED DATA","ADECCO UK LIMITED","",,"232347975"
"London Borough of Redbridge","http://opendatacommunities.org/doc/london-borough-council/redbridge","5BGFHOUSING","General Fund Housing","5CHOUSBENADM","Housing Benefits Administration","REV","Revenue","R5772","DWP - Supplementary Admin Grant","01-EMPLOYEES","Employees","01A","Direct employee expenses","4","Agency Staff - Pay","3276950","201401",08/04/2013 00:00:00,459.94,"31230","Employment & Recruitment Agencies","REDACTED DATA","ADECCO UK LIMITED","",,"232347975"
"London Borough of Redbridge","http://opendatacommunities.org/doc/london-borough-council/redbridge","5BGFHOUSING","General Fund Housing","5CHOUSBENADM","Housing Benefits Administration","REV","Revenue","R5772","DWP - Supplementary Admin Grant","01-EMPLOYEES","Employees","01A","Direct employee expenses","4","Agency Staff - Pay","3276950","201401",08/04/2013 00:00:00,459.94,"31230","Employment & Recruitment Agencies","REDACTED DATA","ADECCO UK LIMITED","",,"232347975"
"London Borough of Redbridge","http://opendatacommunities.org/doc/london-borough-council/redbridge","6BSOCIALSERV","Social Services","6CCHILLOOKED","Children Looked After","REV","Revenue","R2175","Ray Lodge Building","01-EMPLOYEES","Employees","01A","Direct employee expenses","4","Agency Staff - Pay","3276950","201401",08/04/2013 00:00:00,458.61,"31230","Employment & Recruitment Agencies","REDACTED DATA","ADECCO UK LIMITED","",,"232347975"
"London Borough of Redbridge","http://opendatacommunities.org/doc/london-borough-council/redbridge","6BSOCIALSERV","Social Services","6CCHILLOOKED","Children Looked After","REV","Revenue","R2175","Ray Lodge Building","01-EMPLOYEES","Employees","01A","Direct employee expenses","4","Agency Staff - Pay","3276950","201401",08/04/2013 00:00:00,458.61,"31230","Employment & Recruitment Agencies","REDACTED DATA","ADECCO UK LIMITED","",,"232347975"
"London Borough of Redbridge","http://opendatacommunities.org/doc/london-borough-council/redbridge","6BSOCIALSERV","Social Services","6CCHILLOOKED","Children Looked After","REV","Revenue","R2175","Ray Lodge Building","01-EMPLOYEES","Employees","01A","Direct employee expenses","4","Agency Staff - Pay","3276950","201401",08/04/2013 00:00:00,458.61,"31230","Employment & Recruitment Agencies","REDACTED DATA","ADECCO UK LIMITED","",,"232347975"
"London Borough of Redbridge","http://opendatacommunities.org/doc/london-borough-council/redbridge","5BGFHOUSING","General Fund Housing","5CHOUSBENADM","Housing Benefits Administration","REV","Revenue","R5772","DWP - Supplementary Admin Grant","01-EMPLOYEES","Employees","01A","Direct employee expenses","4","Agency Staff - Pay","3276950","201401",08/04/2013 00:00:00,456.19,"31230","Employment & Recruitment Agencies","REDACTED DATA","ADECCO UK LIMITED","",,"232347975"
"London Borough of Redbridge","http://opendatacommunities.org/doc/london-borough-council/redbridge","3BLEACENTFND","LEA Centrally Held School Funds","3CSCHSTRATMG","Schools Strategic Management","REV","Revenue","R3173","Bus Supp - CP, EI and CRCs","01-EMPLOYEES","Employees","01A","Direct employee expenses","4","Agency Staff - Pay","3276950","201401",08/04/2013 00:00:00,455.61,"31230","Employment & Recruitment Agencies","REDACTED DATA","ADECCO UK LIMITED","",,"232347975"
"London Borough of Redbridge","http://opendatacommunities.org/doc/london-borough-council/redbridge","3BLEACENTFND","LEA Centrally Held School Funds","3CSCHSTRATMG","Schools Strategic Management","REV","Revenue","R3173","Bus Supp - CP, EI and CRCs","01-EMPLOYEES","Employees","01A","Direct employee expenses","4","Agency Staff - Pay","3276950","201401",08/04/2013 00:00:00,455.61,"31230","Employment & Recruitment Agencies","REDACTED DATA","ADECCO UK LIMITED","",,"232347975"
"London Borough of Redbridge","http://opendatacommunities.org/doc/london-borough-council/redbridge","3BLEACENTFND","LEA Centrally Held School Funds","3CSCHSTRATMG","Schools Strategic Management","REV","Revenue","R3173","Bus Supp - CP, EI and CRCs","01-EMPLOYEES","Employees","01A","Direct employee expenses","4","Agency Staff - Pay","3276950","201401",08/04/2013 00:00:00,455.49,"31230","Employment & Recruitment Agencies","REDACTED DATA","ADECCO UK LIMITED","",,"232347975"
"London Borough of Redbridge","http://opendatacommunities.org/doc/london-borough-council/redbridge","3BLEACENTFND","LEA Centrally Held School Funds","3CSCHSTRATMG","Schools Strategic Management","REV","Revenue","R3173","Bus Supp - CP, EI and CRCs","01-EMPLOYEES","Employees","01A","Direct employee expenses","4","Agency Staff - Pay","3276950","201401",08/04/2013 00:00:00,455.49,"31230","Employment & Recruitment Agencies","REDACTED DATA","ADECCO UK LIMITED","",,"232347975"
"London Borough of Redbridge","http://opendatacommunities.org/doc/london-borough-council/redbridge","3BLEACENTFND","LEA Centrally Held School Funds","3CSCHSTRATMG","Schools Strategic Management","REV","Revenue","R3173","Bus Supp - CP, EI and CRCs","01-EMPLOYEES","Employees","01A","Direct employee expenses","4","Agency Staff - Pay","3276950","201401",08/04/2013 00:00:00,455.2,"31230","Employment & Recruitment Agencies","REDACTED DATA","ADECCO UK LIMITED","",,"232347975"
"London Borough of Redbridge","http://opendatacommunities.org/doc/london-borough-council/redbridge","3BLEACENTFND","LEA Centrally Held School Funds","3CSCHSTRATMG","Schools Strategic Management","REV","Revenue","R3173","Bus Supp - CP, EI and CRCs","01-EMPLOYEES","Employees","01A","Direct employee expenses","4","Agency Staff - Pay","3276950","201401",08/04/2013 00:00:00,451.78,"31230","Employment & Recruitment Agencies","REDACTED DATA","ADECCO UK LIMITED","",,"232347975"
"London Borough of Redbridge","http://opendatacommunities.org/doc/london-borough-council/redbridge","3BLEACENTFND","LEA Centrally Held School Funds","3CSCHSTRATMG","Schools Strategic Management","REV","Revenue","R3173","Bus Supp - CP, EI and CRCs","01-EMPLOYEES","Employees","01A","Direct employee expenses","4","Agency Staff - Pay","3276950","201401",08/04/2013 00:00:00,451.78,"31230","Employment & Recruitment Agencies","REDACTED DATA","ADECCO UK LIMITED","",,"232347975"
"London Borough of Redbridge","http://opendatacommunities.org/doc/london-borough-council/redbridge","3BLEACENTFND","LEA Centrally Held School Funds","3CSCHSTRATMG","Schools Strategic Management","REV","Revenue","R3173","Bus Supp - CP, EI and CRCs","01-EMPLOYEES","Employees","01A","Direct employee expenses","4","Agency Staff - Pay","3276950","201401",08/04/2013 00:00:00,451.78,"31230","Employment & Recruitment Agencies","REDACTED DATA","ADECCO UK LIMITED","",,"232347975"
"London Borough of Redbridge","http://opendatacommunities.org/doc/london-borough-council/redbridge","6BADULTSOCIA","Adult Social Care","6CSUPPSERMGT","Support Service & Management Costs","REV","Revenue","R4475","Payments Team","01-EMPLOYEES","Employees","01A","Direct employee expenses","4","Agency Staff - Pay","3276950","201401",08/04/2013 00:00:00,451.78,"31230","Employment & Recruitment Agencies","REDACTED DATA","ADECCO UK LIMITED","",,"232347975"
"London Borough of Redbridge","http://opendatacommunities.org/doc/london-borough-council/redbridge","1BOTHEROPI&E","Other Operating Income & Expenditure","1CTRADSURDEF","Trading Account Surpluses & Deficits","REV","Revenue","R9003","One Stop Shop","01-EMPLOYEES","Employees","01A","Direct employee expenses","4","Agency Staff - Pay","3276950","201401",08/04/2013 00:00:00,448.75,"31230","Employment & Recruitment Agencies","REDACTED DATA","ADECCO UK LIMITED","",,"232347975"
"London Borough of Redbridge","http://opendatacommunities.org/doc/london-borough-council/redbridge","1BCENTRALPUB","Central Services to the Public","1CTRADSURDEF","Trading Account Surpluses & Deficits","REV","Revenue","R5754","Income","01-EMPLOYEES","Employees","01A","Direct employee expenses","4","Agency Staff - Pay","3276950","201401",08/04/2013 00:00:00,447.14,"31230","Employment & Recruitment Agencies","REDACTED DATA","ADECCO UK LIMITED","",,"232347975"
"London Borough of Redbridge","http://opendatacommunities.org/doc/london-borough-council/redbridge","5BGFHOUSING","General Fund Housing","5CHOUSADVICE","Housing Advice","REV","Revenue","R5530","HAC Temporary Accomodation","01-EMPLOYEES","Employees","01A","Direct employee expenses","4","Agency Staff - Pay","3276950","201401",08/04/2013 00:00:00,445.58,"31230","Employment & Recruitment Agencies","REDACTED DATA","ADECCO UK LIMITED","",,"232347975"
"London Borough of Redbridge","http://opendatacommunities.org/doc/london-borough-council/redbridge","4BTRANSPORT","Transport Planning, Policy & Strategy","4CMANGT&SUPP","Management & Support Services","REV","Revenue","R7000","Highways Executive","01-EMPLOYEES","Employees","01A","Direct employee expenses","4","Agency Staff - Pay","3276950","201401",08/04/2013 00:00:00,445.3,"31230","Employment & Recruitment Agencies","REDACTED DATA","ADECCO UK LIMITED","",,"232347975"
"London Borough of Redbridge","http://opendatacommunities.org/doc/london-borough-council/redbridge","2BPLAN&DEVEL","Planning & Development Services","2CCOMMDEVT","Community Development","REV","Revenue","R9855","Safer Communities Core Budget","01-EMPLOYEES","Employees","01A","Direct employee expenses","4","Agency Staff - Pay","3276950","201401",08/04/2013 00:00:00,444.94,"31230","Employment & Recruitment Agencies","REDACTED DATA","ADECCO UK LIMITED","",,"232347975"
"London Borough of Redbridge","http://opendatacommunities.org/doc/london-borough-council/redbridge","1BOTHEROPI&E","Other Operating Income & Expenditure","1CTRADSURDEF","Trading Account Surpluses & Deficits","REV","Revenue","R9003","One Stop Shop","01-EMPLOYEES","Employees","01A","Direct employee expenses","4","Agency Staff - Pay","3276950","201401",08/04/2013 00:00:00,444.88,"31230","Employment & Recruitment Agencies","REDACTED DATA","ADECCO UK LIMITED","",,"232347975"
"London Borough of Redbridge","http://opendatacommunities.org/doc/london-borough-council/redbridge","3BLEACENTFND","LEA Centrally Held School Funds","3CFACILIMPRO","Facilitating School Improvement","REV","Revenue","R3240","Advisers/Inspectors","01-EMPLOYEES","Employees","01A","Direct employee expenses","4","Agency Staff - Pay","3276950","201401",08/04/2013 00:00:00,444.76,"31230","Employment & Recruitment Agencies","REDACTED DATA","ADECCO UK LIMITED","",,"232347975"
"London Borough of Redbridge","http://opendatacommunities.org/doc/london-borough-council/redbridge","3BLEACENTFND","LEA Centrally Held School Funds","3CSCHSTRATMG","Schools Strategic Management","REV","Revenue","R3173","Bus Supp - CP, EI and CRCs","01-EMPLOYEES","Employees","01A","Direct employee expenses","4","Agency Staff - Pay","3276950","201401",08/04/2013 00:00:00,443.24,"31230","Employment & Recruitment Agencies","REDACTED DATA","ADECCO UK LIMITED","",,"232347975"
"London Borough of Redbridge","http://opendatacommunities.org/doc/london-borough-council/redbridge","4BTRANSPORT","Transport Planning, Policy & Strategy","4CMANGT&SUPP","Management & Support Services","REV","Revenue","R7000","Highways Executive","01-EMPLOYEES","Employees","01A","Direct employee expenses","4","Agency Staff - Pay","3276950","201401",08/04/2013 00:00:00,442.78,"31230","Employment & Recruitment Agencies","REDACTED DATA","ADECCO UK LIMITED","",,"232347975"
"London Borough of Redbridge","http://opendatacommunities.org/doc/london-borough-council/redbridge","3BLEACENTFND","LEA Centrally Held School Funds","3CSCHSTRATMG","Schools Strategic Management","REV","Revenue","R3271","Teachers Centre Deleg","01-EMPLOYEES","Employees","01A","Direct employee expenses","4","Agency Staff - Pay","3276950","201401",08/04/2013 00:00:00,442.69,"31230","Employment & Recruitment Agencies","REDACTED DATA","ADECCO UK LIMITED","",,"232347975"
"London Borough of Redbridge","http://opendatacommunities.org/doc/london-borough-council/redbridge","1BOTHEROPI&E","Other Operating Income & Expenditure","1CTRADSURDEF","Trading Account Surpluses & Deficits","REV","Revenue","R9460","Human Resources misc","01-EMPLOYEES","Employees","01A","Direct employee expenses","4","Agency Staff - Pay","3276950","201401",08/04/2013 00:00:00,442.15,"31230","Employment & Recruitment Agencies","REDACTED DATA","ADECCO UK LIMITED","",,"232347975"
"London Borough of Redbridge","http://opendatacommunities.org/doc/london-borough-council/redbridge","6BSOCIALSERV","Social Services","4CMANGT&SUPP","Management & Support Services","REV","Revenue","R2151","CQ and F Workforce Development","01-EMPLOYEES","Employees","01A","Direct employee expenses","4","Agency Staff - Pay","3276950","201401",08/04/2013 00:00:00,440.91,"31230","Employment & Recruitment Agencies","REDACTED DATA","ADECCO UK LIMITED","",,"232347975"
"London Borough of Redbridge","http://opendatacommunities.org/doc/london-borough-council/redbridge","1BCENTRALPUB","Central Services to the Public","1CTRADSURDEF","Trading Account Surpluses & Deficits","REV","Revenue","R5754","Income","01-EMPLOYEES","Employees","01A","Direct employee expenses","4","Agency Staff - Pay","3276950","201401",08/04/2013 00:00:00,440.74,"31230","Employment & Recruitment Agencies","REDACTED DATA","ADECCO UK LIMITED","",,"232347975"
"London Borough of Redbridge","http://opendatacommunities.org/doc/london-borough-council/redbridge","1BOTHEROPI&E","Other Operating Income & Expenditure","1CTRADSURDEF","Trading Account Surpluses & Deficits","REV","Revenue","R9460","Human Resources misc","01-EMPLOYEES","Employees","01A","Direct employee expenses","4","Agency Staff - Pay","3276950","201401",08/04/2013 00:00:00,438.68,"31230","Employment & Recruitment Agencies","REDACTED DATA","ADECCO UK LIMITED","",,"232347975"
"London Borough of Redbridge","http://opendatacommunities.org/doc/london-borough-council/redbridge","3BLEACENTFND","LEA Centrally Held School Funds","3CSCHSTRATMG","Schools Strategic Management","REV","Revenue","R3176","Bus Supp - Non-Trust","01-EMPLOYEES","Employees","01A","Direct employee expenses","4","Agency Staff - Pay","3276950","201401",08/04/2013 00:00:00,438.02,"31230","Employment & Recruitment Agencies","REDACTED DATA","ADECCO UK LIMITED","",,"232347975"
"London Borough of Redbridge","http://opendatacommunities.org/doc/london-borough-council/redbridge","1BOTHEROPI&E","Other Operating Income & Expenditure","1CTRADSURDEF","Trading Account Surpluses & Deficits","REV","Revenue","R9600","Town Hall","01-EMPLOYEES","Employees","01A","Direct employee expenses","4","Agency Staff - Pay","3276950","201401",08/04/2013 00:00:00,437.14,"31230","Employment & Recruitment Agencies","REDACTED DATA","ADECCO UK LIMITED","",,"232347975"
"London Borough of Redbridge","http://opendatacommunities.org/doc/london-borough-council/redbridge","1BOTHEROPI&E","Other Operating Income & Expenditure","1CTRADSURDEF","Trading Account Surpluses & Deficits","REV","Revenue","R9600","Town Hall","01-EMPLOYEES","Employees","01A","Direct employee expenses","4","Agency Staff - Pay","3276950","201401",08/04/2013 00:00:00,437.14,"31230","Employment & Recruitment Agencies","REDACTED DATA","ADECCO UK LIMITED","",,"232347975"
"London Borough of Redbridge","http://opendatacommunities.org/doc/london-borough-council/redbridge","1BOTHEROPI&E","Other Operating Income & Expenditure","1CTRADSURDEF","Trading Account Surpluses & Deficits","REV","Revenue","R9600","Town Hall","01-EMPLOYEES","Employees","01A","Direct employee expenses","4","Agency Staff - Pay","3276950","201401",08/04/2013 00:00:00,437.14,"31230","Employment & Recruitment Agencies","REDACTED DATA","ADECCO UK LIMITED","",,"232347975"
"London Borough of Redbridge","http://opendatacommunities.org/doc/london-borough-council/redbridge","3BLEACENTFND","LEA Centrally Held School Funds","3CSCHSTRATMG","Schools Strategic Management","REV","Revenue","R3271","Teachers Centre Deleg","01-EMPLOYEES","Employees","01A","Direct employee expenses","4","Agency Staff - Pay","3276950","201401",08/04/2013 00:00:00,436.53,"31230","Employment & Recruitment Agencies","REDACTED DATA","ADECCO UK LIMITED","",,"232347975"
"London Borough of Redbridge","http://opendatacommunities.org/doc/london-borough-council/redbridge","1BOTHEROPI&E","Other Operating Income & Expenditure","1CTRADSURDEF","Trading Account Surpluses & Deficits","REV","Revenue","R9003","One Stop Shop","01-EMPLOYEES","Employees","01A","Direct employee expenses","4","Agency Staff - Pay","3276950","201401",08/04/2013 00:00:00,435.73,"31230","Employment & Recruitment Agencies","REDACTED DATA","ADECCO UK LIMITED","",,"232347975"
"London Borough of Redbridge","http://opendatacommunities.org/doc/london-borough-council/redbridge","3BNONSCHFUND","Non-School Funding","3CNONSCH","Non Schools","REV","Revenue","R3936","Albert Rd/Mildmay CC","01-EMPLOYEES","Employees","01A","Direct employee expenses","4","Agency Staff - Pay","3276950","201401",08/04/2013 00:00:00,430.94,"31230","Employment & Recruitment Agencies","REDACTED DATA","ADECCO UK LIMITED","",,"232347975"
"London Borough of Redbridge","http://opendatacommunities.org/doc/london-borough-council/redbridge","3BNONSCHFUND","Non-School Funding","3CNONSCH","Non Schools","REV","Revenue","R3936","Albert Rd/Mildmay CC","01-EMPLOYEES","Employees","01A","Direct employee expenses","4","Agency Staff - Pay","3276950","201401",08/04/2013 00:00:00,430.94,"31230","Employment & Recruitment Agencies","REDACTED DATA","ADECCO UK LIMITED","",,"232347975"
"London Borough of Redbridge","http://opendatacommunities.org/doc/london-borough-council/redbridge","1BCENTRALPUB","Central Services to the Public","1CTRADSURDEF","Trading Account Surpluses & Deficits","REV","Revenue","R5770","Income Assessment","01-EMPLOYEES","Employees","01A","Direct employee expenses","4","Agency Staff - Pay","3276950","201401",08/04/2013 00:00:00,428.26,"31230","Employment & Recruitment Agencies","REDACTED DATA","ADECCO UK LIMITED","",,"232347975"
"London Borough of Redbridge","http://opendatacommunities.org/doc/london-borough-council/redbridge","1BOTHEROPI&E","Other Operating Income & Expenditure","1CTRADSURDEF","Trading Account Surpluses & Deficits","REV","Revenue","R9152","Financial Services","01-EMPLOYEES","Employees","01A","Direct employee expenses","4","Agency Staff - Pay","3276950","201401",08/04/2013 00:00:00,427.94,"31230","Employment & Recruitment Agencies","REDACTED DATA","ADECCO UK LIMITED","",,"232347975"
"London Borough of Redbridge","http://opendatacommunities.org/doc/london-borough-council/redbridge","1BOTHEROPI&E","Other Operating Income & Expenditure","1CTRADSURDEF","Trading Account Surpluses & Deficits","REV","Revenue","R9152","Financial Services","01-EMPLOYEES","Employees","01A","Direct employee expenses","4","Agency Staff - Pay","3276950","201401",08/04/2013 00:00:00,427.94,"31230","Employment & Recruitment Agencies","REDACTED DATA","ADECCO UK LIMITED","",,"232347975"
"London Borough of Redbridge","http://opendatacommunities.org/doc/london-borough-council/redbridge","1BOTHEROPI&E","Other Operating Income & Expenditure","1CTRADSURDEF","Trading Account Surpluses & Deficits","REV","Revenue","R9152","Financial Services","01-EMPLOYEES","Employees","01A","Direct employee expenses","4","Agency Staff - Pay","3276950","201401",08/04/2013 00:00:00,427.94,"31230","Employment & Recruitment Agencies","REDACTED DATA","ADECCO UK LIMITED","",,"232347975"
"London Borough of Redbridge","http://opendatacommunities.org/doc/london-borough-council/redbridge","3BNONSCHFUND","Non-School Funding","3CNONSCH","Non Schools","REV","Revenue","R3936","Albert Rd/Mildmay CC","01-EMPLOYEES","Employees","01A","Direct employee expenses","4","Agency Staff - Pay","3276950","201401",08/04/2013 00:00:00,427.94,"31230","Employment & Recruitment Agencies","REDACTED DATA","ADECCO UK LIMITED","",,"232347975"
"London Borough of Redbridge","http://opendatacommunities.org/doc/london-borough-council/redbridge","3BNONSCHFUND","Non-School Funding","3CNONSCH","Non Schools","REV","Revenue","R3938","Orchard/Ray Lodge CC","01-EMPLOYEES","Employees","01A","Direct employee expenses","4","Agency Staff - Pay","3276950","201401",08/04/2013 00:00:00,427.94,"31230","Employment & Recruitment Agencies","REDACTED DATA","ADECCO UK LIMITED","",,"232347975"
"London Borough of Redbridge","http://opendatacommunities.org/doc/london-borough-council/redbridge","3BNONSCHFUND","Non-School Funding","3CNONSCH","Non Schools","REV","Revenue","R3955","Redbridge Primary CC","01-EMPLOYEES","Employees","01A","Direct employee expenses","4","Agency Staff - Pay","3276950","201401",08/04/2013 00:00:00,427.94,"31230","Employment & Recruitment Agencies","REDACTED DATA","ADECCO UK LIMITED","",,"232347975"
"London Borough of Redbridge","http://opendatacommunities.org/doc/london-borough-council/redbridge","1BOTHEROPI&E","Other Operating Income & Expenditure","1CTRADSURDEF","Trading Account Surpluses & Deficits","REV","Revenue","R9152","Financial Services","01-EMPLOYEES","Employees","01A","Direct employee expenses","4","Agency Staff - Pay","3276950","201401",08/04/2013 00:00:00,424.74,"31230","Employment & Recruitment Agencies","REDACTED DATA","ADECCO UK LIMITED","",,"232347975"
"London Borough of Redbridge","http://opendatacommunities.org/doc/london-borough-council/redbridge","6BSOCIALSERV","Social Services","6CCHILLOOKED","Children Looked After","REV","Revenue","R2135","SEN and CD - Aiming High For Disabled Children","01-EMPLOYEES","Employees","01A","Direct employee expenses","4","Agency Staff - Pay","3276950","201401",08/04/2013 00:00:00,421.44,"31230","Employment & Recruitment Agencies","REDACTED DATA","ADECCO UK LIMITED","",,"232347975"
"London Borough of Redbridge","http://opendatacommunities.org/doc/london-borough-council/redbridge","3BINDSCHFUND","Individual School Funds","3CFACILIMPRO","Facilitating School Improvement","REV","Revenue","R3436","Research and Data Team","01-EMPLOYEES","Employees","01A","Direct employee expenses","4","Agency Staff - Pay","3276950","201401",08/04/2013 00:00:00,421.21,"31230","Employment & Recruitment Agencies","REDACTED DATA","ADECCO UK LIMITED","",,"232347975"
"London Borough of Redbridge","http://opendatacommunities.org/doc/london-borough-council/redbridge","5BGFHOUSING","General Fund Housing","5CHOUMGTSUPP","Housing Management & Support Services","REV","Revenue","R5529","HAC Assessment","01-EMPLOYEES","Employees","01A","Direct employee expenses","4","Agency Staff - Pay","3276950","201401",08/04/2013 00:00:00,420.45,"31230","Employment & Recruitment Agencies","REDACTED DATA","ADECCO UK LIMITED","",,"232347975"
"London Borough of Redbridge","http://opendatacommunities.org/doc/london-borough-council/redbridge","1BCENTRALPUB","Central Services to the Public","1CTRADSURDEF","Trading Account Surpluses & Deficits","REV","Revenue","R5770","Income Assessment","01-EMPLOYEES","Employees","01A","Direct employee expenses","4","Agency Staff - Pay","3276950","201401",08/04/2013 00:00:00,419.1,"31230","Employment & Recruitment Agencies","REDACTED DATA","ADECCO UK LIMITED","",,"232347975"
"London Borough of Redbridge","http://opendatacommunities.org/doc/london-borough-council/redbridge","1BOTHEROPI&E","Other Operating Income & Expenditure","1CTRADSURDEF","Trading Account Surpluses & Deficits","REV","Revenue","R9460","Human Resources misc","01-EMPLOYEES","Employees","01A","Direct employee expenses","4","Agency Staff - Pay","3276950","201401",08/04/2013 00:00:00,418.04,"31230","Employment & Recruitment Agencies","REDACTED DATA","ADECCO UK LIMITED","",,"232347975"
"London Borough of Redbridge","http://opendatacommunities.org/doc/london-borough-council/redbridge","3BLEACENTFND","LEA Centrally Held School Funds","3CSCHSTRATMG","Schools Strategic Management","REV","Revenue","R3271","Teachers Centre Deleg","01-EMPLOYEES","Employees","01A","Direct employee expenses","4","Agency Staff - Pay","3276950","201401",08/04/2013 00:00:00,418.02,"31230","Employment & Recruitment Agencies","REDACTED DATA","ADECCO UK LIMITED","",,"232347975"
"London Borough of Redbridge","http://opendatacommunities.org/doc/london-borough-council/redbridge","1BOTHEROPI&E","Other Operating Income & Expenditure","1CTRADSURDEF","Trading Account Surpluses & Deficits","REV","Revenue","R9003","One Stop Shop","01-EMPLOYEES","Employees","01A","Direct employee expenses","4","Agency Staff - Pay","3276950","201401",08/04/2013 00:00:00,417.77,"31230","Employment & Recruitment Agencies","REDACTED DATA","ADECCO UK LIMITED","",,"232347975"
"London Borough of Redbridge","http://opendatacommunities.org/doc/london-borough-council/redbridge","1BCENTRALPUB","Central Services to the Public","1CLOCALTAXCO","Local Tax Collection","REV","Revenue","R5760","Council Tax Collection","01-EMPLOYEES","Employees","01A","Direct employee expenses","4","Agency Staff - Pay","3276950","201401",08/04/2013 00:00:00,416.15,"31230","Employment & Recruitment Agencies","REDACTED DATA","ADECCO UK LIMITED","",,"232347975"
"London Borough of Redbridge","http://opendatacommunities.org/doc/london-borough-council/redbridge","1BCENTRALPUB","Central Services to the Public","1CLOCALTAXCO","Local Tax Collection","REV","Revenue","R5760","Council Tax Collection","01-EMPLOYEES","Employees","01A","Direct employee expenses","4","Agency Staff - Pay","3276950","201401",08/04/2013 00:00:00,416.15,"31230","Employment & Recruitment Agencies","REDACTED DATA","ADECCO UK LIMITED","",,"232347975"
"London Borough of Redbridge","http://opendatacommunities.org/doc/london-borough-council/redbridge","1BCENTRALPUB","Central Services to the Public","1CLOCALTAXCO","Local Tax Collection","REV","Revenue","R5760","Council Tax Collection","01-EMPLOYEES","Employees","01A","Direct employee expenses","4","Agency Staff - Pay","3276950","201401",08/04/2013 00:00:00,416.15,"31230","Employment & Recruitment Agencies","REDACTED DATA","ADECCO UK LIMITED","",,"232347975"
"London Borough of Redbridge","http://opendatacommunities.org/doc/london-borough-council/redbridge","1BOTHEROPI&E","Other Operating Income & Expenditure","1CTRADSURDEF","Trading Account Surpluses & Deficits","REV","Revenue","R9460","Human Resources misc","01-EMPLOYEES","Employees","01A","Direct employee expenses","4","Agency Staff - Pay","3276950","201401",08/04/2013 00:00:00,414.54,"31230","Employment & Recruitment Agencies","REDACTED DATA","ADECCO UK LIMITED","",,"232347975"
"London Borough of Redbridge","http://opendatacommunities.org/doc/london-borough-council/redbridge","5BGFHOUSING","General Fund Housing","5CHOUMGTSUPP","Housing Management & Support Services","REV","Revenue","R5500","Housing Advice Centre","01-EMPLOYEES","Employees","01A","Direct employee expenses","4","Agency Staff - Pay","3276950","201401",08/04/2013 00:00:00,414.54,"31230","Employment & Recruitment Agencies","REDACTED DATA","ADECCO UK LIMITED","",,"232347975"
"London Borough of Redbridge","http://opendatacommunities.org/doc/london-borough-council/redbridge","1BCENTRALPUB","Central Services to the Public","1CTRADSURDEF","Trading Account Surpluses & Deficits","REV","Revenue","R5754","Income","01-EMPLOYEES","Employees","01A","Direct employee expenses","4","Agency Staff - Pay","3276950","201401",08/04/2013 00:00:00,411.95,"31230","Employment & Recruitment Agencies","REDACTED DATA","ADECCO UK LIMITED","",,"232347975"
"London Borough of Redbridge","http://opendatacommunities.org/doc/london-borough-council/redbridge","3BNONSCHFUND","Non-School Funding","3CNONSCH","Non Schools","REV","Revenue","R3954","Gearies Infants CC","01-EMPLOYEES","Employees","01A","Direct employee expenses","4","Agency Staff - Pay","3276950","201401",08/04/2013 00:00:00,411.95,"31230","Employment & Recruitment Agencies","REDACTED DATA","ADECCO UK LIMITED","",,"232347975"
"London Borough of Redbridge","http://opendatacommunities.org/doc/london-borough-council/redbridge","1BOTHEROPI&E","Other Operating Income & Expenditure","1CTRADSURDEF","Trading Account Surpluses & Deficits","REV","Revenue","R9601","Lynton House","01-EMPLOYEES","Employees","01A","Direct employee expenses","4","Agency Staff - Pay","3276950","201401",08/04/2013 00:00:00,411.75,"31230","Employment & Recruitment Agencies","REDACTED DATA","ADECCO UK LIMITED","",,"232347975"
"London Borough of Redbridge","http://opendatacommunities.org/doc/london-borough-council/redbridge","3BLEACENTFND","LEA Centrally Held School Funds","3CSCHSTRATMG","Schools Strategic Management","REV","Revenue","R3173","Bus Supp - CP, EI and CRCs","01-EMPLOYEES","Employees","01A","Direct employee expenses","4","Agency Staff - Pay","3276950","201401",08/04/2013 00:00:00,409.19,"31230","Employment & Recruitment Agencies","REDACTED DATA","ADECCO UK LIMITED","",,"232347975"
"London Borough of Redbridge","http://opendatacommunities.org/doc/london-borough-council/redbridge","2BPLAN&DEVEL","Planning & Development Services","2CCOMMDEVT","Community Development","REV","Revenue","R9855","Safer Communities Core Budget","01-EMPLOYEES","Employees","01A","Direct employee expenses","4","Agency Staff - Pay","3276950","201401",08/04/2013 00:00:00,407.65,"31230","Employment & Recruitment Agencies","REDACTED DATA","ADECCO UK LIMITED","",,"232347975"
"London Borough of Redbridge","http://opendatacommunities.org/doc/london-borough-council/redbridge","5BGFHOUSING","General Fund Housing","5CHOUMGTSUPP","Housing Management & Support Services","REV","Revenue","R5529","HAC Assessment","01-EMPLOYEES","Employees","01A","Direct employee expenses","4","Agency Staff - Pay","3276950","201401",08/04/2013 00:00:00,404.38,"31230","Employment & Recruitment Agencies","REDACTED DATA","ADECCO UK LIMITED","",,"232347975"
"London Borough of Redbridge","http://opendatacommunities.org/doc/london-borough-council/redbridge","3BLEACENTFND","LEA Centrally Held School Funds","3CSCHSTRATMG","Schools Strategic Management","REV","Revenue","R3173","Bus Supp - CP, EI and CRCs","01-EMPLOYEES","Employees","01A","Direct employee expenses","4","Agency Staff - Pay","3276950","201401",08/04/2013 00:00:00,404.2,"31230","Employment & Recruitment Agencies","REDACTED DATA","ADECCO UK LIMITED","",,"232347975"
"London Borough of Redbridge","http://opendatacommunities.org/doc/london-borough-council/redbridge","3BLEACENTFND","LEA Centrally Held School Funds","3CSCHSTRATMG","Schools Strategic Management","REV","Revenue","R3271","Teachers Centre Deleg","01-EMPLOYEES","Employees","01A","Direct employee expenses","4","Agency Staff - Pay","3276950","201401",08/04/2013 00:00:00,404.2,"31230","Employment & Recruitment Agencies","REDACTED DATA","ADECCO UK LIMITED","",,"232347975"
"London Borough of Redbridge","http://opendatacommunities.org/doc/london-borough-council/redbridge","1BOTHEROPI&E","Other Operating Income & Expenditure","1CTRADSURDEF","Trading Account Surpluses & Deficits","REV","Revenue","R9460","Human Resources misc","01-EMPLOYEES","Employees","01A","Direct employee expenses","4","Agency Staff - Pay","3276950","201401",08/04/2013 00:00:00,400.92,"31230","Employment & Recruitment Agencies","REDACTED DATA","ADECCO UK LIMITED","",,"232347975"
"London Borough of Redbridge","http://opendatacommunities.org/doc/london-borough-council/redbridge","6BSOCIALSERV","Social Services","6CCHILLOOKED","Children Looked After","REV","Revenue","R2135","SEN and CD - Aiming High For Disabled Children","01-EMPLOYEES","Employees","01A","Direct employee expenses","4","Agency Staff - Pay","3276950","201401",08/04/2013 00:00:00,400.75,"31230","Employment & Recruitment Agencies","REDACTED DATA","ADECCO UK LIMITED","",,"232347975"
"London Borough of Redbridge","http://opendatacommunities.org/doc/london-borough-council/redbridge","3BLEACENTFND","LEA Centrally Held School Funds","3CSCHSTRATMG","Schools Strategic Management","REV","Revenue","R3173","Bus Supp - CP, EI and CRCs","01-EMPLOYEES","Employees","01A","Direct employee expenses","4","Agency Staff - Pay","3276950","201401",08/04/2013 00:00:00,397.31,"31230","Employment & Recruitment Agencies","REDACTED DATA","ADECCO UK LIMITED","",,"232347975"
"London Borough of Redbridge","http://opendatacommunities.org/doc/london-borough-council/redbridge","9BNONBVO","Outside the BVACOP Objective Structure","9CNONBVO","Outside the BVACOP Objective Structure","REV","Revenue","R5210","Customer Services Team","01-EMPLOYEES","Employees","01A","Direct employee expenses","4","Agency Staff - Pay","3276950","201401",08/04/2013 00:00:00,396.23,"31230","Employment & Recruitment Agencies","REDACTED DATA","ADECCO UK LIMITED","",,"232347975"
"London Borough of Redbridge","http://opendatacommunities.org/doc/london-borough-council/redbridge","1BOTHEROPI&E","Other Operating Income & Expenditure","1CTRADSURDEF","Trading Account Surpluses & Deficits","REV","Revenue","R9460","Human Resources misc","01-EMPLOYEES","Employees","01A","Direct employee expenses","4","Agency Staff - Pay","3276950","201401",08/04/2013 00:00:00,393.93,"31230","Employment & Recruitment Agencies","REDACTED DATA","ADECCO UK LIMITED","",,"232347975"
"London Borough of Redbridge","http://opendatacommunities.org/doc/london-borough-council/redbridge","3BLEACENTFND","LEA Centrally Held School Funds","3CSCHSTRATMG","Schools Strategic Management","REV","Revenue","R3271","Teachers Centre Deleg","01-EMPLOYEES","Employees","01A","Direct employee expenses","4","Agency Staff - Pay","3276950","201401",08/04/2013 00:00:00,393.86,"31230","Employment & Recruitment Agencies","REDACTED DATA","ADECCO UK LIMITED","",,"232347975"
"London Borough of Redbridge","http://opendatacommunities.org/doc/london-borough-council/redbridge","3BLEACENTFND","LEA Centrally Held School Funds","3CSCHSTRATMG","Schools Strategic Management","REV","Revenue","R3271","Teachers Centre Deleg","01-EMPLOYEES","Employees","01A","Direct employee expenses","4","Agency Staff - Pay","3276950","201401",08/04/2013 00:00:00,393.86,"31230","Employment & Recruitment Agencies","REDACTED DATA","ADECCO UK LIMITED","",,"232347975"
"London Borough of Redbridge","http://opendatacommunities.org/doc/london-borough-council/redbridge","3BLEACENTFND","LEA Centrally Held School Funds","3CSCHSTRATMG","Schools Strategic Management","REV","Revenue","R3271","Teachers Centre Deleg","01-EMPLOYEES","Employees","01A","Direct employee expenses","4","Agency Staff - Pay","3276950","201401",08/04/2013 00:00:00,393.86,"31230","Employment & Recruitment Agencies","REDACTED DATA","ADECCO UK LIMITED","",,"232347975"
"London Borough of Redbridge","http://opendatacommunities.org/doc/london-borough-council/redbridge","1BOTHEROPI&E","Other Operating Income & Expenditure","1CTRADSURDEF","Trading Account Surpluses & Deficits","REV","Revenue","R9460","Human Resources misc","01-EMPLOYEES","Employees","01A","Direct employee expenses","4","Agency Staff - Pay","3276950","201401",08/04/2013 00:00:00,390.98,"31230","Employment & Recruitment Agencies","REDACTED DATA","ADECCO UK LIMITED","",,"232347975"
"London Borough of Redbridge","http://opendatacommunities.org/doc/london-borough-council/redbridge","1BOTHEROPI&E","Other Operating Income & Expenditure","1CTRADSURDEF","Trading Account Surpluses & Deficits","REV","Revenue","R9460","Human Resources misc","01-EMPLOYEES","Employees","01A","Direct employee expenses","4","Agency Staff - Pay","3276950","201401",08/04/2013 00:00:00,390.98,"31230","Employment & Recruitment Agencies","REDACTED DATA","ADECCO UK LIMITED","",,"232347975"
"London Borough of Redbridge","http://opendatacommunities.org/doc/london-borough-council/redbridge","1BOTHEROPI&E","Other Operating Income & Expenditure","1CTRADSURDEF","Trading Account Surpluses & Deficits","REV","Revenue","R9460","Human Resources misc","01-EMPLOYEES","Employees","01A","Direct employee expenses","4","Agency Staff - Pay","3276950","201401",08/04/2013 00:00:00,390.98,"31230","Employment & Recruitment Agencies","REDACTED DATA","ADECCO UK LIMITED","",,"232347975"
"London Borough of Redbridge","http://opendatacommunities.org/doc/london-borough-council/redbridge","1BOTHEROPI&E","Other Operating Income & Expenditure","1CTRADSURDEF","Trading Account Surpluses & Deficits","REV","Revenue","R9460","Human Resources misc","01-EMPLOYEES","Employees","01A","Direct employee expenses","4","Agency Staff - Pay","3276950","201401",08/04/2013 00:00:00,390.98,"31230","Employment & Recruitment Agencies","REDACTED DATA","ADECCO UK LIMITED","",,"232347975"
"London Borough of Redbridge","http://opendatacommunities.org/doc/london-borough-council/redbridge","1BCENTRALPUB","Central Services to the Public","1CTRADSURDEF","Trading Account Surpluses & Deficits","REV","Revenue","R5753","Cashiers","01-EMPLOYEES","Employees","01A","Direct employee expenses","4","Agency Staff - Pay","3276950","201401",08/04/2013 00:00:00,390.26,"31230","Employment & Recruitment Agencies","REDACTED DATA","ADECCO UK LIMITED","",,"232347975"
"London Borough of Redbridge","http://opendatacommunities.org/doc/london-borough-council/redbridge","2BPLAN&DEVEL","Planning & Development Services","2CCOMMDEVT","Community Development","REV","Revenue","R9855","Safer Communities Core Budget","01-EMPLOYEES","Employees","01A","Direct employee expenses","4","Agency Staff - Pay","3276950","201401",08/04/2013 00:00:00,390.26,"31230","Employment & Recruitment Agencies","REDACTED DATA","ADECCO UK LIMITED","",,"232347975"
"London Borough of Redbridge","http://opendatacommunities.org/doc/london-borough-council/redbridge","6BSOCIALSERV","Social Services","6CCHILLOOKED","Children Looked After","REV","Revenue","R2140","CQ and F - Safeguarding and Care Planning Soc Care","01-EMPLOYEES","Employees","01A","Direct employee expenses","4","Agency Staff - Pay","3276950","201401",08/04/2013 00:00:00,386.3,"31230","Employment & Recruitment Agencies","REDACTED DATA","ADECCO UK LIMITED","",,"232347975"
"London Borough of Redbridge","http://opendatacommunities.org/doc/london-borough-council/redbridge","6BSOCIALSERV","Social Services","6CCHILLOOKED","Children Looked After","REV","Revenue","R2140","CQ and F - Safeguarding and Care Planning Soc Care","01-EMPLOYEES","Employees","01A","Direct employee expenses","4","Agency Staff - Pay","3276950","201401",08/04/2013 00:00:00,383.88,"31230","Employment & Recruitment Agencies","REDACTED DATA","ADECCO UK LIMITED","",,"232347975"
"London Borough of Redbridge","http://opendatacommunities.org/doc/london-borough-council/redbridge","1BOTHEROPI&E","Other Operating Income & Expenditure","1CTRADSURDEF","Trading Account Surpluses & Deficits","REV","Revenue","R9596","Property Support","01-EMPLOYEES","Employees","01A","Direct employee expenses","4","Agency Staff - Pay","3276950","201401",08/04/2013 00:00:00,383.81,"31230","Employment & Recruitment Agencies","REDACTED DATA","ADECCO UK LIMITED","",,"232347975"
"London Borough of Redbridge","http://opendatacommunities.org/doc/london-borough-council/redbridge","4BTRANSPORT","Transport Planning, Policy & Strategy","4CMANGT&SUPP","Management & Support Services","REV","Revenue","R7000","Highways Executive","01-EMPLOYEES","Employees","01A","Direct employee expenses","4","Agency Staff - Pay","3276950","201401",08/04/2013 00:00:00,383.51,"31230","Employment & Recruitment Agencies","REDACTED DATA","ADECCO UK LIMITED","",,"232347975"
"London Borough of Redbridge","http://opendatacommunities.org/doc/london-borough-council/redbridge","1BCENTRALPUB","Central Services to the Public","1CTRADSURDEF","Trading Account Surpluses & Deficits","REV","Revenue","R5754","Income","01-EMPLOYEES","Employees","01A","Direct employee expenses","4","Agency Staff - Pay","3276950","201401",08/04/2013 00:00:00,383.17,"31230","Employment & Recruitment Agencies","REDACTED DATA","ADECCO UK LIMITED","",,"232347975"
"London Borough of Redbridge","http://opendatacommunities.org/doc/london-borough-council/redbridge","3BLEACENTFND","LEA Centrally Held School Funds","3CSCHSTRATMG","Schools Strategic Management","REV","Revenue","R3173","Bus Supp - CP, EI and CRCs","01-EMPLOYEES","Employees","01A","Direct employee expenses","4","Agency Staff - Pay","3276950","201401",08/04/2013 00:00:00,380.21,"31230","Employment & Recruitment Agencies","REDACTED DATA","ADECCO UK LIMITED","",,"232347975"
"London Borough of Redbridge","http://opendatacommunities.org/doc/london-borough-council/redbridge","1BOTHEROPI&E","Other Operating Income & Expenditure","1CTRADSURDEF","Trading Account Surpluses & Deficits","REV","Revenue","R9460","Human Resources misc","01-EMPLOYEES","Employees","01A","Direct employee expenses","4","Agency Staff - Pay","3276950","201401",08/04/2013 00:00:00,380.07,"31230","Employment & Recruitment Agencies","REDACTED DATA","ADECCO UK LIMITED","",,"232347975"
"London Borough of Redbridge","http://opendatacommunities.org/doc/london-borough-council/redbridge","6BSOCIALSERV","Social Services","6CCHILLOOKED","Children Looked After","REV","Revenue","R2140","CQ and F - Safeguarding and Care Planning Soc Care","01-EMPLOYEES","Employees","01A","Direct employee expenses","4","Agency Staff - Pay","3276950","201401",08/04/2013 00:00:00,380.07,"31230","Employment & Recruitment Agencies","REDACTED DATA","ADECCO UK LIMITED","",,"232347975"
"London Borough of Redbridge","http://opendatacommunities.org/doc/london-borough-council/redbridge","2BPLAN&DEVEL","Planning & Development Services","2CCOMMDEVT","Community Development","REV","Revenue","R6510","Dev Management Tech","01-EMPLOYEES","Employees","01A","Direct employee expenses","4","Agency Staff - Pay","3276950","201401",08/04/2013 00:00:00,380,"31230","Employment & Recruitment Agencies","REDACTED DATA","ADECCO UK LIMITED","",,"232347975"
"London Borough of Redbridge","http://opendatacommunities.org/doc/london-borough-council/redbridge","3BLEACENTFND","LEA Centrally Held School Funds","3CSCHSTRATMG","Schools Strategic Management","REV","Revenue","R3173","Bus Supp - CP, EI and CRCs","01-EMPLOYEES","Employees","01A","Direct employee expenses","4","Agency Staff - Pay","3276950","201401",08/04/2013 00:00:00,376.91,"31230","Employment & Recruitment Agencies","REDACTED DATA","ADECCO UK LIMITED","",,"232347975"
"London Borough of Redbridge","http://opendatacommunities.org/doc/london-borough-council/redbridge","3BNONSCHFUND","Non-School Funding","3CNONSCH","Non Schools","REV","Revenue","R3954","Gearies Infants CC","01-EMPLOYEES","Employees","01A","Direct employee expenses","4","Agency Staff - Pay","3276950","201401",08/04/2013 00:00:00,376.77,"31230","Employment & Recruitment Agencies","REDACTED DATA","ADECCO UK LIMITED","",,"232347975"
"London Borough of Redbridge","http://opendatacommunities.org/doc/london-borough-council/redbridge","6BADULTSOCIA","Adult Social Care","6CSUPPSERMGT","Support Service & Management Costs","REV","Revenue","R4475","Payments Team","01-EMPLOYEES","Employees","01A","Direct employee expenses","4","Agency Staff - Pay","3276950","201401",08/04/2013 00:00:00,376.59,"31230","Employment & Recruitment Agencies","REDACTED DATA","ADECCO UK LIMITED","",,"232347975"
"London Borough of Redbridge","http://opendatacommunities.org/doc/london-borough-council/redbridge","6BADULTSOCIA","Adult Social Care","6CSUPPSERMGT","Support Service & Management Costs","REV","Revenue","R4475","Payments Team","01-EMPLOYEES","Employees","01A","Direct employee expenses","4","Agency Staff - Pay","3276950","201401",08/04/2013 00:00:00,374.83,"31230","Employment & Recruitment Agencies","REDACTED DATA","ADECCO UK LIMITED","",,"232347975"
"London Borough of Redbridge","http://opendatacommunities.org/doc/london-borough-council/redbridge","1BCENTRALPUB","Central Services to the Public","1CTRADSURDEF","Trading Account Surpluses & Deficits","REV","Revenue","R5754","Income","01-EMPLOYEES","Employees","01A","Direct employee expenses","4","Agency Staff - Pay","3276950","201401",08/04/2013 00:00:00,373.56,"31230","Employment & Recruitment Agencies","REDACTED DATA","ADECCO UK LIMITED","",,"232347975"
"London Borough of Redbridge","http://opendatacommunities.org/doc/london-borough-council/redbridge","1BOTHEROPI&E","Other Operating Income & Expenditure","1CTRADSURDEF","Trading Account Surpluses & Deficits","REV","Revenue","R9460","Human Resources misc","01-EMPLOYEES","Employees","01A","Direct employee expenses","4","Agency Staff - Pay","3276950","201401",08/04/2013 00:00:00,372.53,"31230","Employment & Recruitment Agencies","REDACTED DATA","ADECCO UK LIMITED","",,"232347975"
"London Borough of Redbridge","http://opendatacommunities.org/doc/london-borough-council/redbridge","5BGFHOUSING","General Fund Housing","5CHOUSBENADM","Housing Benefits Administration","REV","Revenue","R5772","DWP - Supplementary Admin Grant","01-EMPLOYEES","Employees","01A","Direct employee expenses","4","Agency Staff - Pay","3276950","201401",08/04/2013 00:00:00,370.26,"31230","Employment & Recruitment Agencies","REDACTED DATA","ADECCO UK LIMITED","",,"232347975"
"London Borough of Redbridge","http://opendatacommunities.org/doc/london-borough-council/redbridge","3BLEACENTFND","LEA Centrally Held School Funds","3CSCHSTRATMG","Schools Strategic Management","REV","Revenue","R3173","Bus Supp - CP, EI and CRCs","01-EMPLOYEES","Employees","01A","Direct employee expenses","4","Agency Staff - Pay","3276950","201401",08/04/2013 00:00:00,369.7,"31230","Employment & Recruitment Agencies","REDACTED DATA","ADECCO UK LIMITED","",,"232347975"
"London Borough of Redbridge","http://opendatacommunities.org/doc/london-borough-council/redbridge","5BGFHOUSING","General Fund Housing","5CHOUMGTSUPP","Housing Management & Support Services","REV","Revenue","R5500","Housing Advice Centre","01-EMPLOYEES","Employees","01A","Direct employee expenses","4","Agency Staff - Pay","3276950","201401",08/04/2013 00:00:00,369.62,"31230","Employment & Recruitment Agencies","REDACTED DATA","ADECCO UK LIMITED","",,"232347975"
"London Borough of Redbridge","http://opendatacommunities.org/doc/london-borough-council/redbridge","1BOTHEROPI&E","Other Operating Income & Expenditure","1CTRADSURDEF","Trading Account Surpluses & Deficits","REV","Revenue","R9460","Human Resources misc","01-EMPLOYEES","Employees","01A","Direct employee expenses","4","Agency Staff - Pay","3276950","201401",08/04/2013 00:00:00,367.6,"31230","Employment & Recruitment Agencies","REDACTED DATA","ADECCO UK LIMITED","",,"232347975"
"London Borough of Redbridge","http://opendatacommunities.org/doc/london-borough-council/redbridge","3BLEACENTFND","LEA Centrally Held School Funds","3CSCHSTRATMG","Schools Strategic Management","REV","Revenue","R3173","Bus Supp - CP, EI and CRCs","01-EMPLOYEES","Employees","01A","Direct employee expenses","4","Agency Staff - Pay","3276950","201401",08/04/2013 00:00:00,366.39,"31230","Employment & Recruitment Agencies","REDACTED DATA","ADECCO UK LIMITED","",,"232347975"
"London Borough of Redbridge","http://opendatacommunities.org/doc/london-borough-council/redbridge","3BLEACENTFND","LEA Centrally Held School Funds","3CSCHSTRATMG","Schools Strategic Management","REV","Revenue","R3173","Bus Supp - CP, EI and CRCs","01-EMPLOYEES","Employees","01A","Direct employee expenses","4","Agency Staff - Pay","3276950","201401",08/04/2013 00:00:00,366.28,"31230","Employment & Recruitment Agencies","REDACTED DATA","ADECCO UK LIMITED","",,"232347975"
"London Borough of Redbridge","http://opendatacommunities.org/doc/london-borough-council/redbridge","9BNONBVO","Outside the BVACOP Objective Structure","9CNONBVO","Outside the BVACOP Objective Structure","REV","Revenue","R5219","Capital Programme Team","01-EMPLOYEES","Employees","01A","Direct employee expenses","4","Agency Staff - Pay","3276950","201401",08/04/2013 00:00:00,364.73,"31230","Employment & Recruitment Agencies","REDACTED DATA","ADECCO UK LIMITED","",,"232347975"
"London Borough of Redbridge","http://opendatacommunities.org/doc/london-borough-council/redbridge","3BNONSCHFUND","Non-School Funding","3CNONSCH","Non Schools","REV","Revenue","R3937","Chadwell CC","01-EMPLOYEES","Employees","01A","Direct employee expenses","4","Agency Staff - Pay","3276950","201401",08/04/2013 00:00:00,363.97,"31230","Employment & Recruitment Agencies","REDACTED DATA","ADECCO UK LIMITED","",,"232347975"
"London Borough of Redbridge","http://opendatacommunities.org/doc/london-borough-council/redbridge","3BLEACENTFND","LEA Centrally Held School Funds","3CSCHSTRATMG","Schools Strategic Management","REV","Revenue","R3174","Bus Supp - CLAFH","01-EMPLOYEES","Employees","01A","Direct employee expenses","4","Agency Staff - Pay","3276950","201401",08/04/2013 00:00:00,362.92,"31230","Employment & Recruitment Agencies","REDACTED DATA","ADECCO UK LIMITED","",,"232347975"
"London Borough of Redbridge","http://opendatacommunities.org/doc/london-borough-council/redbridge","6BSOCIALSERV","Social Services","6CCHILLOOKED","Children Looked After","REV","Revenue","R2175","Ray Lodge Building","01-EMPLOYEES","Employees","01A","Direct employee expenses","4","Agency Staff - Pay","3276950","201401",08/04/2013 00:00:00,362.92,"31230","Employment & Recruitment Agencies","REDACTED DATA","ADECCO UK LIMITED","",,"232347975"
"London Borough of Redbridge","http://opendatacommunities.org/doc/london-borough-council/redbridge","1BOTHEROPI&E","Other Operating Income & Expenditure","1CTRADSURDEF","Trading Account Surpluses & Deficits","REV","Revenue","R9152","Financial Services","01-EMPLOYEES","Employees","01A","Direct employee expenses","4","Agency Staff - Pay","3276950","201401",08/04/2013 00:00:00,360.97,"31230","Employment & Recruitment Agencies","REDACTED DATA","ADECCO UK LIMITED","",,"232347975"
"London Borough of Redbridge","http://opendatacommunities.org/doc/london-borough-council/redbridge","6BADULTSOCIA","Adult Social Care","6CSUPPSERMGT","Support Service & Management Costs","REV","Revenue","R4475","Payments Team","01-EMPLOYEES","Employees","01A","Direct employee expenses","4","Agency Staff - Pay","3276950","201401",08/04/2013 00:00:00,356.08,"31230","Employment & Recruitment Agencies","REDACTED DATA","ADECCO UK LIMITED","",,"232347975"
"London Borough of Redbridge","http://opendatacommunities.org/doc/london-borough-council/redbridge","3BLEACENTFND","LEA Centrally Held School Funds","3CSCHSTRATMG","Schools Strategic Management","REV","Revenue","R3271","Teachers Centre Deleg","01-EMPLOYEES","Employees","01A","Direct employee expenses","4","Agency Staff - Pay","3276950","201401",08/04/2013 00:00:00,354.16,"31230","Employment & Recruitment Agencies","REDACTED DATA","ADECCO UK LIMITED","",,"232347975"
"London Borough of Redbridge","http://opendatacommunities.org/doc/london-borough-council/redbridge","3BLEACENTFND","LEA Centrally Held School Funds","3CFACILIMPRO","Facilitating School Improvement","REV","Revenue","R3240","Advisers/Inspectors","01-EMPLOYEES","Employees","01A","Direct employee expenses","4","Agency Staff - Pay","3276950","201401",08/04/2013 00:00:00,350.87,"31230","Employment & Recruitment Agencies","REDACTED DATA","ADECCO UK LIMITED","",,"232347975"
"London Borough of Redbridge","http://opendatacommunities.org/doc/london-borough-council/redbridge","1BOTHEROPI&E","Other Operating Income & Expenditure","1CTRADSURDEF","Trading Account Surpluses & Deficits","REV","Revenue","R9460","Human Resources misc","01-EMPLOYEES","Employees","01A","Direct employee expenses","4","Agency Staff - Pay","3276950","201401",08/04/2013 00:00:00,349.04,"31230","Employment & Recruitment Agencies","REDACTED DATA","ADECCO UK LIMITED","",,"232347975"
"London Borough of Redbridge","http://opendatacommunities.org/doc/london-borough-council/redbridge","1BOTHEROPI&E","Other Operating Income & Expenditure","1CTRADSURDEF","Trading Account Surpluses & Deficits","REV","Revenue","R9460","Human Resources misc","01-EMPLOYEES","Employees","01A","Direct employee expenses","4","Agency Staff - Pay","3276950","201401",08/04/2013 00:00:00,345.59,"31230","Employment & Recruitment Agencies","REDACTED DATA","ADECCO UK LIMITED","",,"232347975"
"London Borough of Redbridge","http://opendatacommunities.org/doc/london-borough-council/redbridge","5BGFHOUSING","General Fund Housing","5CHOUSADVICE","Housing Advice","REV","Revenue","R5530","HAC Temporary Accomodation","01-EMPLOYEES","Employees","01A","Direct employee expenses","4","Agency Staff - Pay","3276950","201401",08/04/2013 00:00:00,344.42,"31230","Employment & Recruitment Agencies","REDACTED DATA","ADECCO UK LIMITED","",,"232347975"
"London Borough of Redbridge","http://opendatacommunities.org/doc/london-borough-council/redbridge","1BCENTRALPUB","Central Services to the Public","1CTRADSURDEF","Trading Account Surpluses & Deficits","REV","Revenue","R5770","Income Assessment","01-EMPLOYEES","Employees","01A","Direct employee expenses","4","Agency Staff - Pay","3276950","201401",08/04/2013 00:00:00,343.48,"31230","Employment & Recruitment Agencies","REDACTED DATA","ADECCO UK LIMITED","",,"232347975"
"London Borough of Redbridge","http://opendatacommunities.org/doc/london-borough-council/redbridge","1BOTHEROPI&E","Other Operating Income & Expenditure","1CTRADSURDEF","Trading Account Surpluses & Deficits","REV","Revenue","R9460","Human Resources misc","01-EMPLOYEES","Employees","01A","Direct employee expenses","4","Agency Staff - Pay","3276950","201401",08/04/2013 00:00:00,342.14,"31230","Employment & Recruitment Agencies","REDACTED DATA","ADECCO UK LIMITED","",,"232347975"
"London Borough of Redbridge","http://opendatacommunities.org/doc/london-borough-council/redbridge","1BOTHEROPI&E","Other Operating Income & Expenditure","1CTRADSURDEF","Trading Account Surpluses & Deficits","REV","Revenue","R9460","Human Resources misc","01-EMPLOYEES","Employees","01A","Direct employee expenses","4","Agency Staff - Pay","3276950","201401",08/04/2013 00:00:00,339.27,"31230","Employment & Recruitment Agencies","REDACTED DATA","ADECCO UK LIMITED","",,"232347975"
"London Borough of Redbridge","http://opendatacommunities.org/doc/london-borough-council/redbridge","1BOTHEROPI&E","Other Operating Income & Expenditure","1CTRADSURDEF","Trading Account Surpluses & Deficits","REV","Revenue","R9152","Financial Services","01-EMPLOYEES","Employees","01A","Direct employee expenses","4","Agency Staff - Pay","3276950","201401",08/04/2013 00:00:00,338.38,"31230","Employment & Recruitment Agencies","REDACTED DATA","ADECCO UK LIMITED","",,"232347975"
"London Borough of Redbridge","http://opendatacommunities.org/doc/london-borough-council/redbridge","3BNONSCHFUND","Non-School Funding","3CNONSCH","Non Schools","REV","Revenue","R3936","Albert Rd/Mildmay CC","01-EMPLOYEES","Employees","01A","Direct employee expenses","4","Agency Staff - Pay","3276950","201401",08/04/2013 00:00:00,338.38,"31230","Employment & Recruitment Agencies","REDACTED DATA","ADECCO UK LIMITED","",,"232347975"
"London Borough of Redbridge","http://opendatacommunities.org/doc/london-borough-council/redbridge","3BNONSCHFUND","Non-School Funding","3CNONSCH","Non Schools","REV","Revenue","R3955","Redbridge Primary CC","01-EMPLOYEES","Employees","01A","Direct employee expenses","4","Agency Staff - Pay","3276950","201401",08/04/2013 00:00:00,338.38,"31230","Employment & Recruitment Agencies","REDACTED DATA","ADECCO UK LIMITED","",,"232347975"
"London Borough of Redbridge","http://opendatacommunities.org/doc/london-borough-council/redbridge","3BNONSCHFUND","Non-School Funding","3CNONSCH","Non Schools","REV","Revenue","R3955","Redbridge Primary CC","01-EMPLOYEES","Employees","01A","Direct employee expenses","4","Agency Staff - Pay","3276950","201401",08/04/2013 00:00:00,338.38,"31230","Employment & Recruitment Agencies","REDACTED DATA","ADECCO UK LIMITED","",,"232347975"
"London Borough of Redbridge","http://opendatacommunities.org/doc/london-borough-council/redbridge","1BOTHEROPI&E","Other Operating Income & Expenditure","1CTRADSURDEF","Trading Account Surpluses & Deficits","REV","Revenue","R9003","One Stop Shop","01-EMPLOYEES","Employees","01A","Direct employee expenses","4","Agency Staff - Pay","3276950","201401",08/04/2013 00:00:00,335.85,"31230","Employment & Recruitment Agencies","REDACTED DATA","ADECCO UK LIMITED","",,"232347975"
"London Borough of Redbridge","http://opendatacommunities.org/doc/london-borough-council/redbridge","3BNONSCHFUND","Non-School Funding","3CNONSCH","Non Schools","REV","Revenue","R3955","Redbridge Primary CC","01-EMPLOYEES","Employees","01A","Direct employee expenses","4","Agency Staff - Pay","3276950","201401",08/04/2013 00:00:00,335.58,"31230","Employment & Recruitment Agencies","REDACTED DATA","ADECCO UK LIMITED","",,"232347975"
"London Borough of Redbridge","http://opendatacommunities.org/doc/london-borough-council/redbridge","1BCENTRALPUB","Central Services to the Public","1CLOCALTAXCO","Local Tax Collection","REV","Revenue","R5760","Council Tax Collection","01-EMPLOYEES","Employees","01A","Direct employee expenses","4","Agency Staff - Pay","3276950","201401",08/04/2013 00:00:00,334.99,"31230","Employment & Recruitment Agencies","REDACTED DATA","ADECCO UK LIMITED","",,"232347975"
"London Borough of Redbridge","http://opendatacommunities.org/doc/london-borough-council/redbridge","5BGFHOUSING","General Fund Housing","5CHOUSADVICE","Housing Advice","REV","Revenue","R5530","HAC Temporary Accomodation","01-EMPLOYEES","Employees","01A","Direct employee expenses","4","Agency Staff - Pay","3276950","201401",08/04/2013 00:00:00,332.06,"31230","Employment & Recruitment Agencies","REDACTED DATA","ADECCO UK LIMITED","",,"232347975"
"London Borough of Redbridge","http://opendatacommunities.org/doc/london-borough-council/redbridge","1BCENTRALPUB","Central Services to the Public","1CLOCALTAXCO","Local Tax Collection","REV","Revenue","R5760","Council Tax Collection","01-EMPLOYEES","Employees","01A","Direct employee expenses","4","Agency Staff - Pay","3276950","201401",08/04/2013 00:00:00,328.99,"31230","Employment & Recruitment Agencies","REDACTED DATA","ADECCO UK LIMITED","",,"232347975"
"London Borough of Redbridge","http://opendatacommunities.org/doc/london-borough-council/redbridge","1BOTHEROPI&E","Other Operating Income & Expenditure","1CTRADSURDEF","Trading Account Surpluses & Deficits","REV","Revenue","R9601","Lynton House","01-EMPLOYEES","Employees","01A","Direct employee expenses","4","Agency Staff - Pay","3276950","201401",08/04/2013 00:00:00,322.89,"31230","Employment & Recruitment Agencies","REDACTED DATA","ADECCO UK LIMITED","",,"232347975"
"London Borough of Redbridge","http://opendatacommunities.org/doc/london-borough-council/redbridge","1BOTHEROPI&E","Other Operating Income & Expenditure","1CTRADSURDEF","Trading Account Surpluses & Deficits","REV","Revenue","R9601","Lynton House","01-EMPLOYEES","Employees","01A","Direct employee expenses","4","Agency Staff - Pay","3276950","201401",08/04/2013 00:00:00,322.89,"31230","Employment & Recruitment Agencies","REDACTED DATA","ADECCO UK LIMITED","",,"232347975"
"London Borough of Redbridge","http://opendatacommunities.org/doc/london-borough-council/redbridge","1BOTHEROPI&E","Other Operating Income & Expenditure","1CTRADSURDEF","Trading Account Surpluses & Deficits","REV","Revenue","R9460","Human Resources misc","01-EMPLOYEES","Employees","01A","Direct employee expenses","4","Agency Staff - Pay","3276950","201401",08/04/2013 00:00:00,321.21,"31230","Employment & Recruitment Agencies","REDACTED DATA","ADECCO UK LIMITED","",,"232347975"
"London Borough of Redbridge","http://opendatacommunities.org/doc/london-borough-council/redbridge","2BPLAN&DEVEL","Planning & Development Services","2CCOMMDEVT","Community Development","REV","Revenue","R6510","Dev Management Tech","01-EMPLOYEES","Employees","01A","Direct employee expenses","4","Agency Staff - Pay","3276950","201401",08/04/2013 00:00:00,320.95,"31230","Employment & Recruitment Agencies","REDACTED DATA","ADECCO UK LIMITED","",,"232347975"
"London Borough of Redbridge","http://opendatacommunities.org/doc/london-borough-council/redbridge","3BLEACENTFND","LEA Centrally Held School Funds","3CSCHSTRATMG","Schools Strategic Management","REV","Revenue","R3174","Bus Supp - CLAFH","01-EMPLOYEES","Employees","01A","Direct employee expenses","4","Agency Staff - Pay","3276950","201401",08/04/2013 00:00:00,317.63,"31230","Employment & Recruitment Agencies","REDACTED DATA","ADECCO UK LIMITED","",,"232347975"
"London Borough of Redbridge","http://opendatacommunities.org/doc/london-borough-council/redbridge","1BOTHEROPI&E","Other Operating Income & Expenditure","1CTRADSURDEF","Trading Account Surpluses & Deficits","REV","Revenue","R9003","One Stop Shop","01-EMPLOYEES","Employees","01A","Direct employee expenses","4","Agency Staff - Pay","3276950","201401",08/04/2013 00:00:00,317.07,"31230","Employment & Recruitment Agencies","REDACTED DATA","ADECCO UK LIMITED","",,"232347975"
"London Borough of Redbridge","http://opendatacommunities.org/doc/london-borough-council/redbridge","1BOTHEROPI&E","Other Operating Income & Expenditure","1CTRADSURDEF","Trading Account Surpluses & Deficits","REV","Revenue","R9460","Human Resources misc","01-EMPLOYEES","Employees","01A","Direct employee expenses","4","Agency Staff - Pay","3276950","201401",08/04/2013 00:00:00,314.32,"31230","Employment & Recruitment Agencies","REDACTED DATA","ADECCO UK LIMITED","",,"232347975"
"London Borough of Redbridge","http://opendatacommunities.org/doc/london-borough-council/redbridge","1BOTHEROPI&E","Other Operating Income & Expenditure","1CTRADSURDEF","Trading Account Surpluses & Deficits","REV","Revenue","R9460","Human Resources misc","01-EMPLOYEES","Employees","01A","Direct employee expenses","4","Agency Staff - Pay","3276950","201401",08/04/2013 00:00:00,311.46,"31230","Employment & Recruitment Agencies","REDACTED DATA","ADECCO UK LIMITED","",,"232347975"
"London Borough of Redbridge","http://opendatacommunities.org/doc/london-borough-council/redbridge","6BSOCIALSERV","Social Services","6CCHILLOOKED","Children Looked After","REV","Revenue","R2135","SEN and CD - Aiming High For Disabled Children","01-EMPLOYEES","Employees","01A","Direct employee expenses","4","Agency Staff - Pay","3276950","201401",08/04/2013 00:00:00,304.22,"31230","Employment & Recruitment Agencies","REDACTED DATA","ADECCO UK LIMITED","",,"232347975"
"London Borough of Redbridge","http://opendatacommunities.org/doc/london-borough-council/redbridge","5BGFHOUSING","General Fund Housing","5CHOUMGTSUPP","Housing Management & Support Services","REV","Revenue","R5529","HAC Assessment","01-EMPLOYEES","Employees","01A","Direct employee expenses","4","Agency Staff - Pay","3276950","201401",08/04/2013 00:00:00,301.12,"31230","Employment & Recruitment Agencies","REDACTED DATA","ADECCO UK LIMITED","",,"232347975"
"London Borough of Redbridge","http://opendatacommunities.org/doc/london-borough-council/redbridge","3BOPTIONHLDG","Optional Holding Accounts","3CYOUTH","Youth Service","REV","Revenue","R3359","Effective Practice","01-EMPLOYEES","Employees","01A","Direct employee expenses","4","Agency Staff - Pay","3276950","201401",08/04/2013 00:00:00,300.77,"31230","Employment & Recruitment Agencies","REDACTED DATA","ADECCO UK LIMITED","",,"232347975"
"London Borough of Redbridge","http://opendatacommunities.org/doc/london-borough-council/redbridge","3BNONSCHFUND","Non-School Funding","3CNONSCH","Non Schools","REV","Revenue","R3937","Chadwell CC","01-EMPLOYEES","Employees","01A","Direct employee expenses","4","Agency Staff - Pay","3276950","201401",08/04/2013 00:00:00,293.94,"31230","Employment & Recruitment Agencies","REDACTED DATA","ADECCO UK LIMITED","",,"232347975"
"London Borough of Redbridge","http://opendatacommunities.org/doc/london-borough-council/redbridge","3BLEACENTFND","LEA Centrally Held School Funds","3CSCHSTRATMG","Schools Strategic Management","REV","Revenue","R3500","Sch Gov Body Sectn","01-EMPLOYEES","Employees","01A","Direct employee expenses","4","Agency Staff - Pay","3276950","201401",08/04/2013 00:00:00,293.81,"31230","Employment & Recruitment Agencies","REDACTED DATA","ADECCO UK LIMITED","",,"232347975"
"London Borough of Redbridge","http://opendatacommunities.org/doc/london-borough-council/redbridge","6BSOCIALSERV","Social Services","6CCHILLOOKED","Children Looked After","REV","Revenue","R2140","CQ and F - Safeguarding and Care Planning Soc Care","01-EMPLOYEES","Employees","01A","Direct employee expenses","4","Agency Staff - Pay","3276950","201401",08/04/2013 00:00:00,292.94,"31230","Employment & Recruitment Agencies","REDACTED DATA","ADECCO UK LIMITED","",,"232347975"
"London Borough of Redbridge","http://opendatacommunities.org/doc/london-borough-council/redbridge","3BNONSCHFUND","Non-School Funding","3CNONSCH","Non Schools","REV","Revenue","R3937","Chadwell CC","01-EMPLOYEES","Employees","01A","Direct employee expenses","4","Agency Staff - Pay","3276950","201401",08/04/2013 00:00:00,291.56,"31230","Employment & Recruitment Agencies","REDACTED DATA","ADECCO UK LIMITED","",,"232347975"
"London Borough of Redbridge","http://opendatacommunities.org/doc/london-borough-council/redbridge","1BOTHEROPI&E","Other Operating Income & Expenditure","1CTRADSURDEF","Trading Account Surpluses & Deficits","REV","Revenue","R9252","IT Services","01-EMPLOYEES","Employees","01A","Direct employee expenses","4","Agency Staff - Pay","3276950","201401",08/04/2013 00:00:00,288.16,"31230","Employment & Recruitment Agencies","REDACTED DATA","ADECCO UK LIMITED","",,"232347975"
"London Borough of Redbridge","http://opendatacommunities.org/doc/london-borough-council/redbridge","1BOTHEROPI&E","Other Operating Income & Expenditure","1CTRADSURDEF","Trading Account Surpluses & Deficits","REV","Revenue","R9460","Human Resources misc","01-EMPLOYEES","Employees","01A","Direct employee expenses","4","Agency Staff - Pay","3276950","201401",08/04/2013 00:00:00,286.98,"31230","Employment & Recruitment Agencies","REDACTED DATA","ADECCO UK LIMITED","",,"232347975"
"London Borough of Redbridge","http://opendatacommunities.org/doc/london-borough-council/redbridge","3BLEACENTFND","LEA Centrally Held School Funds","3CSCHSTRATMG","Schools Strategic Management","REV","Revenue","R3500","Sch Gov Body Sectn","01-EMPLOYEES","Employees","01A","Direct employee expenses","4","Agency Staff - Pay","3276950","201401",08/04/2013 00:00:00,283.79,"31230","Employment & Recruitment Agencies","REDACTED DATA","ADECCO UK LIMITED","",,"232347975"
"London Borough of Redbridge","http://opendatacommunities.org/doc/london-borough-council/redbridge","3BLEACENTFND","LEA Centrally Held School Funds","3CSCHSTRATMG","Schools Strategic Management","REV","Revenue","R3500","Sch Gov Body Sectn","01-EMPLOYEES","Employees","01A","Direct employee expenses","4","Agency Staff - Pay","3276950","201401",08/04/2013 00:00:00,283.79,"31230","Employment & Recruitment Agencies","REDACTED DATA","ADECCO UK LIMITED","",,"232347975"
"London Borough of Redbridge","http://opendatacommunities.org/doc/london-borough-council/redbridge","1BOTHEROPI&E","Other Operating Income & Expenditure","1CTRADSURDEF","Trading Account Surpluses & Deficits","REV","Revenue","R9252","IT Services","01-EMPLOYEES","Employees","01A","Direct employee expenses","4","Agency Staff - Pay","3276950","201401",08/04/2013 00:00:00,282.06,"31230","Employment & Recruitment Agencies","REDACTED DATA","ADECCO UK LIMITED","",,"232347975"
"London Borough of Redbridge","http://opendatacommunities.org/doc/london-borough-council/redbridge","4BTRANSPORT","Transport Planning, Policy & Strategy","4CMANGT&SUPP","Management & Support Services","REV","Revenue","R7000","Highways Executive","01-EMPLOYEES","Employees","01A","Direct employee expenses","4","Agency Staff - Pay","3276950","201401",08/04/2013 00:00:00,277.47,"31230","Employment & Recruitment Agencies","REDACTED DATA","ADECCO UK LIMITED","",,"232347975"
"London Borough of Redbridge","http://opendatacommunities.org/doc/london-borough-council/redbridge","1BCENTRALPUB","Central Services to the Public","1CTRADSURDEF","Trading Account Surpluses & Deficits","REV","Revenue","R5770","Income Assessment","01-EMPLOYEES","Employees","01A","Direct employee expenses","4","Agency Staff - Pay","3276950","201401",08/04/2013 00:00:00,276.86,"31230","Employment & Recruitment Agencies","REDACTED DATA","ADECCO UK LIMITED","",,"232347975"
"London Borough of Redbridge","http://opendatacommunities.org/doc/london-borough-council/redbridge","1BOTHEROPI&E","Other Operating Income & Expenditure","1CTRADSURDEF","Trading Account Surpluses & Deficits","REV","Revenue","R9460","Human Resources misc","01-EMPLOYEES","Employees","01A","Direct employee expenses","4","Agency Staff - Pay","3276950","201401",08/04/2013 00:00:00,276.63,"31230","Employment & Recruitment Agencies","REDACTED DATA","ADECCO UK LIMITED","",,"232347975"
"London Borough of Redbridge","http://opendatacommunities.org/doc/london-borough-council/redbridge","4BTRANSPORT","Transport Planning, Policy & Strategy","4CMANGT&SUPP","Management & Support Services","REV","Revenue","R7000","Highways Executive","01-EMPLOYEES","Employees","01A","Direct employee expenses","4","Agency Staff - Pay","3276950","201401",08/04/2013 00:00:00,276.63,"31230","Employment & Recruitment Agencies","REDACTED DATA","ADECCO UK LIMITED","",,"232347975"
"London Borough of Redbridge","http://opendatacommunities.org/doc/london-borough-council/redbridge","1BCENTRALPUB","Central Services to the Public","1CTRADSURDEF","Trading Account Surpluses & Deficits","REV","Revenue","R5770","Income Assessment","01-EMPLOYEES","Employees","01A","Direct employee expenses","4","Agency Staff - Pay","3276950","201401",08/04/2013 00:00:00,273.84,"31230","Employment & Recruitment Agencies","REDACTED DATA","ADECCO UK LIMITED","",,"232347975"
"London Borough of Redbridge","http://opendatacommunities.org/doc/london-borough-council/redbridge","1BOTHEROPI&E","Other Operating Income & Expenditure","1CTRADSURDEF","Trading Account Surpluses & Deficits","REV","Revenue","R9600","Town Hall","01-EMPLOYEES","Employees","01A","Direct employee expenses","4","Agency Staff - Pay","3276950","201401",08/04/2013 00:00:00,270.59,"31230","Employment & Recruitment Agencies","REDACTED DATA","ADECCO UK LIMITED","",,"232347975"
"London Borough of Redbridge","http://opendatacommunities.org/doc/london-borough-council/redbridge","3BLEACENTFND","LEA Centrally Held School Funds","3CSCHSTRATMG","Schools Strategic Management","REV","Revenue","R3500","Sch Gov Body Sectn","01-EMPLOYEES","Employees","01A","Direct employee expenses","4","Agency Staff - Pay","3276950","201401",08/04/2013 00:00:00,267.57,"31230","Employment & Recruitment Agencies","REDACTED DATA","ADECCO UK LIMITED","",,"232347975"
"London Borough of Redbridge","http://opendatacommunities.org/doc/london-borough-council/redbridge","3BLEACENTFND","LEA Centrally Held School Funds","3CSCHSTRATMG","Schools Strategic Management","REV","Revenue","R3173","Bus Supp - CP, EI and CRCs","01-EMPLOYEES","Employees","01A","Direct employee expenses","4","Agency Staff - Pay","3276950","201401",08/04/2013 00:00:00,264.8,"31230","Employment & Recruitment Agencies","REDACTED DATA","ADECCO UK LIMITED","",,"232347975"
"London Borough of Redbridge","http://opendatacommunities.org/doc/london-borough-council/redbridge","3BLEACENTFND","LEA Centrally Held School Funds","3CSCHSTRATMG","Schools Strategic Management","REV","Revenue","R3173","Bus Supp - CP, EI and CRCs","01-EMPLOYEES","Employees","01A","Direct employee expenses","4","Agency Staff - Pay","3276950","201401",08/04/2013 00:00:00,264.8,"31230","Employment & Recruitment Agencies","REDACTED DATA","ADECCO UK LIMITED","",,"232347975"
"London Borough of Redbridge","http://opendatacommunities.org/doc/london-borough-council/redbridge","3BLEACENTFND","LEA Centrally Held School Funds","3CSCHSTRATMG","Schools Strategic Management","REV","Revenue","R3271","Teachers Centre Deleg","01-EMPLOYEES","Employees","01A","Direct employee expenses","4","Agency Staff - Pay","3276950","201401",08/04/2013 00:00:00,262.84,"31230","Employment & Recruitment Agencies","REDACTED DATA","ADECCO UK LIMITED","",,"232347975"
"London Borough of Redbridge","http://opendatacommunities.org/doc/london-borough-council/redbridge","1BOTHEROPI&E","Other Operating Income & Expenditure","1CTRADSURDEF","Trading Account Surpluses & Deficits","REV","Revenue","R9252","IT Services","01-EMPLOYEES","Employees","01A","Direct employee expenses","4","Agency Staff - Pay","3276950","201401",08/04/2013 00:00:00,261.23,"31230","Employment & Recruitment Agencies","REDACTED DATA","ADECCO UK LIMITED","",,"232347975"
"London Borough of Redbridge","http://opendatacommunities.org/doc/london-borough-council/redbridge","1BCENTRALPUB","Central Services to the Public","1CTRADSURDEF","Trading Account Surpluses & Deficits","REV","Revenue","R5754","Income","01-EMPLOYEES","Employees","01A","Direct employee expenses","4","Agency Staff - Pay","3276950","201401",08/04/2013 00:00:00,252.02,"31230","Employment & Recruitment Agencies","REDACTED DATA","ADECCO UK LIMITED","",,"232347975"
"London Borough of Redbridge","http://opendatacommunities.org/doc/london-borough-council/redbridge","1BCENTRALPUB","Central Services to the Public","1CTRADSURDEF","Trading Account Surpluses & Deficits","REV","Revenue","R5754","Income","01-EMPLOYEES","Employees","01A","Direct employee expenses","4","Agency Staff - Pay","3276950","201401",08/04/2013 00:00:00,248.82,"31230","Employment & Recruitment Agencies","REDACTED DATA","ADECCO UK LIMITED","",,"232347975"
"London Borough of Redbridge","http://opendatacommunities.org/doc/london-borough-council/redbridge","3BLEACENTFND","LEA Centrally Held School Funds","3CFACILIMPRO","Facilitating School Improvement","REV","Revenue","R3240","Advisers/Inspectors","01-EMPLOYEES","Employees","01A","Direct employee expenses","4","Agency Staff - Pay","3276950","201401",08/04/2013 00:00:00,247.11,"31230","Employment & Recruitment Agencies","REDACTED DATA","ADECCO UK LIMITED","",,"232347975"
"London Borough of Redbridge","http://opendatacommunities.org/doc/london-borough-council/redbridge","1BCENTRALPUB","Central Services to the Public","1CTRADSURDEF","Trading Account Surpluses & Deficits","REV","Revenue","R5754","Income","01-EMPLOYEES","Employees","01A","Direct employee expenses","4","Agency Staff - Pay","3276950","201401",08/04/2013 00:00:00,245.62,"31230","Employment & Recruitment Agencies","REDACTED DATA","ADECCO UK LIMITED","",,"232347975"
"London Borough of Redbridge","http://opendatacommunities.org/doc/london-borough-council/redbridge","1BOTHEROPI&E","Other Operating Income & Expenditure","1CTRADSURDEF","Trading Account Surpluses & Deficits","REV","Revenue","R9460","Human Resources misc","01-EMPLOYEES","Employees","01A","Direct employee expenses","4","Agency Staff - Pay","3276950","201401",08/04/2013 00:00:00,245.6,"31230","Employment & Recruitment Agencies","REDACTED DATA","ADECCO UK LIMITED","",,"232347975"
"London Borough of Redbridge","http://opendatacommunities.org/doc/london-borough-council/redbridge","2BPLAN&DEVEL","Planning & Development Services","2CCOMMDEVT","Community Development","REV","Revenue","R9855","Safer Communities Core Budget","01-EMPLOYEES","Employees","01A","Direct employee expenses","4","Agency Staff - Pay","3276950","201401",08/04/2013 00:00:00,242.16,"31230","Employment & Recruitment Agencies","REDACTED DATA","ADECCO UK LIMITED","",,"232347975"
"London Borough of Redbridge","http://opendatacommunities.org/doc/london-borough-council/redbridge","6BSOCIALSERV","Social Services","6CCHILLOOKED","Children Looked After","REV","Revenue","R2135","SEN and CD - Aiming High For Disabled Children","01-EMPLOYEES","Employees","01A","Direct employee expenses","4","Agency Staff - Pay","3276950","201401",08/04/2013 00:00:00,242.16,"31230","Employment & Recruitment Agencies","REDACTED DATA","ADECCO UK LIMITED","",,"232347975"
"London Borough of Redbridge","http://opendatacommunities.org/doc/london-borough-council/redbridge","6BSOCIALSERV","Social Services","6CCHILLOOKED","Children Looked After","REV","Revenue","R2135","SEN and CD - Aiming High For Disabled Children","01-EMPLOYEES","Employees","01A","Direct employee expenses","4","Agency Staff - Pay","3276950","201401",08/04/2013 00:00:00,242.16,"31230","Employment & Recruitment Agencies","REDACTED DATA","ADECCO UK LIMITED","",,"232347975"
"London Borough of Redbridge","http://opendatacommunities.org/doc/london-borough-council/redbridge","3BLEACENTFND","LEA Centrally Held School Funds","3CSCHSTRATMG","Schools Strategic Management","REV","Revenue","R3176","Bus Supp - Non-Trust","01-EMPLOYEES","Employees","01A","Direct employee expenses","4","Agency Staff - Pay","3276950","201401",08/04/2013 00:00:00,236.82,"31230","Employment & Recruitment Agencies","REDACTED DATA","ADECCO UK LIMITED","",,"232347975"
"London Borough of Redbridge","http://opendatacommunities.org/doc/london-borough-council/redbridge","3BLEACENTFND","LEA Centrally Held School Funds","3CSCHSTRATMG","Schools Strategic Management","REV","Revenue","R3175","Bus Supp - SEND, CQF","01-EMPLOYEES","Employees","01A","Direct employee expenses","4","Agency Staff - Pay","3276950","201401",08/04/2013 00:00:00,231.17,"31230","Employment & Recruitment Agencies","REDACTED DATA","ADECCO UK LIMITED","",,"232347975"
"London Borough of Redbridge","http://opendatacommunities.org/doc/london-borough-council/redbridge","3BLEACENTFND","LEA Centrally Held School Funds","3CSCHSTRATMG","Schools Strategic Management","REV","Revenue","R3175","Bus Supp - SEND, CQF","01-EMPLOYEES","Employees","01A","Direct employee expenses","4","Agency Staff - Pay","3276950","201401",08/04/2013 00:00:00,229.48,"31230","Employment & Recruitment Agencies","REDACTED DATA","ADECCO UK LIMITED","",,"232347975"
"London Borough of Redbridge","http://opendatacommunities.org/doc/london-borough-council/redbridge","5BGFHOUSING","General Fund Housing","5CHOUSADVICE","Housing Advice","REV","Revenue","R5530","HAC Temporary Accomodation","01-EMPLOYEES","Employees","01A","Direct employee expenses","4","Agency Staff - Pay","3276950","201401",08/04/2013 00:00:00,228.91,"31230","Employment & Recruitment Agencies","REDACTED DATA","ADECCO UK LIMITED","",,"232347975"
"London Borough of Redbridge","http://opendatacommunities.org/doc/london-borough-council/redbridge","3BLEACENTFND","LEA Centrally Held School Funds","3CSCHSTRATMG","Schools Strategic Management","REV","Revenue","R3174","Bus Supp - CLAFH","01-EMPLOYEES","Employees","01A","Direct employee expenses","4","Agency Staff - Pay","3276950","201401",08/04/2013 00:00:00,228.37,"31230","Employment & Recruitment Agencies","REDACTED DATA","ADECCO UK LIMITED","",,"232347975"
"London Borough of Redbridge","http://opendatacommunities.org/doc/london-borough-council/redbridge","3BLEACENTFND","LEA Centrally Held School Funds","3CSCHSTRATMG","Schools Strategic Management","REV","Revenue","R3174","Bus Supp - CLAFH","01-EMPLOYEES","Employees","01A","Direct employee expenses","4","Agency Staff - Pay","3276950","201401",08/04/2013 00:00:00,228.37,"31230","Employment & Recruitment Agencies","REDACTED DATA","ADECCO UK LIMITED","",,"232347975"
"London Borough of Redbridge","http://opendatacommunities.org/doc/london-borough-council/redbridge","3BLEACENTFND","LEA Centrally Held School Funds","3CSCHSTRATMG","Schools Strategic Management","REV","Revenue","R3174","Bus Supp - CLAFH","01-EMPLOYEES","Employees","01A","Direct employee expenses","4","Agency Staff - Pay","3276950","201401",08/04/2013 00:00:00,228.37,"31230","Employment & Recruitment Agencies","REDACTED DATA","ADECCO UK LIMITED","",,"232347975"
"London Borough of Redbridge","http://opendatacommunities.org/doc/london-borough-council/redbridge","3BLEACENTFND","LEA Centrally Held School Funds","3CSCHSTRATMG","Schools Strategic Management","REV","Revenue","R3174","Bus Supp - CLAFH","01-EMPLOYEES","Employees","01A","Direct employee expenses","4","Agency Staff - Pay","3276950","201401",08/04/2013 00:00:00,228.37,"31230","Employment & Recruitment Agencies","REDACTED DATA","ADECCO UK LIMITED","",,"232347975"
"London Borough of Redbridge","http://opendatacommunities.org/doc/london-borough-council/redbridge","3BLEACENTFND","LEA Centrally Held School Funds","3CSCHSTRATMG","Schools Strategic Management","REV","Revenue","R3175","Bus Supp - SEND, CQF","01-EMPLOYEES","Employees","01A","Direct employee expenses","4","Agency Staff - Pay","3276950","201401",08/04/2013 00:00:00,226.21,"31230","Employment & Recruitment Agencies","REDACTED DATA","ADECCO UK LIMITED","",,"232347975"
"London Borough of Redbridge","http://opendatacommunities.org/doc/london-borough-council/redbridge","1BOTHEROPI&E","Other Operating Income & Expenditure","1CTRADSURDEF","Trading Account Surpluses & Deficits","REV","Revenue","R9252","IT Services","01-EMPLOYEES","Employees","01A","Direct employee expenses","4","Agency Staff - Pay","3276950","201401",08/04/2013 00:00:00,224.7,"31230","Employment & Recruitment Agencies","REDACTED DATA","ADECCO UK LIMITED","",,"232347975"
"London Borough of Redbridge","http://opendatacommunities.org/doc/london-borough-council/redbridge","2BPLAN&DEVEL","Planning & Development Services","2CCOMMDEVT","Community Development","REV","Revenue","R9855","Safer Communities Core Budget","01-EMPLOYEES","Employees","01A","Direct employee expenses","4","Agency Staff - Pay","3276950","201401",08/04/2013 00:00:00,214.07,"31230","Employment & Recruitment Agencies","REDACTED DATA","ADECCO UK LIMITED","",,"232347975"
"London Borough of Redbridge","http://opendatacommunities.org/doc/london-borough-council/redbridge","1BOTHEROPI&E","Other Operating Income & Expenditure","1CTRADSURDEF","Trading Account Surpluses & Deficits","REV","Revenue","R9252","IT Services","01-EMPLOYEES","Employees","01A","Direct employee expenses","4","Agency Staff - Pay","3276950","201401",08/04/2013 00:00:00,212.62,"31230","Employment & Recruitment Agencies","REDACTED DATA","ADECCO UK LIMITED","",,"232347975"
"London Borough of Redbridge","http://opendatacommunities.org/doc/london-borough-council/redbridge","1BOTHEROPI&E","Other Operating Income & Expenditure","1CTRADSURDEF","Trading Account Surpluses & Deficits","REV","Revenue","R9003","One Stop Shop","01-EMPLOYEES","Employees","01A","Direct employee expenses","4","Agency Staff - Pay","3276950","201401",08/04/2013 00:00:00,212.5,"31230","Employment & Recruitment Agencies","REDACTED DATA","ADECCO UK LIMITED","",,"232347975"
"London Borough of Redbridge","http://opendatacommunities.org/doc/london-borough-council/redbridge","1BOTHEROPI&E","Other Operating Income & Expenditure","1CTRADSURDEF","Trading Account Surpluses & Deficits","REV","Revenue","R9003","One Stop Shop","01-EMPLOYEES","Employees","01A","Direct employee expenses","4","Agency Staff - Pay","3276950","201401",08/04/2013 00:00:00,212.5,"31230","Employment & Recruitment Agencies","REDACTED DATA","ADECCO UK LIMITED","",,"232347975"
"London Borough of Redbridge","http://opendatacommunities.org/doc/london-borough-council/redbridge","1BOTHEROPI&E","Other Operating Income & Expenditure","1CTRADSURDEF","Trading Account Surpluses & Deficits","REV","Revenue","R9003","One Stop Shop","01-EMPLOYEES","Employees","01A","Direct employee expenses","4","Agency Staff - Pay","3276950","201401",08/04/2013 00:00:00,212.5,"31230","Employment & Recruitment Agencies","REDACTED DATA","ADECCO UK LIMITED","",,"232347975"
"London Borough of Redbridge","http://opendatacommunities.org/doc/london-borough-council/redbridge","1BOTHEROPI&E","Other Operating Income & Expenditure","1CTRADSURDEF","Trading Account Surpluses & Deficits","REV","Revenue","R9003","One Stop Shop","01-EMPLOYEES","Employees","01A","Direct employee expenses","4","Agency Staff - Pay","3276950","201401",08/04/2013 00:00:00,212.5,"31230","Employment & Recruitment Agencies","REDACTED DATA","ADECCO UK LIMITED","",,"232347975"
"London Borough of Redbridge","http://opendatacommunities.org/doc/london-borough-council/redbridge","3BNONSCHFUND","Non-School Funding","3CNONSCH","Non Schools","REV","Revenue","R3937","Chadwell CC","01-EMPLOYEES","Employees","01A","Direct employee expenses","4","Agency Staff - Pay","3276950","201401",08/04/2013 00:00:00,210.43,"31230","Employment & Recruitment Agencies","REDACTED DATA","ADECCO UK LIMITED","",,"232347975"
"London Borough of Redbridge","http://opendatacommunities.org/doc/london-borough-council/redbridge","2BPLAN&DEVEL","Planning & Development Services","2CCOMMDEVT","Community Development","REV","Revenue","R9855","Safer Communities Core Budget","01-EMPLOYEES","Employees","01A","Direct employee expenses","4","Agency Staff - Pay","3276950","201401",08/04/2013 00:00:00,207.68,"31230","Employment & Recruitment Agencies","REDACTED DATA","ADECCO UK LIMITED","",,"232347975"
"London Borough of Redbridge","http://opendatacommunities.org/doc/london-borough-council/redbridge","2BPLAN&DEVEL","Planning & Development Services","2CCOMMDEVT","Community Development","REV","Revenue","R9855","Safer Communities Core Budget","01-EMPLOYEES","Employees","01A","Direct employee expenses","4","Agency Staff - Pay","3276950","201401",08/04/2013 00:00:00,207.68,"31230","Employment & Recruitment Agencies","REDACTED DATA","ADECCO UK LIMITED","",,"232347975"
"London Borough of Redbridge","http://opendatacommunities.org/doc/london-borough-council/redbridge","3BLEACENTFND","LEA Centrally Held School Funds","3CSCHSTRATMG","Schools Strategic Management","REV","Revenue","R3035","Business Support Units","01-EMPLOYEES","Employees","01A","Direct employee expenses","4","Agency Staff - Pay","3276950","201401",08/04/2013 00:00:00,204.49,"31230","Employment & Recruitment Agencies","REDACTED DATA","ADECCO UK LIMITED","",,"232347975"
"London Borough of Redbridge","http://opendatacommunities.org/doc/london-borough-council/redbridge","3BLEACENTFND","LEA Centrally Held School Funds","3CSCHSTRATMG","Schools Strategic Management","REV","Revenue","R3173","Bus Supp - CP, EI and CRCs","01-EMPLOYEES","Employees","01A","Direct employee expenses","4","Agency Staff - Pay","3276950","201401",08/04/2013 00:00:00,198.82,"31230","Employment & Recruitment Agencies","REDACTED DATA","ADECCO UK LIMITED","",,"232347975"
"London Borough of Redbridge","http://opendatacommunities.org/doc/london-borough-council/redbridge","3BLEACENTFND","LEA Centrally Held School Funds","3CSCHSTRATMG","Schools Strategic Management","REV","Revenue","R3173","Bus Supp - CP, EI and CRCs","01-EMPLOYEES","Employees","01A","Direct employee expenses","4","Agency Staff - Pay","3276950","201401",08/04/2013 00:00:00,198.82,"31230","Employment & Recruitment Agencies","REDACTED DATA","ADECCO UK LIMITED","",,"232347975"
"London Borough of Redbridge","http://opendatacommunities.org/doc/london-borough-council/redbridge","3BLEACENTFND","LEA Centrally Held School Funds","3CSCHSTRATMG","Schools Strategic Management","REV","Revenue","R3173","Bus Supp - CP, EI and CRCs","01-EMPLOYEES","Employees","01A","Direct employee expenses","4","Agency Staff - Pay","3276950","201401",08/04/2013 00:00:00,197.43,"31230","Employment & Recruitment Agencies","REDACTED DATA","ADECCO UK LIMITED","",,"232347975"
"London Borough of Redbridge","http://opendatacommunities.org/doc/london-borough-council/redbridge","3BLEACENTFND","LEA Centrally Held School Funds","3CSCHSTRATMG","Schools Strategic Management","REV","Revenue","R3173","Bus Supp - CP, EI and CRCs","01-EMPLOYEES","Employees","01A","Direct employee expenses","4","Agency Staff - Pay","3276950","201401",08/04/2013 00:00:00,196.44,"31230","Employment & Recruitment Agencies","REDACTED DATA","ADECCO UK LIMITED","",,"232347975"
"London Borough of Redbridge","http://opendatacommunities.org/doc/london-borough-council/redbridge","3BLEACENTFND","LEA Centrally Held School Funds","3CSCHSTRATMG","Schools Strategic Management","REV","Revenue","R3175","Bus Supp - SEND, CQF","01-EMPLOYEES","Employees","01A","Direct employee expenses","4","Agency Staff - Pay","3276950","201401",08/04/2013 00:00:00,192.03,"31230","Employment & Recruitment Agencies","REDACTED DATA","ADECCO UK LIMITED","",,"232347975"
"London Borough of Redbridge","http://opendatacommunities.org/doc/london-borough-council/redbridge","3BLEACENTFND","LEA Centrally Held School Funds","3CSCHSTRATMG","Schools Strategic Management","REV","Revenue","R3175","Bus Supp - SEND, CQF","01-EMPLOYEES","Employees","01A","Direct employee expenses","4","Agency Staff - Pay","3276950","201401",08/04/2013 00:00:00,192.03,"31230","Employment & Recruitment Agencies","REDACTED DATA","ADECCO UK LIMITED","",,"232347975"
"London Borough of Redbridge","http://opendatacommunities.org/doc/london-borough-council/redbridge","1BOTHEROPI&E","Other Operating Income & Expenditure","1CTRADSURDEF","Trading Account Surpluses & Deficits","REV","Revenue","R9003","One Stop Shop","01-EMPLOYEES","Employees","01A","Direct employee expenses","4","Agency Staff - Pay","3276950","201401",08/04/2013 00:00:00,181.52,"31230","Employment & Recruitment Agencies","REDACTED DATA","ADECCO UK LIMITED","",,"232347975"
"London Borough of Redbridge","http://opendatacommunities.org/doc/london-borough-council/redbridge","3BLEACENTFND","LEA Centrally Held School Funds","3CSCHSTRATMG","Schools Strategic Management","REV","Revenue","R3174","Bus Supp - CLAFH","01-EMPLOYEES","Employees","01A","Direct employee expenses","4","Agency Staff - Pay","3276950","201401",08/04/2013 00:00:00,175.91,"31230","Employment & Recruitment Agencies","REDACTED DATA","ADECCO UK LIMITED","",,"232347975"
"London Borough of Redbridge","http://opendatacommunities.org/doc/london-borough-council/redbridge","3BNONSCHFUND","Non-School Funding","3CNONSCH","Non Schools","REV","Revenue","R3937","Chadwell CC","01-EMPLOYEES","Employees","01A","Direct employee expenses","4","Agency Staff - Pay","3276950","201401",08/04/2013 00:00:00,172.65,"31230","Employment & Recruitment Agencies","REDACTED DATA","ADECCO UK LIMITED","",,"232347975"
"London Borough of Redbridge","http://opendatacommunities.org/doc/london-borough-council/redbridge","3BLEACENTFND","LEA Centrally Held School Funds","3CSCHSTRATMG","Schools Strategic Management","REV","Revenue","R3174","Bus Supp - CLAFH","01-EMPLOYEES","Employees","01A","Direct employee expenses","4","Agency Staff - Pay","3276950","201401",08/04/2013 00:00:00,167.4,"31230","Employment & Recruitment Agencies","REDACTED DATA","ADECCO UK LIMITED","",,"232347975"
"London Borough of Redbridge","http://opendatacommunities.org/doc/london-borough-council/redbridge","2BPLAN&DEVEL","Planning & Development Services","2CCOMMDEVT","Community Development","REV","Revenue","R9855","Safer Communities Core Budget","01-EMPLOYEES","Employees","01A","Direct employee expenses","4","Agency Staff - Pay","3276950","201401",08/04/2013 00:00:00,149.53,"31230","Employment & Recruitment Agencies","REDACTED DATA","ADECCO UK LIMITED","",,"232347975"
"London Borough of Redbridge","http://opendatacommunities.org/doc/london-borough-council/redbridge","3BNONSCHFUND","Non-School Funding","3CNONSCH","Non Schools","REV","Revenue","R3937","Chadwell CC","01-EMPLOYEES","Employees","01A","Direct employee expenses","4","Agency Staff - Pay","3276950","201401",08/04/2013 00:00:00,141.64,"31230","Employment & Recruitment Agencies","REDACTED DATA","ADECCO UK LIMITED","",,"232347975"
"London Borough of Redbridge","http://opendatacommunities.org/doc/london-borough-council/redbridge","3BLEACENTFND","LEA Centrally Held School Funds","3CSCHSTRATMG","Schools Strategic Management","REV","Revenue","R3500","Sch Gov Body Sectn","01-EMPLOYEES","Employees","01A","Direct employee expenses","4","Agency Staff - Pay","3276950","201401",08/04/2013 00:00:00,136.01,"31230","Employment & Recruitment Agencies","REDACTED DATA","ADECCO UK LIMITED","",,"232347975"
"London Borough of Redbridge","http://opendatacommunities.org/doc/london-borough-council/redbridge","1BOTHEROPI&E","Other Operating Income & Expenditure","1CTRADSURDEF","Trading Account Surpluses & Deficits","REV","Revenue","R9460","Human Resources misc","01-EMPLOYEES","Employees","01A","Direct employee expenses","4","Agency Staff - Pay","3276950","201401",08/04/2013 00:00:00,124.99,"31230","Employment & Recruitment Agencies","REDACTED DATA","ADECCO UK LIMITED","",,"232347975"
"London Borough of Redbridge","http://opendatacommunities.org/doc/london-borough-council/redbridge","2BPLAN&DEVEL","Planning & Development Services","2CCOMMDEVT","Community Development","REV","Revenue","R9855","Safer Communities Core Budget","01-EMPLOYEES","Employees","01A","Direct employee expenses","4","Agency Staff - Pay","3276950","201401",08/04/2013 00:00:00,124,"31230","Employment & Recruitment Agencies","REDACTED DATA","ADECCO UK LIMITED","",,"232347975"
"London Borough of Redbridge","http://opendatacommunities.org/doc/london-borough-council/redbridge","2BPLAN&DEVEL","Planning & Development Services","2CCOMMDEVT","Community Development","REV","Revenue","R9855","Safer Communities Core Budget","01-EMPLOYEES","Employees","01A","Direct employee expenses","4","Agency Staff - Pay","3276950","201401",08/04/2013 00:00:00,124,"31230","Employment & Recruitment Agencies","REDACTED DATA","ADECCO UK LIMITED","",,"232347975"
"London Borough of Redbridge","http://opendatacommunities.org/doc/london-borough-council/redbridge","1BOTHEROPI&E","Other Operating Income & Expenditure","1CTRADSURDEF","Trading Account Surpluses & Deficits","REV","Revenue","R9356","Business Support (Legal)","01-EMPLOYEES","Employees","01A","Direct employee expenses","4","Agency Staff - Pay","3276950","201401",08/04/2013 00:00:00,122.8,"31230","Employment & Recruitment Agencies","REDACTED DATA","ADECCO UK LIMITED","",,"232347975"
"London Borough of Redbridge","http://opendatacommunities.org/doc/london-borough-council/redbridge","1BOTHEROPI&E","Other Operating Income & Expenditure","1CTRADSURDEF","Trading Account Surpluses & Deficits","REV","Revenue","R9356","Business Support (Legal)","01-EMPLOYEES","Employees","01A","Direct employee expenses","4","Agency Staff - Pay","3276950","201401",08/04/2013 00:00:00,120.03,"31230","Employment & Recruitment Agencies","REDACTED DATA","ADECCO UK LIMITED","",,"232347975"
"London Borough of Redbridge","http://opendatacommunities.org/doc/london-borough-council/redbridge","1BOTHEROPI&E","Other Operating Income & Expenditure","1CTRADSURDEF","Trading Account Surpluses & Deficits","REV","Revenue","R9356","Business Support (Legal)","01-EMPLOYEES","Employees","01A","Direct employee expenses","4","Agency Staff - Pay","3276950","201401",08/04/2013 00:00:00,119.4,"31230","Employment & Recruitment Agencies","REDACTED DATA","ADECCO UK LIMITED","",,"232347975"
"London Borough of Redbridge","http://opendatacommunities.org/doc/london-borough-council/redbridge","1BOTHEROPI&E","Other Operating Income & Expenditure","1CTRADSURDEF","Trading Account Surpluses & Deficits","REV","Revenue","R9356","Business Support (Legal)","01-EMPLOYEES","Employees","01A","Direct employee expenses","4","Agency Staff - Pay","3276950","201401",08/04/2013 00:00:00,116.38,"31230","Employment & Recruitment Agencies","REDACTED DATA","ADECCO UK LIMITED","",,"232347975"
"London Borough of Redbridge","http://opendatacommunities.org/doc/london-borough-council/redbridge","1BOTHEROPI&E","Other Operating Income & Expenditure","1CTRADSURDEF","Trading Account Surpluses & Deficits","REV","Revenue","R9356","Business Support (Legal)","01-EMPLOYEES","Employees","01A","Direct employee expenses","4","Agency Staff - Pay","3276950","201401",08/04/2013 00:00:00,116.38,"31230","Employment & Recruitment Agencies","REDACTED DATA","ADECCO UK LIMITED","",,"232347975"
"London Borough of Redbridge","http://opendatacommunities.org/doc/london-borough-council/redbridge","1BOTHEROPI&E","Other Operating Income & Expenditure","1CTRADSURDEF","Trading Account Surpluses & Deficits","REV","Revenue","R9003","One Stop Shop","01-EMPLOYEES","Employees","01A","Direct employee expenses","4","Agency Staff - Pay","3276950","201401",08/04/2013 00:00:00,104.4,"31230","Employment & Recruitment Agencies","REDACTED DATA","ADECCO UK LIMITED","",,"232347975"
"London Borough of Redbridge","http://opendatacommunities.org/doc/london-borough-council/redbridge","1BOTHEROPI&E","Other Operating Income & Expenditure","1CTRADSURDEF","Trading Account Surpluses & Deficits","REV","Revenue","R9003","One Stop Shop","01-EMPLOYEES","Employees","01A","Direct employee expenses","4","Agency Staff - Pay","3276950","201401",08/04/2013 00:00:00,104.4,"31230","Employment & Recruitment Agencies","REDACTED DATA","ADECCO UK LIMITED","",,"232347975"
"London Borough of Redbridge","http://opendatacommunities.org/doc/london-borough-council/redbridge","3BLEACENTFND","LEA Centrally Held School Funds","3CSCHSTRATMG","Schools Strategic Management","REV","Revenue","R3175","Bus Supp - SEND, CQF","01-EMPLOYEES","Employees","01A","Direct employee expenses","4","Agency Staff - Pay","3276950","201401",08/04/2013 00:00:00,102,"31230","Employment & Recruitment Agencies","REDACTED DATA","ADECCO UK LIMITED","",,"232347975"
"London Borough of Redbridge","http://opendatacommunities.org/doc/london-borough-council/redbridge","1BOTHEROPI&E","Other Operating Income & Expenditure","1CTRADSURDEF","Trading Account Surpluses & Deficits","REV","Revenue","R9356","Business Support (Legal)","01-EMPLOYEES","Employees","01A","Direct employee expenses","4","Agency Staff - Pay","3276950","201401",08/04/2013 00:00:00,95.22,"31230","Employment & Recruitment Agencies","REDACTED DATA","ADECCO UK LIMITED","",,"232347975"
"London Borough of Redbridge","http://opendatacommunities.org/doc/london-borough-council/redbridge","5BGFHOUSING","General Fund Housing","5CHOUSADVICE","Housing Advice","REV","Revenue","R5530","HAC Temporary Accomodation","01-EMPLOYEES","Employees","01A","Direct employee expenses","4","Agency Staff - Pay","3276950","201401",08/04/2013 00:00:00,90.83,"31230","Employment & Recruitment Agencies","REDACTED DATA","ADECCO UK LIMITED","",,"232347975"
"London Borough of Redbridge","http://opendatacommunities.org/doc/london-borough-council/redbridge","3BOPTIONHLDG","Optional Holding Accounts","3CYOUTH","Youth Service","REV","Revenue","R3359","Effective Practice","01-EMPLOYEES","Employees","01A","Direct employee expenses","4","Agency Staff - Pay","3276950","201401",08/04/2013 00:00:00,89.9,"31230","Employment & Recruitment Agencies","REDACTED DATA","ADECCO UK LIMITED","",,"232347975"
"London Borough of Redbridge","http://opendatacommunities.org/doc/london-borough-council/redbridge","3BNONSCHFUND","Non-School Funding","3CNONSCH","Non Schools","REV","Revenue","R3955","Redbridge Primary CC","01-EMPLOYEES","Employees","01A","Direct employee expenses","4","Agency Staff - Pay","3276950","201401",08/04/2013 00:00:00,86.91,"31230","Employment & Recruitment Agencies","REDACTED DATA","ADECCO UK LIMITED","",,"232347975"
"London Borough of Redbridge","http://opendatacommunities.org/doc/london-borough-council/redbridge","6BADULTSOCIA","Adult Social Care","6CSUPPSERMGT","Support Service & Management Costs","REV","Revenue","R4475","Payments Team","01-EMPLOYEES","Employees","01A","Direct employee expenses","4","Agency Staff - Pay","3276950","201401",08/04/2013 00:00:00,85.96,"31230","Employment & Recruitment Agencies","REDACTED DATA","ADECCO UK LIMITED","",,"232347975"
"London Borough of Redbridge","http://opendatacommunities.org/doc/london-borough-council/redbridge","5BGFHOUSING","General Fund Housing","5CHOUSADVICE","Housing Advice","REV","Revenue","R5530","HAC Temporary Accomodation","01-EMPLOYEES","Employees","01A","Direct employee expenses","4","Agency Staff - Pay","3276950","201401",08/04/2013 00:00:00,72.04,"31230","Employment & Recruitment Agencies","REDACTED DATA","ADECCO UK LIMITED","",,"232347975"
"London Borough of Redbridge","http://opendatacommunities.org/doc/london-borough-council/redbridge","5BGFHOUSING","General Fund Housing","5CHOUSADVICE","Housing Advice","REV","Revenue","R5533","Hylefords TA Refurbishment Project","01-EMPLOYEES","Employees","01A","Direct employee expenses","4","Agency Staff - Pay","3276950","201401",08/04/2013 00:00:00,69.67,"31230","Employment & Recruitment Agencies","REDACTED DATA","ADECCO UK LIMITED","",,"232347975"
"London Borough of Redbridge","http://opendatacommunities.org/doc/london-borough-council/redbridge","3BLEACENTFND","LEA Centrally Held School Funds","3CSCHSTRATMG","Schools Strategic Management","REV","Revenue","R3173","Bus Supp - CP, EI and CRCs","01-EMPLOYEES","Employees","01A","Direct employee expenses","4","Agency Staff - Pay","3276950","201401",08/04/2013 00:00:00,61.15,"31230","Employment & Recruitment Agencies","REDACTED DATA","ADECCO UK LIMITED","",,"232347975"
"London Borough of Redbridge","http://opendatacommunities.org/doc/london-borough-council/redbridge","5BGFHOUSING","General Fund Housing","5CHOUSADVICE","Housing Advice","REV","Revenue","R5530","HAC Temporary Accomodation","01-EMPLOYEES","Employees","01A","Direct employee expenses","4","Agency Staff - Pay","3276950","201401",08/04/2013 00:00:00,48.21,"31230","Employment & Recruitment Agencies","REDACTED DATA","ADECCO UK LIMITED","",,"232347975"
"London Borough of Redbridge","http://opendatacommunities.org/doc/london-borough-council/redbridge","5BGFHOUSING","General Fund Housing","5CHOUMGTSUPP","Housing Management & Support Services","REV","Revenue","R5500","Housing Advice Centre","01-EMPLOYEES","Employees","01A","Direct employee expenses","4","Agency Staff - Pay","3276950","201401",08/04/2013 00:00:00,43.4,"31230","Employment & Recruitment Agencies","REDACTED DATA","ADECCO UK LIMITED","",,"232347975"
"London Borough of Redbridge","http://opendatacommunities.org/doc/london-borough-council/redbridge","2BPLAN&DEVEL","Planning & Development Services","2CCOMMDEVT","Community Development","REV","Revenue","R9855","Safer Communities Core Budget","01-EMPLOYEES","Employees","01A","Direct employee expenses","4","Agency Staff - Pay","3276950","201401",08/04/2013 00:00:00,42.98,"31230","Employment & Recruitment Agencies","REDACTED DATA","ADECCO UK LIMITED","",,"232347975"
"London Borough of Redbridge","http://opendatacommunities.org/doc/london-borough-council/redbridge","5BGFHOUSING","General Fund Housing","5CHOUSADVICE","Housing Advice","REV","Revenue","R5530","HAC Temporary Accomodation","01-EMPLOYEES","Employees","01A","Direct employee expenses","4","Agency Staff - Pay","3276950","201401",08/04/2013 00:00:00,34.12,"31230","Employment & Recruitment Agencies","REDACTED DATA","ADECCO UK LIMITED","",,"232347975"
"London Borough of Redbridge","http://opendatacommunities.org/doc/london-borough-council/redbridge","5BGFHOUSING","General Fund Housing","5CHOUSADVICE","Housing Advice","REV","Revenue","R5533","Hylefords TA Refurbishment Project","01-EMPLOYEES","Employees","01A","Direct employee expenses","4","Agency Staff - Pay","3276950","201401",08/04/2013 00:00:00,15.64,"31230","Employment & Recruitment Agencies","REDACTED DATA","ADECCO UK LIMITED","",,"232347975"
"London Borough of Redbridge","http://opendatacommunities.org/doc/london-borough-council/redbridge","5BGFHOUSING","General Fund Housing","5CHOUSADVICE","Housing Advice","REV","Revenue","R5533","Hylefords TA Refurbishment Project","01-EMPLOYEES","Employees","01A","Direct employee expenses","4","Agency Staff - Pay","3276950","201401",08/04/2013 00:00:00,0,"31230","Employment & Recruitment Agencies","REDACTED DATA","ADECCO UK LIMITED","",,"232347975"
"London Borough of Redbridge","http://opendatacommunities.org/doc/london-borough-council/redbridge","5BGFHOUSING","General Fund Housing","5CHOUSADVICE","Housing Advice","REV","Revenue","R5533","Hylefords TA Refurbishment Project","01-EMPLOYEES","Employees","01A","Direct employee expenses","4","Agency Staff - Pay","3276950","201401",08/04/2013 00:00:00,0,"31230","Employment & Recruitment Agencies","REDACTED DATA","ADECCO UK LIMITED","",,"232347975"
"London Borough of Redbridge","http://opendatacommunities.org/doc/london-borough-council/redbridge","5BGFHOUSING","General Fund Housing","5CHOUSADVICE","Housing Advice","REV","Revenue","R5533","Hylefords TA Refurbishment Project","01-EMPLOYEES","Employees","01A","Direct employee expenses","4","Agency Staff - Pay","3276950","201401",08/04/2013 00:00:00,0,"31230","Employment & Recruitment Agencies","REDACTED DATA","ADECCO UK LIMITED","",,"232347975"
"London Borough of Redbridge","http://opendatacommunities.org/doc/london-borough-council/redbridge","5BGFHOUSING","General Fund Housing","5CHOUSADVICE","Housing Advice","REV","Revenue","R5530","HAC Temporary Accomodation","05-THIRD","Third Party Payments","05H","Private contractors","6912","Bed & Breakfast Charges","70052908","201401",01/04/2013 00:00:00,176732.21,"47846","Letting Agents","REDACTED DATA","LETTING INTERNATIONAL LTD","3425414","http://opencorporates.com/companies/gb/3425414","710849440"
"London Borough of Redbridge","http://opendatacommunities.org/doc/london-borough-council/redbridge","9BNONBVO","Outside the BVACOP Objective Structure","9CNONBVO","Outside the BVACOP Objective Structure","CAP","Capital","C2223","Highways Preventative Maintenance LBR","99-NONBV","Capital, Balance Sheet and Control","50E","Capital - Contract Payments","9150","Main Contract","3278314","201401",17/04/2013 00:00:00,119000,"18632","Civil Engineers","REDACTED DATA","KENSON CONTRACTORS BENINGTON LTD","1314691","http://opencorporates.com/companies/gb/1314691","301629589"
"London Borough of Redbridge","http://opendatacommunities.org/doc/london-borough-council/redbridge","9BNONBVO","Outside the BVACOP Objective Structure","9CNONBVO","Outside the BVACOP Objective Structure","CAP","Capital","C4157","Grove Primary Expansion for 2012","99-NONBV","Capital, Balance Sheet and Control","50E","Capital - Contract Payments","9150","Main Contract","60201293","201401",28/03/2013 00:00:00,112613.76,"11040","Builders","REDACTED DATA","LAKEHOUSE CONTRACTS LTD","2603357","http://opencorporates.com/companies/gb/2603357",""
"London Borough of Redbridge","http://opendatacommunities.org/doc/london-borough-council/redbridge","3BNONSCHFUND","Non-School Funding","3CYOUTH","Youth Service","REV","Revenue","R3478","Connexions","05-THIRD","Third Party Payments","05H","Private contractors","6915","Contractor Payments","60202586","201401",18/04/2013 00:00:00,110000,"14850","Career Guidance Services","REDACTED DATA","BABCOCK CAREERS GUIDANCE LTD","2961588","http://opencorporates.com/companies/gb/2961588","698815563"
"London Borough of Redbridge","http://opendatacommunities.org/doc/london-borough-council/redbridge","3BINDSCHFUND","Individual School Funds","3CDELSECOND","Delegated Individual Secondary School Budgets","REV","Revenue","R3632","King Solomon High School","99-NONBV","Capital, Balance Sheet and Control","99B","Accounting & Control","7451","LMS Bank Accounts Pilot","70052742","201401",19/04/2013 00:00:00,120000,"67981","Schools - Local Authority","REDACTED DATA","KING SOLOMON HIGH SCHOOL A/C","",,""
"London Borough of Redbridge","http://opendatacommunities.org/doc/london-borough-council/redbridge","9BNONBVO","Outside the BVACOP Objective Structure","9CNONBVO","Outside the BVACOP Objective Structure","CAP","Capital","C2246","Major Schemes Manford Way TFL","99-NONBV","Capital, Balance Sheet and Control","50E","Capital - Contract Payments","9150","Main Contract","3277016","201401",02/04/2013 00:00:00,100000,"18632","Civil Engineers","REDACTED DATA","KENSON CONTRACTORS BENINGTON LTD","1314691","http://opencorporates.com/companies/gb/1314691","301629589"
"London Borough of Redbridge","http://opendatacommunities.org/doc/london-borough-council/redbridge","6BADULTSOCIA","Adult Social Care","6CSUPPSERMGT","Support Service & Management Costs","REV","Revenue","R4433","Care First Team","04-SUPPLIES","Supplies And Services","04F","Communications and computing","5852","Computer Equipment - Repairs & Maintenance","60201613","201401",01/04/2013 00:00:00,99112.79,"20703","Computer Systems and Software","REDACTED DATA","OLM SYSTEMS LTD","2615716","http://opencorporates.com/companies/gb/2615716","577661495"
"London Borough of Redbridge","http://opendatacommunities.org/doc/london-borough-council/redbridge","4BMANGT&SUPP","Management & Support Services","4CHIGHRDROUT","Highways/Roads (Routine)","REV","Revenue","R7061","Lighting Energy","05-THIRD","Third Party Payments","05H","Private contractors","6915","Contractor Payments","80002730","201401",28/03/2013 00:00:00,98605.08,"39564","Gas Companies","REDACTED DATA","KENT COUNTY COUNCIL (GAS & ELECTRIC)","",,"204269191"
"London Borough of Redbridge","http://opendatacommunities.org/doc/london-borough-council/redbridge","3BLEACENTFND","LEA Centrally Held School Funds","3CNONSCH","Non Schools","REV","Revenue","R3258","ISS Paid School Meals","05-THIRD","Third Party Payments","05A","Independent units within the council","6513","Agency & Contracted Services","70052932","201401",26/04/2013 00:00:00,114195.42,"16270","Catering Schools","REDACTED DATA","ISS CATERHOUSE - ISS MEDICLEAN LTD(EDUCATION CATERING CASH COLLECTIONS)","1659837","http://opencorporates.com/companies/gb/1659837",""
"London Borough of Redbridge","http://opendatacommunities.org/doc/london-borough-council/redbridge","4BMANGT&SUPP","Management & Support Services","4CHIGHRDROUT","Highways/Roads (Routine)","REV","Revenue","R7061","Lighting Energy","05-THIRD","Third Party Payments","05H","Private contractors","6915","Contractor Payments","80002734","201401",28/03/2013 00:00:00,92544.11,"39564","Gas Companies","REDACTED DATA","KENT COUNTY COUNCIL (GAS & ELECTRIC)","",,"204269191"
"London Borough of Redbridge","http://opendatacommunities.org/doc/london-borough-council/redbridge","3BLEACENTFND","LEA Centrally Held School Funds","3CNONSCH","Non Schools","REV","Revenue","R2008","Speech and Language LEA","05-THIRD","Third Party Payments","05A","Independent units within the council","6513","Agency & Contracted Services","60201439","201401",27/02/2013 00:00:00,106500,"42200","Health Authorities","REDACTED DATA","NORTH EAST LONDON NHS FOUNDATION TRUST","",,"GB-654-4044-47"
"London Borough of Redbridge","http://opendatacommunities.org/doc/london-borough-council/redbridge","4BMANGT&SUPP","Management & Support Services","4CHIGHRDROUT","Highways/Roads (Routine)","REV","Revenue","R7064","Markings and Traffic Lights","05-THIRD","Third Party Payments","05E","Government departments","6751","Services Of Government Departments","60202358","201401",18/04/2013 00:00:00,105506.66,"48583","Local Government","REDACTED DATA","TFL SURFACE TRANSPORT","",,"756276990"
"London Borough of Redbridge","http://opendatacommunities.org/doc/london-borough-council/redbridge","3BINDSCHFUND","Individual School Funds","3CDELSPECIAL","Delegated Individual Special School Budgets","REV","Revenue","R3327","The New Rush Hall School","99-NONBV","Capital, Balance Sheet and Control","99B","Accounting & Control","7451","LMS Bank Accounts Pilot","70052744","201401",19/04/2013 00:00:00,105184,"67981","Schools - Local Authority","REDACTED DATA","NEW RUSH HALL SCHOOL A/C","",,""
"London Borough of Redbridge","http://opendatacommunities.org/doc/london-borough-council/redbridge","9BNONBVO","Outside the BVACOP Objective Structure","9CNONBVO","Outside the BVACOP Objective Structure","REV","Revenue","R0025","Business Rate Supplement - NNDR","05-THIRD","Third Party Payments","05E","Government departments","6283","Business Rate Supplement","60202377","201401",16/04/2013 00:00:00,102328,"48583","Local Government","REDACTED DATA","GREATER LONDON AUTHORITY","",,""
"London Borough of Redbridge","http://opendatacommunities.org/doc/london-borough-council/redbridge","4BMANGT&SUPP","Management & Support Services","4CHIGHRDROUT","Highways/Roads (Routine)","REV","Revenue","R7061","Lighting Energy","05-THIRD","Third Party Payments","05H","Private contractors","6915","Contractor Payments","80002736","201401",28/03/2013 00:00:00,84042.69,"39564","Gas Companies","REDACTED DATA","KENT COUNTY COUNCIL (GAS & ELECTRIC)","",,"204269191"
"London Borough of Redbridge","http://opendatacommunities.org/doc/london-borough-council/redbridge","4BMANGT&SUPP","Management & Support Services","4CHIGHRDROUT","Highways/Roads (Routine)","REV","Revenue","R7061","Lighting Energy","05-THIRD","Third Party Payments","05H","Private contractors","6915","Contractor Payments","80002714","201401",25/03/2013 00:00:00,79956.13,"39564","Gas Companies","REDACTED DATA","KENT COUNTY COUNCIL (GAS & ELECTRIC)","",,"204269191"
"London Borough of Redbridge","http://opendatacommunities.org/doc/london-borough-council/redbridge","4BMANGT&SUPP","Management & Support Services","4CHIGHRDROUT","Highways/Roads (Routine)","REV","Revenue","R7061","Lighting Energy","05-THIRD","Third Party Payments","05H","Private contractors","6915","Contractor Payments","80002739","201401",25/03/2013 00:00:00,79956.13,"39564","Gas Companies","REDACTED DATA","KENT COUNTY COUNCIL (GAS & ELECTRIC)","",,"204269191"
